PublisherLabel,PublisherURI,"Body name","Body","Service area","Service division","Responsible unit","Expenses type","Date","Transaction","Amount","Supplier name"
"Bracknell Forest Council","http://opendatacommunities.org/id/unitary-authority/bracknell-forest","","","Adults (18-64)","Long term Support - Community:Direct Payments","LD Adults 18-64 Long Term Support - Community:Direct Payments","Client Contributions Other",12/04/2018 00:00:00,"30333459",-202.84,"Redact Personal Info"
"Bracknell Forest Council","http://opendatacommunities.org/id/unitary-authority/bracknell-forest","","","Adults (18-64)","Long term Support - Community:Direct Payments","Autism Adults 18-64 Long Term Support - Community : Direct Payments","Client Contributions Other",12/04/2018 00:00:00,"30333459",-246.3,"Redact Personal Info"
"Bracknell Forest Council","http://opendatacommunities.org/id/unitary-authority/bracknell-forest","","","Adults (18-64)","Long term Support - Community:Direct Payments","Autism Adults 18-64 Long Term Support - Community : Direct Payments","Direct Payments to Clients",12/04/2018 00:00:00,"30333459",390.21,"Redact Personal Info"
"Bracknell Forest Council","http://opendatacommunities.org/id/unitary-authority/bracknell-forest","","","Adults (18-64)","Long Term Support - Community:Supported Living","PS Adults 18-64 Long Term Support - Community:Supported Living","Contracted Services",23/02/2018 00:00:00,"6658992",728.16,"DISABILITY INITIATIVE SERVICES LIMITED"
"Bracknell Forest Council","http://opendatacommunities.org/id/unitary-authority/bracknell-forest","","","Adults (18-64)","Long Term Support - Community:Supported Living","PS Adults 18-64 Long Term Support - Community:Supported Living","Contracted Services",23/02/2018 00:00:00,"6658995",1098.24,"DISABILITY INITIATIVE SERVICES LIMITED"
"Bracknell Forest Council","http://opendatacommunities.org/id/unitary-authority/bracknell-forest","","","Adults (18-64)","Long Term Support - Community:Supported Living","LD Adults 18-64 Long Term Support - Community:Supported Living","Other Support to Clients",02/04/2018 00:00:00,"6659452",1529.5,"JJM TAXIS & ZULU CARS LTD"
"Bracknell Forest Council","http://opendatacommunities.org/id/unitary-authority/bracknell-forest","","","Adults (18-64)","Long term Support - Community:Direct Payments","LD Adults 18-64 Long Term Support - Community:Direct Payments","Direct Payments to Clients",18/04/2018 00:00:00,"6659562",14841.25,"Redact Personal Info"
"Bracknell Forest Council","http://opendatacommunities.org/id/unitary-authority/bracknell-forest","","","Adults (18-64)","Long Term Support - Community:Supported Living","PS Adults 18-64 Long Term Support - Community:Supported Living","Contracted Services",23/03/2018 00:00:00,"6659839",1098.24,"DISABILITY INITIATIVE SERVICES LIMITED"
"Bracknell Forest Council","http://opendatacommunities.org/id/unitary-authority/bracknell-forest","","","Adults (18-64)","Long Term Support - Community:Supported Living","PS Adults 18-64 Long Term Support - Community:Supported Living","Contracted Services",23/03/2018 00:00:00,"6659840",728.16,"DISABILITY INITIATIVE SERVICES LIMITED"
"Bracknell Forest Council","http://opendatacommunities.org/id/unitary-authority/bracknell-forest","","","Adults (18-64)","Long Term Support - Community:Supported Living","LD Adults 18-64 Long Term Support - Community:Supported Living","Other Support to Clients",02/10/2017 00:00:00,"6660148",1690.5,"JJM TAXIS & ZULU CARS LTD"
"Bracknell Forest Council","http://opendatacommunities.org/id/unitary-authority/bracknell-forest","","","Adults (18-64)","Long Term Support - Community:Supported Living","LD Adults 18-64 Long Term Support - Community:Supported Living","Other Support to Clients",01/12/2017 00:00:00,"6660150",1771,"JJM TAXIS & ZULU CARS LTD"
"Bracknell Forest Council","http://opendatacommunities.org/id/unitary-authority/bracknell-forest","","","Adults (18-64)","Long Term Support - Community:Supported Living","MH Adults 18-64 Long Term Support - Community:Supported Living","Other Support to Clients",30/04/2018 00:00:00,"6661205",-1224.16,"MOVING ON CARE MANAGEMENT LTD"
"Bracknell Forest Council","http://opendatacommunities.org/id/unitary-authority/bracknell-forest","","","Adults (18-64)","Long Term Support - Community:Supported Living","MH Adults 18-64 Long Term Support - Community:Supported Living","Other Support to Clients",14/03/2018 00:00:00,"6661228",-3850.4,"MOVING ON CARE MANAGEMENT LTD"
"Bracknell Forest Council","http://opendatacommunities.org/id/unitary-authority/bracknell-forest","","","Adults (18-64)","Long Term Support - Community:Supported Living","MH Adults 18-64 Long Term Support - Community:Supported Living","Other Support to Clients",14/12/2017 00:00:00,"6661229",2344.84,"MOVING ON CARE MANAGEMENT LTD"
"Bracknell Forest Council","http://opendatacommunities.org/id/unitary-authority/bracknell-forest","","","Adults (18-64)","Long Term Support - Community:Supported Living","LD Adults 18-64 Long Term Support - Community:Supported Living","Other Support to Clients",03/05/2018 00:00:00,"6661471",1690.5,"JJM TAXIS & ZULU CARS LTD"
"Bracknell Forest Council","http://opendatacommunities.org/id/unitary-authority/bracknell-forest","","","Adults (18-64)","Long Term Support - Community:Supported Living","MH Adults 18-64 Long Term Support - Community:Supported Living","Other Support to Clients",30/04/2018 00:00:00,"6661500",2448,"MOVING ON CARE MANAGEMENT LTD"
"Bracknell Forest Council","http://opendatacommunities.org/id/unitary-authority/bracknell-forest","","","Adults (18-64)","Long Term Support - Community:Supported Living","MH Adults 18-64 Long Term Support - Community:Supported Living","Other Support to Clients",30/04/2018 00:00:00,"6661501",2448,"MOVING ON CARE MANAGEMENT LTD"
"Bracknell Forest Council","http://opendatacommunities.org/id/unitary-authority/bracknell-forest","","","Adults (18-64)","Long Term Support - Community:Supported Living","MH Adults 18-64 Long Term Support - Community:Supported Living","Other Support to Clients",14/12/2017 00:00:00,"6662033",2529.6,"MOVING ON CARE MANAGEMENT LTD"
"Bracknell Forest Council","http://opendatacommunities.org/id/unitary-authority/bracknell-forest","","","Adults (18-64)","Long Term Support - Community:Supported Living","MH Adults 18-64 Long Term Support - Community:Supported Living","Other Support to Clients",14/12/2017 00:00:00,"6662034",2529.6,"MOVING ON CARE MANAGEMENT LTD"
"Bracknell Forest Council","http://opendatacommunities.org/id/unitary-authority/bracknell-forest","","","Adults (18-64)","Long term Support - Community:Direct Payments","SS Adults 18-64 Long Term Support - Community:Direct Payments","Direct Payments to Clients",09/04/2018 00:00:00,"30333232",1028.57,"Redact Personal Info"
"Bracknell Forest Council","http://opendatacommunities.org/id/unitary-authority/bracknell-forest","","","Adults (18-64)","Long term Support - Community:Direct Payments","LD Adults 18-64 Long Term Support - Community:Direct Payments","Direct Payments to Clients",12/04/2018 00:00:00,"30333459",2177,"Redact Personal Info"
"Bracknell Forest Council","http://opendatacommunities.org/id/unitary-authority/bracknell-forest","","","Adults (18-64)","Long term Support - Community:Direct Payments","LD Adults 18-64 Long Term Support - Community:Direct Payments","Direct Payments to Clients",12/04/2018 00:00:00,"30333459",4151.79,"Redact Personal Info"
"Bracknell Forest Council","http://opendatacommunities.org/id/unitary-authority/bracknell-forest","","","Adults (18-64)","Long term Support - Community:Direct Payments","PS Adults 18-64 Long Term Support - Community:Direct Payments","Direct Payments to Clients",12/04/2018 00:00:00,"30333459",5049.72,"Redact Personal Info"
"Bracknell Forest Council","http://opendatacommunities.org/id/unitary-authority/bracknell-forest","","","Adults (18-64)","Long term Support - Community:Direct Payments","PS Adults 18-64 Long Term Support - Community:Direct Payments","Client Contributions Other",12/04/2018 00:00:00,"30333459",-317.3,"Redact Personal Info"
"Bracknell Forest Council","http://opendatacommunities.org/id/unitary-authority/bracknell-forest","","","Adults (18-64)","Long term Support - Community:Direct Payments","LD Adults 18-64 Long Term Support - Community:Direct Payments","Direct Payments to Clients",12/04/2018 00:00:00,"30333459",1907.48,"Redact Personal Info"
"Bracknell Forest Council","http://opendatacommunities.org/id/unitary-authority/bracknell-forest","","","Adults (18-64)","Long term Support - Community:Direct Payments","LD Adults 18-64 Long Term Support - Community:Direct Payments","Client Contributions Other",12/04/2018 00:00:00,"30333459",-81.04,"Redact Personal Info"
"Bracknell Forest Council","http://opendatacommunities.org/id/unitary-authority/bracknell-forest","","","Adults (18-64)","Long term Support - Community:Direct Payments","LD Adults 18-64 Long Term Support - Community:Direct Payments","Client Contributions Other",12/04/2018 00:00:00,"30333459",-33.08,"Redact Personal Info"
"Bracknell Forest Council","http://opendatacommunities.org/id/unitary-authority/bracknell-forest","","","Adults (18-64)","Long term Support - Community:Direct Payments","PS Adults 18-64 Long Term Support - Community:Direct Payments","Direct Payments to Clients",12/04/2018 00:00:00,"30333459",351.91,"Redact Personal Info"
"Bracknell Forest Council","http://opendatacommunities.org/id/unitary-authority/bracknell-forest","","","Adults (18-64)","Long term Support - Community:Direct Payments","LD Adults 18-64 Long Term Support - Community:Direct Payments","Direct Payments to Clients",12/04/2018 00:00:00,"30333459",684.94,"Redact Personal Info"
"Bracknell Forest Council","http://opendatacommunities.org/id/unitary-authority/bracknell-forest","","","Adults (18-64)","Long term Support - Community:Direct Payments","LD Adults 18-64 Long Term Support - Community:Direct Payments","Direct Payments to Clients",12/04/2018 00:00:00,"30333459",288.1,"Redact Personal Info"
"Bracknell Forest Council","http://opendatacommunities.org/id/unitary-authority/bracknell-forest","","","Adults (18-64)","Long term Support - Community:Direct Payments","SS Adults 18-64 Long Term Support - Community:Direct Payments","Direct Payments to Clients",12/04/2018 00:00:00,"30333459",174.92,"Redact Personal Info"
"Bracknell Forest Council","http://opendatacommunities.org/id/unitary-authority/bracknell-forest","","","Adults (18-64)","Long term Support - Community:Direct Payments","PS Adults 18-64 Long Term Support - Community:Direct Payments","Client Contributions Other",12/04/2018 00:00:00,"30333459",-236.36,"Redact Personal Info"
"Bracknell Forest Council","http://opendatacommunities.org/id/unitary-authority/bracknell-forest","","","Adults (18-64)","Long term Support - Community:Direct Payments","PS Adults 18-64 Long Term Support - Community:Direct Payments","Direct Payments to Clients",12/04/2018 00:00:00,"30333459",523.16,"Redact Personal Info"
"Bracknell Forest Council","http://opendatacommunities.org/id/unitary-authority/bracknell-forest","","","Adults (18-64)","Long term Support - Community:Direct Payments","PS Adults 18-64 Long Term Support - Community:Direct Payments","Direct Payments to Clients",12/04/2018 00:00:00,"30333459",5857.84,"Redact Personal Info"
"Bracknell Forest Council","http://opendatacommunities.org/id/unitary-authority/bracknell-forest","","","Adults (18-64)","Long term Support - Community:Direct Payments","PS Adults 18-64 Long Term Support - Community:Direct Payments","Direct Payments to Clients",12/04/2018 00:00:00,"30333459",1372.54,"Redact Personal Info"
"Bracknell Forest Council","http://opendatacommunities.org/id/unitary-authority/bracknell-forest","","","Adults (18-64)","Long term Support - Community:Direct Payments","PS Adults 18-64 Long Term Support - Community:Direct Payments","Client Contributions Other",12/04/2018 00:00:00,"30333459",-60.36,"Redact Personal Info"
"Bracknell Forest Council","http://opendatacommunities.org/id/unitary-authority/bracknell-forest","","","Adults (18-64)","Long term Support - Community:Direct Payments","PS Adults 18-64 Long Term Support - Community:Direct Payments","Client Contributions Other",12/04/2018 00:00:00,"30333459",-59.42,"Redact Personal Info"
"Bracknell Forest Council","http://opendatacommunities.org/id/unitary-authority/bracknell-forest","","","Adults (18-64)","Long term Support - Community:Direct Payments","PS Adults 18-64 Long Term Support - Community:Direct Payments","Direct Payments to Clients",12/04/2018 00:00:00,"30333459",862.23,"Redact Personal Info"
"Bracknell Forest Council","http://opendatacommunities.org/id/unitary-authority/bracknell-forest","","","Adults (18-64)","Long term Support - Community:Direct Payments","LD Adults 18-64 Long Term Support - Community:Direct Payments","Direct Payments to Clients",12/04/2018 00:00:00,"30333459",703,"Redact Personal Info"
"Bracknell Forest Council","http://opendatacommunities.org/id/unitary-authority/bracknell-forest","","","Adults (18-64)","Long term Support - Community:Direct Payments","PS Adults 18-64 Long Term Support - Community:Direct Payments","Direct Payments to Clients",12/04/2018 00:00:00,"30333459",798.17,"Redact Personal Info"
"Bracknell Forest Council","http://opendatacommunities.org/id/unitary-authority/bracknell-forest","","","Adults (18-64)","Long term Support - Community:Direct Payments","Autism Adults 18-64 Long Term Support - Community : Direct Payments","Direct Payments to Clients",12/04/2018 00:00:00,"30333459",-461.7,"Redact Personal Info"
"Bracknell Forest Council","http://opendatacommunities.org/id/unitary-authority/bracknell-forest","","","Adults (18-64)","Long term Support - Community:Direct Payments","Autism Adults 18-64 Long Term Support - Community : Direct Payments","Client Contributions Other",12/04/2018 00:00:00,"30333459",101.39,"Redact Personal Info"
"Bracknell Forest Council","http://opendatacommunities.org/id/unitary-authority/bracknell-forest","","","Adults (18-64)","Long term Support - Community:Direct Payments","LD Adults 18-64 Long Term Support - Community:Direct Payments","Direct Payments to Clients",12/04/2018 00:00:00,"30333459",2783.57,"Redact Personal Info"
"Bracknell Forest Council","http://opendatacommunities.org/id/unitary-authority/bracknell-forest","","","Adults (18-64)","Long term Support - Community:Direct Payments","LD Adults 18-64 Long Term Support - Community:Direct Payments","Client Contributions Other",12/04/2018 00:00:00,"30333459",-197.68,"Redact Personal Info"
"Bracknell Forest Council","http://opendatacommunities.org/id/unitary-authority/bracknell-forest","","","Adults (18-64)","Long term Support - Community:Direct Payments","LD Adults 18-64 Long Term Support - Community:Direct Payments","Direct Payments to Clients",12/04/2018 00:00:00,"30333459",408.25,"Redact Personal Info"
"Bracknell Forest Council","http://opendatacommunities.org/id/unitary-authority/bracknell-forest","","","Adults (18-64)","Long term Support - Community:Direct Payments","LD Adults 18-64 Long Term Support - Community:Direct Payments","Direct Payments to Clients",12/04/2018 00:00:00,"30333459",184.84,"Redact Personal Info"
"Bracknell Forest Council","http://opendatacommunities.org/id/unitary-authority/bracknell-forest","","","Adults (18-64)","Long term Support - Community:Direct Payments","LD Adults 18-64 Long Term Support - Community:Direct Payments","Client Contributions Other",12/04/2018 00:00:00,"30333459",-184.84,"Redact Personal Info"
"Bracknell Forest Council","http://opendatacommunities.org/id/unitary-authority/bracknell-forest","","","Adults (18-64)","Long term Support - Community:Direct Payments","PS Adults 18-64 Long Term Support - Community:Direct Payments","Client Contributions Other",12/04/2018 00:00:00,"30333459",-150.26,"Redact Personal Info"
"Bracknell Forest Council","http://opendatacommunities.org/id/unitary-authority/bracknell-forest","","","Adults (18-64)","Long Term Support - Nursing","LD Adults 18-64 Long Term Support - Nursing","Contracted Services",17/05/2018 00:00:00,"30335854",3352,"AVALON NURSING HOME"
"Bracknell Forest Council","http://opendatacommunities.org/id/unitary-authority/bracknell-forest","","","Adults (18-64)","Long term Support - Residential","LD Adults 18-64 Long Term Support - Residential","Contracted Services",17/05/2018 00:00:00,"30335854",6025.84,"AVON AUTISTIC FOUNDATION"
"Bracknell Forest Council","http://opendatacommunities.org/id/unitary-authority/bracknell-forest","","","Adults (18-64)","Long Term Support - Nursing","MC Adults 18-64 Long Term Support - Nursing","Contracted Services",17/05/2018 00:00:00,"30335854",3782.16,"BARCHESTER HEALTHCARE LTD"
"Bracknell Forest Council","http://opendatacommunities.org/id/unitary-authority/bracknell-forest","","","Adults (18-64)","Long Term Support - Nursing","PS Adults 18-64 Long Term Support - Nursing","Contracted Services",17/05/2018 00:00:00,"30335854",4031.04,"BARCHESTER HEALTHCARE LTD"
"Bracknell Forest Council","http://opendatacommunities.org/id/unitary-authority/bracknell-forest","","","Adults (18-64)","Long Term Support - Nursing","PS Adults 18-64 Long Term Support - Nursing","Contracted Services",17/05/2018 00:00:00,"30335854",5074.52,"BEACHER HALL NURSING CENTRE"
"Bracknell Forest Council","http://opendatacommunities.org/id/unitary-authority/bracknell-forest","","","Adults (18-64)","Long Term Support - Nursing","SS Adults 18-64 Long Term Support - Nursing","Contracted Services",17/05/2018 00:00:00,"30335854",4992.44,"BEACHER HALL NURSING CENTRE"
"Bracknell Forest Council","http://opendatacommunities.org/id/unitary-authority/bracknell-forest","","","Adults (18-64)","Long Term Support - Nursing","PS Adults 18-64 Long Term Support - Nursing","Contracted Services",17/05/2018 00:00:00,"30335854",4847.28,"BEACHER HALL NURSING CENTRE"
"Bracknell Forest Council","http://opendatacommunities.org/id/unitary-authority/bracknell-forest","","","Adults (18-64)","Long term Support - Residential","LD Adults 18-64 Long Term Support - Residential","Contracted Services",17/05/2018 00:00:00,"30335854",2391.76,"CARE LTD"
"Bracknell Forest Council","http://opendatacommunities.org/id/unitary-authority/bracknell-forest","","","Adults (18-64)","Long Term Support - Nursing","PS Adults 18-64 Long Term Support - Nursing","Contracted Services",17/05/2018 00:00:00,"30335854",2707.48,"CHD LIVING"
"Bracknell Forest Council","http://opendatacommunities.org/id/unitary-authority/bracknell-forest","","","Adults (18-64)","Long term Support - Residential","LD Adults 18-64 Long Term Support - Residential","Contracted Services",17/05/2018 00:00:00,"30335854",7146.2,"CHOICE LTD - CHOICE CARE GROUP"
"Bracknell Forest Council","http://opendatacommunities.org/id/unitary-authority/bracknell-forest","","","Adults (18-64)","Long term Support - Residential","LD Adults 18-64 Long Term Support - Residential","Contracted Services",17/05/2018 00:00:00,"30335854",9836,"CHOICE LTD - CHOICE CARE GROUP"
"Bracknell Forest Council","http://opendatacommunities.org/id/unitary-authority/bracknell-forest","","","Adults (18-64)","Long term Support - Residential","LD Adults 18-64 Long Term Support - Residential","Contracted Services",17/05/2018 00:00:00,"30335854",7753.44,"CHOICE LTD - CHOICE CARE GROUP"
"Bracknell Forest Council","http://opendatacommunities.org/id/unitary-authority/bracknell-forest","","","Adults (18-64)","Long term Support - Residential","LD Adults 18-64 Long Term Support - Residential","Contracted Services",17/05/2018 00:00:00,"30335854",8196.52,"CHOICE LTD - CHOICE CARE GROUP"
"Bracknell Forest Council","http://opendatacommunities.org/id/unitary-authority/bracknell-forest","","","Adults (18-64)","Long term Support - Residential","LD Adults 18-64 Long Term Support - Residential","Contracted Services",17/05/2018 00:00:00,"30335854",6625.14,"COMMUNITY THERAPEUTIC SERVICES"
"Bracknell Forest Council","http://opendatacommunities.org/id/unitary-authority/bracknell-forest","","","Adults (18-64)","Long Term Support - Nursing","LD Adults 18-64 Long Term Support - Nursing","Contracted Services",17/05/2018 00:00:00,"30335854",4400,"DORMY HOUSE (SUNNINGDALE) LTD"
"Bracknell Forest Council","http://opendatacommunities.org/id/unitary-authority/bracknell-forest","","","Adults (18-64)","Long term Support - Residential","MC Adults 18-64 Long Term Support - Residential","Contracted Services",17/05/2018 00:00:00,"30335854",3366.12,"DUNRAVEN HOUSE"
"Bracknell Forest Council","http://opendatacommunities.org/id/unitary-authority/bracknell-forest","","","Adults (18-64)","Long term Support - Residential","LD Adults 18-64 Long Term Support - Residential","Contracted Services",17/05/2018 00:00:00,"30335854",7700,"Fearnley House Care Home"
"Bracknell Forest Council","http://opendatacommunities.org/id/unitary-authority/bracknell-forest","","","Adults (18-64)","Long Term Support - Nursing","PS Adults 18-64 Long Term Support - Nursing","Contracted Services",17/05/2018 00:00:00,"30335854",2392.64,"FOUR SEASONS HEALTH CARE"
"Bracknell Forest Council","http://opendatacommunities.org/id/unitary-authority/bracknell-forest","","","Adults (18-64)","Long Term Support - Nursing","PS Adults 18-64 Long Term Support - Nursing","Contracted Services",17/05/2018 00:00:00,"30335854",5754.56,"FOUR SEASONS HEALTH CARE"
"Bracknell Forest Council","http://opendatacommunities.org/id/unitary-authority/bracknell-forest","","","Adults (18-64)","Long term Support - Residential","LD Adults 18-64 Long Term Support - Residential","Contracted Services",17/05/2018 00:00:00,"30335854",7460.04,"HERONSMEDE CARE HOME"
"Bracknell Forest Council","http://opendatacommunities.org/id/unitary-authority/bracknell-forest","","","Adults (18-64)","Long term Support - Residential","LD Adults 18-64 Long Term Support - Residential","Contracted Services",17/05/2018 00:00:00,"30335854",3185.08,"HOUSEMARTINS"
"Bracknell Forest Council","http://opendatacommunities.org/id/unitary-authority/bracknell-forest","","","Adults (18-64)","Long term Support - Residential","PS Adults 18-64 Long Term Support - Residential","Contracted Services",17/05/2018 00:00:00,"30335854",8296.28,"JASMINE HOUSE"
"Bracknell Forest Council","http://opendatacommunities.org/id/unitary-authority/bracknell-forest","","","Adults (18-64)","Long term Support - Residential","PS Adults 18-64 Long Term Support - Residential","Contracted Services",17/05/2018 00:00:00,"30335854",3625,"KINGS LODGE"
"Bracknell Forest Council","http://opendatacommunities.org/id/unitary-authority/bracknell-forest","","","Adults (18-64)","Long Term Support - Nursing","PS Adults 18-64 Long Term Support - Nursing","Contracted Services",17/05/2018 00:00:00,"30335854",3027.02,"KINGSCLEAR HOUSE LTD"
"Bracknell Forest Council","http://opendatacommunities.org/id/unitary-authority/bracknell-forest","","","Adults (18-64)","Long term Support - Residential","LD Adults 18-64 Long Term Support - Residential","Contracted Services",17/05/2018 00:00:00,"30335854",10878,"KISIMUL GROUP LTD"
"Bracknell Forest Council","http://opendatacommunities.org/id/unitary-authority/bracknell-forest","","","Adults (18-64)","Long Term Support - Nursing","PS Adults 18-64 Long Term Support - Nursing","Contracted Services",17/05/2018 00:00:00,"30335854",3468,"LONGLEA NURSING HOME"
"Bracknell Forest Council","http://opendatacommunities.org/id/unitary-authority/bracknell-forest","","","Adults (18-64)","Long term Support - Residential","PS Adults 18-64 Long Term Support - Residential","Contracted Services",17/05/2018 00:00:00,"30335854",2856,"NIGHTINGALES CARE HOME"
"Bracknell Forest Council","http://opendatacommunities.org/id/unitary-authority/bracknell-forest","","","Adults (18-64)","Long Term Support - Nursing","MH Adults 18-64 Long Term Support - Nursing","Contracted Services",17/05/2018 00:00:00,"30335854",2726.2,"NORTHWOOD NURSING HOME"
"Bracknell Forest Council","http://opendatacommunities.org/id/unitary-authority/bracknell-forest","","","Adults (18-64)","Long Term Support - Nursing","PS Adults 18-64 Long Term Support - Nursing","Contracted Services",17/05/2018 00:00:00,"30335854",7207.12,"OAKLEAF CARE"
"Bracknell Forest Council","http://opendatacommunities.org/id/unitary-authority/bracknell-forest","","","Adults (18-64)","Long term Support - Residential","LD Adults 18-64 Long Term Support - Residential","Contracted Services",17/05/2018 00:00:00,"30335854",6093.44,"STEPPING STONES RESETTLEMENT UNIT"
"Bracknell Forest Council","http://opendatacommunities.org/id/unitary-authority/bracknell-forest","","","Adults (18-64)","Long term Support - Residential","LD Adults 18-64 Long Term Support - Residential","Contracted Services",17/05/2018 00:00:00,"30335854",5509.52,"STROUD COURT COMMUNITY TRUST"
"Bracknell Forest Council","http://opendatacommunities.org/id/unitary-authority/bracknell-forest","","","Adults (18-64)","Long Term Support - Nursing","MC Adults 18-64 Long Term Support - Nursing","Contracted Services",17/05/2018 00:00:00,"30335854",5508,"SUNRISE (BAGSHOT)"
"Bracknell Forest Council","http://opendatacommunities.org/id/unitary-authority/bracknell-forest","","","Adults (18-64)","Long term Support - Residential","LD Adults 18-64 Long Term Support - Residential","Contracted Services",17/05/2018 00:00:00,"30335854",2463.12,"THE ANTHONY TOBY HOMES TRUST"
"Bracknell Forest Council","http://opendatacommunities.org/id/unitary-authority/bracknell-forest","","","Adults (18-64)","Long term Support - Residential","PS Adults 18-64 Long Term Support - Residential","Contracted Services",17/05/2018 00:00:00,"30335854",3361.92,"THE DONNINGTON RESIDENTIAL & NURSING HOME"
"Bracknell Forest Council","http://opendatacommunities.org/id/unitary-authority/bracknell-forest","","","Adults (18-64)","Long term Support - Residential","LD Adults 18-64 Long Term Support - Residential","Contracted Services",17/05/2018 00:00:00,"30335854",4938.32,"THE PINES"
"Bracknell Forest Council","http://opendatacommunities.org/id/unitary-authority/bracknell-forest","","","Adults (18-64)","Long term Support - Residential","LD Adults 18-64 Long Term Support - Residential","Contracted Services",17/05/2018 00:00:00,"30335854",13448.04,"VOYAGE"
"Bracknell Forest Council","http://opendatacommunities.org/id/unitary-authority/bracknell-forest","","","Adults (18-64)","Long term Support - Residential","LD Adults 18-64 Long Term Support - Residential","Contracted Services",17/05/2018 00:00:00,"30335854",388.36,"VOYAGE"
"Bracknell Forest Council","http://opendatacommunities.org/id/unitary-authority/bracknell-forest","","","Adults (18-64)","Long term Support - Residential","LD Adults 18-64 Long Term Support - Residential","Contracted Services",17/05/2018 00:00:00,"30335854",407.52,"VOYAGE"
"Bracknell Forest Council","http://opendatacommunities.org/id/unitary-authority/bracknell-forest","","","Adults (18-64)","Long term Support - Residential","LD Adults 18-64 Long Term Support - Residential","Contracted Services",17/05/2018 00:00:00,"30335854",5418.32,"VOYAGE"
"Bracknell Forest Council","http://opendatacommunities.org/id/unitary-authority/bracknell-forest","","","Adults (18-64)","Long term Support - Residential","LD Adults 18-64 Long Term Support - Residential","Contracted Services",17/05/2018 00:00:00,"30335854",6062.72,"VOYAGE"
"Bracknell Forest Council","http://opendatacommunities.org/id/unitary-authority/bracknell-forest","","","Adults (18-64)","Long term Support - Residential","LD Adults 18-64 Long Term Support - Residential","Contracted Services",17/05/2018 00:00:00,"30335854",6611.6,"VOYAGE"
"Bracknell Forest Council","http://opendatacommunities.org/id/unitary-authority/bracknell-forest","","","Adults (18-64)","Long term Support - Residential","LD Adults 18-64 Long Term Support - Residential","Contracted Services",17/05/2018 00:00:00,"30335854",6718.56,"VOYAGE"
"Bracknell Forest Council","http://opendatacommunities.org/id/unitary-authority/bracknell-forest","","","Adults (18-64)","Long term Support - Residential","LD Adults 18-64 Long Term Support - Residential","Contracted Services",17/05/2018 00:00:00,"30335854",6418.48,"VOYAGE"
"Bracknell Forest Council","http://opendatacommunities.org/id/unitary-authority/bracknell-forest","","","Adults (18-64)","Long term Support - Residential","LD Adults 18-64 Long Term Support - Residential","Contracted Services",17/05/2018 00:00:00,"30335854",4961.52,"VOYAGE CARE"
"Bracknell Forest Council","http://opendatacommunities.org/id/unitary-authority/bracknell-forest","","","Adults (18-64)","Long term Support - Community:Direct Payments","LD Adults 18-64 Long Term Support - Community:Direct Payments","Direct Payments to Clients",24/05/2018 00:00:00,"30336221",3195.5,"Redact Personal Info"
"Bracknell Forest Council","http://opendatacommunities.org/id/unitary-authority/bracknell-forest","","","Adults (18-64)","Long Term Support - Community:Supported Living","LD Adults 18-64 Long Term Support - Community:Supported Living","Other Support to Clients",24/05/2018 00:00:00,"30336222",1389.6,"BRACKNELL FOREST HOMES"
"Bracknell Forest Council","http://opendatacommunities.org/id/unitary-authority/bracknell-forest","","","Adults (18-64)","Long Term Support - Community:Supported Living","Autism Adults 18-64 Long Term Support - Community : Supported Living","Contracted Services",24/05/2018 00:00:00,"30336222",926.4,"CARDEA HEALTHCARE"
"Bracknell Forest Council","http://opendatacommunities.org/id/unitary-authority/bracknell-forest","","","Adults (18-64)","Long Term Support - Supported Accommodation","MH Adults 18-64 Long Term Support - Supported Accommodation","Contracted Services",24/05/2018 00:00:00,"30336222",4600,"CHERRYTREES CARE"
"Bracknell Forest Council","http://opendatacommunities.org/id/unitary-authority/bracknell-forest","","","Adults (18-64)","Long Term Support - Community:Supported Living","MH Adults 18-64 Long Term Support - Community:Supported Living","Contracted Services",24/05/2018 00:00:00,"30336222",1279.88,"CHESSEL LODGE"
"Bracknell Forest Council","http://opendatacommunities.org/id/unitary-authority/bracknell-forest","","","Adults (18-64)","Long term Support - Community:Homecare","LD Adults 18-64 Long Term Support - Community:Homecare","Contracted Services",24/05/2018 00:00:00,"30336222",155.17,"EXCEL SUPPORT SERVICES"
"Bracknell Forest Council","http://opendatacommunities.org/id/unitary-authority/bracknell-forest","","","Adults (18-64)","Long Term Support - Community:Supported Living","LD Adults 18-64 Long Term Support - Community:Supported Living","Contracted Services",24/05/2018 00:00:00,"30336222",123.52,"EXCEL SUPPORT SERVICES"
"Bracknell Forest Council","http://opendatacommunities.org/id/unitary-authority/bracknell-forest","","","Adults (18-64)","Long Term Support - Community:Supported Living","LD Adults 18-64 Long Term Support - Community:Supported Living","Contracted Services",24/05/2018 00:00:00,"30336222",324.24,"EXCEL SUPPORT SERVICES"
"Bracknell Forest Council","http://opendatacommunities.org/id/unitary-authority/bracknell-forest","","","Adults (18-64)","Long Term Support - Community:Supported Living","Autism Adults 18-64 Long Term Support - Community : Supported Living","Contracted Services",24/05/2018 00:00:00,"30336222",741.12,"EXCEL SUPPORT SERVICES"
"Bracknell Forest Council","http://opendatacommunities.org/id/unitary-authority/bracknell-forest","","","Adults (18-64)","Long Term Support - Community:Supported Living","LD Adults 18-64 Long Term Support - Community:Supported Living","Contracted Services",24/05/2018 00:00:00,"30336222",61.76,"EXCEL SUPPORT SERVICES"
"Bracknell Forest Council","http://opendatacommunities.org/id/unitary-authority/bracknell-forest","","","Adults (18-64)","Long term Support - Community:Homecare","LD Adults 18-64 Long Term Support - Community:Homecare","Contracted Services",24/05/2018 00:00:00,"30336222",1337.88,"Redact Personal Info"
"Bracknell Forest Council","http://opendatacommunities.org/id/unitary-authority/bracknell-forest","","","Adults (18-64)","Long term Support - Community:Homecare","LD Adults 18-64 Long Term Support - Community:Homecare","Contracted Services",24/05/2018 00:00:00,"30336222",648.48,"Redact Personal Info"
"Bracknell Forest Council","http://opendatacommunities.org/id/unitary-authority/bracknell-forest","","","Adults (18-64)","Long Term Support - Supported Accommodation","MH Adults 18-64 Long Term Support - Supported Accommodation","Contracted Services",24/05/2018 00:00:00,"30336222",1349.99,"LANGLEY HOUSE"
"Bracknell Forest Council","http://opendatacommunities.org/id/unitary-authority/bracknell-forest","","","Adults (18-64)","Long Term Support - Supported Accommodation","MH Adults 18-64 Long Term Support - Supported Accommodation","Contracted Services",24/05/2018 00:00:00,"30336222",2380,"LANGLEY HOUSE"
"Bracknell Forest Council","http://opendatacommunities.org/id/unitary-authority/bracknell-forest","","","Adults (18-64)","Long Term Support - Community:Other Long Term Care","LD Adults 18-64 Long Term Support - Community:Other Long Term Care","Contracted Services",24/05/2018 00:00:00,"30336222",961.32,"LODDON COURT/ DIMENSION (UK) LTD"
"Bracknell Forest Council","http://opendatacommunities.org/id/unitary-authority/bracknell-forest","","","Adults (18-64)","Long Term Support - Community:Supported Living","LD Adults 18-64 Long Term Support - Community:Supported Living","Contracted Services",24/05/2018 00:00:00,"30336222",247.04,"LOVINGANGELS CARE LTD"
"Bracknell Forest Council","http://opendatacommunities.org/id/unitary-authority/bracknell-forest","","","Adults (18-64)","Long Term Support - Community:Supported Living","LD Adults 18-64 Long Term Support - Community:Supported Living","Contracted Services",24/05/2018 00:00:00,"30336222",247.04,"LOVINGANGELS CARE LTD"
"Bracknell Forest Council","http://opendatacommunities.org/id/unitary-authority/bracknell-forest","","","Adults (18-64)","Long Term Support - Community:Supported Living","LD Adults 18-64 Long Term Support - Community:Supported Living","Contracted Services",24/05/2018 00:00:00,"30336222",61.76,"LOVINGANGELS CARE LTD"
"Bracknell Forest Council","http://opendatacommunities.org/id/unitary-authority/bracknell-forest","","","Adults (18-64)","Long Term Support - Community:Supported Living","LD Adults 18-64 Long Term Support - Community:Supported Living","Contracted Services",24/05/2018 00:00:00,"30336222",401.44,"LOVINGANGELS CARE LTD"
"Bracknell Forest Council","http://opendatacommunities.org/id/unitary-authority/bracknell-forest","","","Adults (18-64)","Long Term Support - Community:Supported Living","LD Adults 18-64 Long Term Support - Community:Supported Living","Contracted Services",24/05/2018 00:00:00,"30336222",2832.48,"LOVINGANGELS CARE LTD"
"Bracknell Forest Council","http://opendatacommunities.org/id/unitary-authority/bracknell-forest","","","Adults (18-64)","Long Term Support - Community:Supported Living","PS Adults 18-64 Long Term Support - Community:Supported Living","Other Support to Clients",24/05/2018 00:00:00,"30336222",1330,"Redact Personal Info"
"Bracknell Forest Council","http://opendatacommunities.org/id/unitary-authority/bracknell-forest","","","Adults (18-64)","Long Term Support - Community:Supported Living","LD Adults 18-64 Long Term Support - Community:Supported Living","Contracted Services",24/05/2018 00:00:00,"30336222",1688,"OPTALIS LTD"
"Bracknell Forest Council","http://opendatacommunities.org/id/unitary-authority/bracknell-forest","","","Adults (18-64)","Long Term Support - Community:Supported Living","PS Adults 18-64 Long Term Support - Community:Supported Living","Contracted Services",24/05/2018 00:00:00,"30336222",337.6,"OPTALIS LTD"
"Bracknell Forest Council","http://opendatacommunities.org/id/unitary-authority/bracknell-forest","","","Adults (18-64)","Long Term Support - Community:Supported Living","MH Adults 18-64 Long Term Support - Community:Supported Living","Other Support to Clients",24/05/2018 00:00:00,"30336222",900,"OXFORDSHIRE MIND HOUSING"
"Bracknell Forest Council","http://opendatacommunities.org/id/unitary-authority/bracknell-forest","","","Adults (18-64)","Long Term Support - Community:Supported Living","LD Adults 18-64 Long Term Support - Community:Supported Living","Contracted Services",24/05/2018 00:00:00,"30336222",1317,"PARITY FOR DISABILITY"
"Bracknell Forest Council","http://opendatacommunities.org/id/unitary-authority/bracknell-forest","","","Adults (18-64)","Long Term Support - Community:Supported Living","LD Adults 18-64 Long Term Support - Community:Supported Living","Contracted Services",24/05/2018 00:00:00,"30336222",1742.88,"PARITY FOR DISABILITY"
"Bracknell Forest Council","http://opendatacommunities.org/id/unitary-authority/bracknell-forest","","","Adults (18-64)","Long Term Support - Community:Supported Living","LD Adults 18-64 Long Term Support - Community:Supported Living","Contracted Services",24/05/2018 00:00:00,"30336222",2195,"PARITY FOR DISABILITY"
"Bracknell Forest Council","http://opendatacommunities.org/id/unitary-authority/bracknell-forest","","","Adults (18-64)","Long term Support - Community:Direct Payments","PS Adults 18-64 Long Term Support - Community:Direct Payments","Direct Payments to Clients",12/04/2018 00:00:00,"30333459",895.35,"Redact Personal Info"
"Bracknell Forest Council","http://opendatacommunities.org/id/unitary-authority/bracknell-forest","","","Adults (18-64)","Long term Support - Community:Direct Payments","LD Adults 18-64 Long Term Support - Community:Direct Payments","Direct Payments to Clients",12/04/2018 00:00:00,"30333459",765.21,"Redact Personal Info"
"Bracknell Forest Council","http://opendatacommunities.org/id/unitary-authority/bracknell-forest","","","Adults (18-64)","Long term Support - Community:Direct Payments","LD Adults 18-64 Long Term Support - Community:Direct Payments","Client Contributions Other",12/04/2018 00:00:00,"30333459",-291.94,"Redact Personal Info"
"Bracknell Forest Council","http://opendatacommunities.org/id/unitary-authority/bracknell-forest","","","Adults (18-64)","Long term Support - Community:Direct Payments","LD Adults 18-64 Long Term Support - Community:Direct Payments","Direct Payments to Clients",12/04/2018 00:00:00,"30333459",1167.5,"Redact Personal Info"
"Bracknell Forest Council","http://opendatacommunities.org/id/unitary-authority/bracknell-forest","","","Adults (18-64)","Long term Support - Community:Direct Payments","PS Adults 18-64 Long Term Support - Community:Direct Payments","Direct Payments to Clients",12/04/2018 00:00:00,"30333459",350.52,"Redact Personal Info"
"Bracknell Forest Council","http://opendatacommunities.org/id/unitary-authority/bracknell-forest","","","Adults (18-64)","Long term Support - Community:Direct Payments","PS Adults 18-64 Long Term Support - Community:Direct Payments","Direct Payments to Clients",12/04/2018 00:00:00,"30333459",3231.48,"Redact Personal Info"
"Bracknell Forest Council","http://opendatacommunities.org/id/unitary-authority/bracknell-forest","","","Adults (18-64)","Long term Support - Community:Direct Payments","LD Adults 18-64 Long Term Support - Community:Direct Payments","Direct Payments to Clients",12/04/2018 00:00:00,"30333459",1943.21,"Redact Personal Info"
"Bracknell Forest Council","http://opendatacommunities.org/id/unitary-authority/bracknell-forest","","","Adults (18-64)","Long term Support - Community:Direct Payments","LD Adults 18-64 Long Term Support - Community:Direct Payments","Client Contributions Other",12/04/2018 00:00:00,"30333459",69.78,"Redact Personal Info"
"Bracknell Forest Council","http://opendatacommunities.org/id/unitary-authority/bracknell-forest","","","Adults (18-64)","Long term Support - Community:Direct Payments","LD Adults 18-64 Long Term Support - Community:Direct Payments","Direct Payments to Clients",12/04/2018 00:00:00,"30333459",467.84,"Redact Personal Info"
"Bracknell Forest Council","http://opendatacommunities.org/id/unitary-authority/bracknell-forest","","","Adults (18-64)","Long term Support - Community:Direct Payments","PS Adults 18-64 Long Term Support - Community:Direct Payments","Direct Payments to Clients",12/04/2018 00:00:00,"30333459",699.78,"Redact Personal Info"
"Bracknell Forest Council","http://opendatacommunities.org/id/unitary-authority/bracknell-forest","","","Adults (18-64)","Long term Support - Community:Direct Payments","PS Adults 18-64 Long Term Support - Community:Direct Payments","Client Contributions Other",12/04/2018 00:00:00,"30333459",-219.42,"Redact Personal Info"
"Bracknell Forest Council","http://opendatacommunities.org/id/unitary-authority/bracknell-forest","","","Adults (18-64)","Long term Support - Community:Direct Payments","PS Adults 18-64 Long Term Support - Community:Direct Payments","Direct Payments to Clients",12/04/2018 00:00:00,"30333459",800,"Redact Personal Info"
"Bracknell Forest Council","http://opendatacommunities.org/id/unitary-authority/bracknell-forest","","","Adults (18-64)","Long Term Support - Community:Supported Living","PS Adults 18-64 Long Term Support - Community:Supported Living","Contracted Services",24/05/2018 00:00:00,"30336222",2328.8,"PARITY FOR DISABILITY"
"Bracknell Forest Council","http://opendatacommunities.org/id/unitary-authority/bracknell-forest","","","Adults (18-64)","Long Term Support - Community:Other Long Term Care","LD Adults 18-64 Long Term Support - Community:Other Long Term Care","Contracted Services",24/05/2018 00:00:00,"30336222",890.55,"QUALITY CARE PROVIDERS"
"Bracknell Forest Council","http://opendatacommunities.org/id/unitary-authority/bracknell-forest","","","Adults (18-64)","Long Term Support - Community:Supported Living","LD Adults 18-64 Long Term Support - Community:Supported Living","Contracted Services",24/05/2018 00:00:00,"30336222",30.88,"SORELLE SUPPORT"
"Bracknell Forest Council","http://opendatacommunities.org/id/unitary-authority/bracknell-forest","","","Adults (18-64)","Long Term Support - Community:Supported Living","LD Adults 18-64 Long Term Support - Community:Supported Living","Contracted Services",24/05/2018 00:00:00,"30336222",158.26,"SORELLE SUPPORT"
"Bracknell Forest Council","http://opendatacommunities.org/id/unitary-authority/bracknell-forest","","","Adults (18-64)","Long Term Support - Community:Supported Living","LD Adults 18-64 Long Term Support - Community:Supported Living","Other Support to Clients",24/05/2018 00:00:00,"30336222",335.82,"SORELLE SUPPORT"
"Bracknell Forest Council","http://opendatacommunities.org/id/unitary-authority/bracknell-forest","","","Adults (18-64)","Long Term Support - Community:Supported Living","LD Adults 18-64 Long Term Support - Community:Supported Living","Contracted Services",24/05/2018 00:00:00,"30336222",30.88,"SORELLE SUPPORT"
"Bracknell Forest Council","http://opendatacommunities.org/id/unitary-authority/bracknell-forest","","","Adults (18-64)","Long term Support - Community:Homecare","LD Adults 18-64 Long Term Support - Community:Homecare","Contracted Services",24/05/2018 00:00:00,"30336222",617.6,"THE LINK NURSING & CARE AGENCY"
"Bracknell Forest Council","http://opendatacommunities.org/id/unitary-authority/bracknell-forest","","","Adults (18-64)","Long term Support - Community:Homecare","LD Adults 18-64 Long Term Support - Community:Homecare","Contracted Services",24/05/2018 00:00:00,"30336222",652.84,"THE LINK NURSING & CARE AGENCY"
"Bracknell Forest Council","http://opendatacommunities.org/id/unitary-authority/bracknell-forest","","","Adults (18-64)","Long term Support - Community:Homecare","LD Adults 18-64 Long Term Support - Community:Homecare","Contracted Services",24/05/2018 00:00:00,"30336222",6299.52,"THE LINK NURSING & CARE AGENCY"
"Bracknell Forest Council","http://opendatacommunities.org/id/unitary-authority/bracknell-forest","","","Adults (18-64)","Long term Support - Community:Homecare","LD Adults 18-64 Long Term Support - Community:Homecare","Contracted Services",24/05/2018 00:00:00,"30336222",6052.48,"THE LINK NURSING & CARE AGENCY"
"Bracknell Forest Council","http://opendatacommunities.org/id/unitary-authority/bracknell-forest","","","Adults (18-64)","Long Term Support - Community:Supported Living","LD Adults 18-64 Long Term Support - Community:Supported Living","Contracted Services",24/05/2018 00:00:00,"30336222",4725.76,"THE LINK NURSING & CARE AGENCY"
"Bracknell Forest Council","http://opendatacommunities.org/id/unitary-authority/bracknell-forest","","","Adults (18-64)","Long Term Support - Community:Supported Living","LD Adults 18-64 Long Term Support - Community:Supported Living","Contracted Services",24/05/2018 00:00:00,"30336222",432.32,"THE LINK NURSING & CARE AGENCY"
"Bracknell Forest Council","http://opendatacommunities.org/id/unitary-authority/bracknell-forest","","","Adults (18-64)","Long Term Support - Community:Supported Living","LD Adults 18-64 Long Term Support - Community:Supported Living","Contracted Services",24/05/2018 00:00:00,"30336222",1235.2,"THE LINK NURSING & CARE AGENCY"
"Bracknell Forest Council","http://opendatacommunities.org/id/unitary-authority/bracknell-forest","","","Adults (18-64)","Long Term Support - Community:Supported Living","LD Adults 18-64 Long Term Support - Community:Supported Living","Contracted Services",24/05/2018 00:00:00,"30336222",1298.92,"THE LINK NURSING & CARE AGENCY"
"Bracknell Forest Council","http://opendatacommunities.org/id/unitary-authority/bracknell-forest","","","Adults (18-64)","Long Term Support - Community:Supported Living","LD Adults 18-64 Long Term Support - Community:Supported Living","Contracted Services",24/05/2018 00:00:00,"30336222",741.12,"THE LINK NURSING & CARE AGENCY"
"Bracknell Forest Council","http://opendatacommunities.org/id/unitary-authority/bracknell-forest","","","Adults (18-64)","Long Term Support - Community:Supported Living","LD Adults 18-64 Long Term Support - Community:Supported Living","Contracted Services",24/05/2018 00:00:00,"30336222",1298.92,"THE LINK NURSING & CARE AGENCY"
"Bracknell Forest Council","http://opendatacommunities.org/id/unitary-authority/bracknell-forest","","","Adults (18-64)","Long Term Support - Community:Supported Living","LD Adults 18-64 Long Term Support - Community:Supported Living","Contracted Services",24/05/2018 00:00:00,"30336222",4725.76,"THE LINK NURSING & CARE AGENCY"
"Bracknell Forest Council","http://opendatacommunities.org/id/unitary-authority/bracknell-forest","","","Adults (18-64)","Long term Support - Community:Homecare","Autism Adults 18-64 Long Term Support - Community : Homecare","Contracted Services",24/05/2018 00:00:00,"30336222",617.6,"THE LINK NURSING & CARE AGENCY"
"Bracknell Forest Council","http://opendatacommunities.org/id/unitary-authority/bracknell-forest","","","Adults (18-64)","Long Term Support - Community:Supported Living","LD Adults 18-64 Long Term Support - Community:Supported Living","Contracted Services",24/05/2018 00:00:00,"30336222",1231.34,"THE LINK NURSING & CARE AGENCY"
"Bracknell Forest Council","http://opendatacommunities.org/id/unitary-authority/bracknell-forest","","","Adults (18-64)","Long Term Support - Community:Supported Living","LD Adults 18-64 Long Term Support - Community:Supported Living","Contracted Services",24/05/2018 00:00:00,"30336222",216.16,"THE LINK NURSING & CARE AGENCY"
"Bracknell Forest Council","http://opendatacommunities.org/id/unitary-authority/bracknell-forest","","","Adults (18-64)","Long Term Support - Community:Supported Living","LD Adults 18-64 Long Term Support - Community:Supported Living","Contracted Services",24/05/2018 00:00:00,"30336222",712.32,"THE PINES"
"Bracknell Forest Council","http://opendatacommunities.org/id/unitary-authority/bracknell-forest","","","Adults (18-64)","Long Term Support - Supported Accommodation","MH Adults 18-64 Long Term Support - Supported Accommodation","Contracted Services",24/05/2018 00:00:00,"30336222",2788,"Redact Personal Info"
"Bracknell Forest Council","http://opendatacommunities.org/id/unitary-authority/bracknell-forest","","","Adults (18-64)","Long Term Support - Community:Supported Living","LD Adults 18-64 Long Term Support - Community:Supported Living","Contracted Services",24/05/2018 00:00:00,"30336222",857.2,"WAYS AND MEANS TRUST LIMITED"
"Bracknell Forest Council","http://opendatacommunities.org/id/unitary-authority/bracknell-forest","","","Adults (18-64)","Long term Support - Residential","SS Adults 18-64 Long Term Support - Residential","Contracted Services",24/05/2018 00:00:00,"30336222",4112.8,"WESC FOUNDATION/THE WEST OF ENGLAND SCHOOL AND COLLEGE"
"Bracknell Forest Council","http://opendatacommunities.org/id/unitary-authority/bracknell-forest","","","Adults (18-64)","Long Term Support - Community:Supported Living","LD Adults 18-64 Long Term Support - Community:Supported Living","Contracted Services",24/05/2018 00:00:00,"30336222",511.92,"YATELEY INDUSTRIES FOR THE DISABLED LTD"
"Bracknell Forest Council","http://opendatacommunities.org/id/unitary-authority/bracknell-forest","","","Adults (18-64)","Long term Support - Community:Direct Payments","PS Adults 18-64 Long Term Support - Community:Direct Payments","Client Contributions Other",12/04/2018 00:00:00,"30333459",-307.46,"Redact Personal Info"
"Bracknell Forest Council","http://opendatacommunities.org/id/unitary-authority/bracknell-forest","","","Adults (18-64)","Long term Support - Community:Direct Payments","PS Adults 18-64 Long Term Support - Community:Direct Payments","Client Contributions Other",12/04/2018 00:00:00,"30333459",-428.7,"Redact Personal Info"
"Bracknell Forest Council","http://opendatacommunities.org/id/unitary-authority/bracknell-forest","","","Adults (18-64)","Long term Support - Community:Direct Payments","PS Adults 18-64 Long Term Support - Community:Direct Payments","Direct Payments to Clients",12/04/2018 00:00:00,"30333459",1053.08,"Redact Personal Info"
"Bracknell Forest Council","http://opendatacommunities.org/id/unitary-authority/bracknell-forest","","","Adults (18-64)","Long term Support - Community:Direct Payments","PS Adults 18-64 Long Term Support - Community:Direct Payments","Direct Payments to Clients",12/04/2018 00:00:00,"30333459",223.84,"Redact Personal Info"
"Bracknell Forest Council","http://opendatacommunities.org/id/unitary-authority/bracknell-forest","","","Adults (18-64)","Long term Support - Community:Direct Payments","PS Adults 18-64 Long Term Support - Community:Direct Payments","Client Contributions Other",12/04/2018 00:00:00,"30333459",-223.84,"Redact Personal Info"
"Bracknell Forest Council","http://opendatacommunities.org/id/unitary-authority/bracknell-forest","","","Adults (18-64)","Long term Support - Community:Direct Payments","PS Adults 18-64 Long Term Support - Community:Direct Payments","Client Contributions Other",12/04/2018 00:00:00,"30333459",-414.34,"Redact Personal Info"
"Bracknell Forest Council","http://opendatacommunities.org/id/unitary-authority/bracknell-forest","","","Adults (18-64)","Long term Support - Community:Direct Payments","PS Adults 18-64 Long Term Support - Community:Direct Payments","Direct Payments to Clients",12/04/2018 00:00:00,"30333459",4009.93,"Redact Personal Info"
"Bracknell Forest Council","http://opendatacommunities.org/id/unitary-authority/bracknell-forest","","","Adults (18-64)","Long term Support - Community:Direct Payments","PS Adults 18-64 Long Term Support - Community:Direct Payments","Direct Payments to Clients",12/04/2018 00:00:00,"30333459",1221,"Redact Personal Info"
"Bracknell Forest Council","http://opendatacommunities.org/id/unitary-authority/bracknell-forest","","","Adults (18-64)","Long term Support - Community:Direct Payments","PS Adults 18-64 Long Term Support - Community:Direct Payments","Client Contributions Other",12/04/2018 00:00:00,"30333459",-95.94,"Redact Personal Info"
"Bracknell Forest Council","http://opendatacommunities.org/id/unitary-authority/bracknell-forest","","","Adults (18-64)","Long term Support - Community:Direct Payments","PS Adults 18-64 Long Term Support - Community:Direct Payments","Direct Payments to Clients",12/04/2018 00:00:00,"30333459",6342.92,"Redact Personal Info"
"Bracknell Forest Council","http://opendatacommunities.org/id/unitary-authority/bracknell-forest","","","Adults (18-64)","Long term Support - Community:Direct Payments","PS Adults 18-64 Long Term Support - Community:Direct Payments","Client Contributions Other",12/04/2018 00:00:00,"30333459",-204.04,"Redact Personal Info"
"Bracknell Forest Council","http://opendatacommunities.org/id/unitary-authority/bracknell-forest","","","Adults (18-64)","Long term Support - Community:Direct Payments","PS Adults 18-64 Long Term Support - Community:Direct Payments","Direct Payments to Clients",12/04/2018 00:00:00,"30333459",462.6,"Redact Personal Info"
"Bracknell Forest Council","http://opendatacommunities.org/id/unitary-authority/bracknell-forest","","","Adults (18-64)","Long Term Support - Community:Supported Living","LD Adults 18-64 Long Term Support - Community:Supported Living","Contracted Services",24/05/2018 00:00:00,"30336222",1023.84,"YATELEY INDUSTRIES FOR THE DISABLED LTD"
"Bracknell Forest Council","http://opendatacommunities.org/id/unitary-authority/bracknell-forest","","","Adults (18-64)","Long term Support - Community:Homecare","PS Adults 18-64 Long Term Support - Community:Homecare","Contracted Services",24/05/2018 00:00:00,"30336226",291.56,"CARE 1ST LTD"
"Bracknell Forest Council","http://opendatacommunities.org/id/unitary-authority/bracknell-forest","","","Adults (18-64)","Long term Support - Community:Homecare","PS Adults 18-64 Long Term Support - Community:Homecare","Contracted Services",24/05/2018 00:00:00,"30336226",8300.59,"CARE 1ST LTD"
"Bracknell Forest Council","http://opendatacommunities.org/id/unitary-authority/bracknell-forest","","","Adults (18-64)","Long term Support - Community:Homecare","PS Adults 18-64 Long Term Support - Community:Homecare","Contracted Services",24/05/2018 00:00:00,"30336226",394.44,"CARE 1ST LTD"
"Bracknell Forest Council","http://opendatacommunities.org/id/unitary-authority/bracknell-forest","","","Adults (18-64)","Long term Support - Community:Homecare","MC Adults 18-64 Long Term Support - Community:Homecare","Contracted Services",24/05/2018 00:00:00,"30336226",704.21,"LOVINGANGELS CARE LTD"
"Bracknell Forest Council","http://opendatacommunities.org/id/unitary-authority/bracknell-forest","","","Adults (18-64)","Long term Support - Community:Homecare","MH Adults 18-64 Long Term Support - Community:Homecare","Contracted Services",24/05/2018 00:00:00,"30336226",200.52,"LOVINGANGELS CARE LTD"
"Bracknell Forest Council","http://opendatacommunities.org/id/unitary-authority/bracknell-forest","","","Adults (18-64)","Long term Support - Community:Homecare","PS Adults 18-64 Long Term Support - Community:Homecare","Contracted Services",24/05/2018 00:00:00,"30336226",304.64,"LOVINGANGELS CARE LTD"
"Bracknell Forest Council","http://opendatacommunities.org/id/unitary-authority/bracknell-forest","","","Adults (18-64)","Long term Support - Community:Homecare","MH Adults 18-64 Long Term Support - Community:Homecare","Contracted Services",24/05/2018 00:00:00,"30336226",559.36,"OXFORD HOUSE COMMUNITY CARE"
"Bracknell Forest Council","http://opendatacommunities.org/id/unitary-authority/bracknell-forest","","","Adults (18-64)","Long term Support - Community:Homecare","MC Adults 18-64 Long Term Support - Community:Homecare","Contracted Services",24/05/2018 00:00:00,"30336226",1519.84,"Q CARE LTD"
"Bracknell Forest Council","http://opendatacommunities.org/id/unitary-authority/bracknell-forest","","","Adults (18-64)","Long term Support - Community:Homecare","MH Adults 18-64 Long Term Support - Community:Homecare","Contracted Services",24/05/2018 00:00:00,"30336226",165.2,"Q CARE LTD"
"Bracknell Forest Council","http://opendatacommunities.org/id/unitary-authority/bracknell-forest","","","Adults (18-64)","Long term Support - Community:Homecare","PS Adults 18-64 Long Term Support - Community:Homecare","Contracted Services",24/05/2018 00:00:00,"30336226",264.32,"Q CARE LTD"
"Bracknell Forest Council","http://opendatacommunities.org/id/unitary-authority/bracknell-forest","","","Adults (18-64)","Long term Support - Community:Homecare","PS Adults 18-64 Long Term Support - Community:Homecare","Contracted Services",24/05/2018 00:00:00,"30336226",231.28,"Q CARE LTD"
"Bracknell Forest Council","http://opendatacommunities.org/id/unitary-authority/bracknell-forest","","","Adults (18-64)","Long term Support - Community:Homecare","LD Adults 18-64 Long Term Support - Community:Homecare","Contracted Services",24/05/2018 00:00:00,"30336226",1197.48,"WATERSHED CARE SERVICES"
"Bracknell Forest Council","http://opendatacommunities.org/id/unitary-authority/bracknell-forest","","","Adults (18-64)","Long term Support - Community:Direct Payments","PS Adults 18-64 Long Term Support - Community:Direct Payments","Direct Payments to Clients",31/05/2018 00:00:00,"30336487",3993.37,"Redact Personal Info"
"Bracknell Forest Council","http://opendatacommunities.org/id/unitary-authority/bracknell-forest","","","Adults (18-64)","Long term Support - Community:Direct Payments","PS Adults 18-64 Long Term Support - Community:Direct Payments","Direct Payments to Clients",31/05/2018 00:00:00,"30336487",237.37,"Redact Personal Info"
"Bracknell Forest Council","http://opendatacommunities.org/id/unitary-authority/bracknell-forest","","","Adults (18-64)","Long Term Support - Community:Supported Living","LD Adults 18-64 Long Term Support - Community:Supported Living","Other Support to Clients",31/05/2018 00:00:00,"30336491",900,"Redact Personal Info"
"Bracknell Forest Council","http://opendatacommunities.org/id/unitary-authority/bracknell-forest","","","Adults (18-64)","Long Term Support - Community:Supported Living","LD Adults 18-64 Long Term Support - Community:Supported Living","Contracted Services",31/05/2018 00:00:00,"30336491",50.4,"BRACKNELL FOREST HOMES"
"Bracknell Forest Council","http://opendatacommunities.org/id/unitary-authority/bracknell-forest","","","Adults (18-64)","Long Term Support - Community:Supported Living","LD Adults 18-64 Long Term Support - Community:Supported Living","Other Support to Clients",31/05/2018 00:00:00,"30336491",113.44,"Redact Personal Info"
"Bracknell Forest Council","http://opendatacommunities.org/id/unitary-authority/bracknell-forest","","","Adults (18-64)","Long Term Support - Community:Supported Living","LD Adults 18-64 Long Term Support - Community:Supported Living","Other Support to Clients",31/05/2018 00:00:00,"30336491",47,"J MORTIMER PROPERTY MANAGEMENT LTD"
"Bracknell Forest Council","http://opendatacommunities.org/id/unitary-authority/bracknell-forest","","","Adults (18-64)","Long Term Support - Community:Supported Living","LD Adults 18-64 Long Term Support - Community:Supported Living","Other Support to Clients",31/05/2018 00:00:00,"30336491",127.8,"J MORTIMER PROPERTY MANAGEMENT LTD"
"Bracknell Forest Council","http://opendatacommunities.org/id/unitary-authority/bracknell-forest","","","Adults (18-64)","Long Term Support - Community:Supported Living","LD Adults 18-64 Long Term Support - Community:Supported Living","Other Support to Clients",31/05/2018 00:00:00,"30336491",900,"Redact Personal Info"
"Bracknell Forest Council","http://opendatacommunities.org/id/unitary-authority/bracknell-forest","","","Adults (18-64)","Long Term Support - Community:Supported Living","LD Adults 18-64 Long Term Support - Community:Supported Living","Other Support to Clients",31/05/2018 00:00:00,"30336491",51.6,"ROMANS LETTINGS BRACKNELL"
"Bracknell Forest Council","http://opendatacommunities.org/id/unitary-authority/bracknell-forest","","","Adults (18-64)","Long Term Support - Community:Supported Living","LD Adults 18-64 Long Term Support - Community:Supported Living","Other Support to Clients",31/05/2018 00:00:00,"30336491",203.24,"ROMANS LETTINGS BRACKNELL"
"Bracknell Forest Council","http://opendatacommunities.org/id/unitary-authority/bracknell-forest","","","Adults (18-64)","Long Term Support - Community:Supported Living","Autism Adults 18-64 Long Term Support - Community : Supported Living","Contracted Services",31/05/2018 00:00:00,"30336492",3705.6,"CARDEA HEALTHCARE"
"Bracknell Forest Council","http://opendatacommunities.org/id/unitary-authority/bracknell-forest","","","Adults (18-64)","Long Term Support - Community:Supported Living","LD Adults 18-64 Long Term Support - Community:Supported Living","Contracted Services",31/05/2018 00:00:00,"30336492",123.52,"CARDEA HEALTHCARE"
"Bracknell Forest Council","http://opendatacommunities.org/id/unitary-authority/bracknell-forest","","","Adults (18-64)","Long Term Support - Community:Supported Living","LD Adults 18-64 Long Term Support - Community:Supported Living","Contracted Services",31/05/2018 00:00:00,"30336492",494.08,"CARDEA HEALTHCARE"
"Bracknell Forest Council","http://opendatacommunities.org/id/unitary-authority/bracknell-forest","","","Adults (18-64)","Long Term Support - Community:Supported Living","LD Adults 18-64 Long Term Support - Community:Supported Living","Contracted Services",31/05/2018 00:00:00,"30336492",3799.88,"CARDEA HEALTHCARE"
"Bracknell Forest Council","http://opendatacommunities.org/id/unitary-authority/bracknell-forest","","","Adults (18-64)","Long Term Support - Community:Supported Living","LD Adults 18-64 Long Term Support - Community:Supported Living","Contracted Services",31/05/2018 00:00:00,"30336492",1899.8,"CARDEA HEALTHCARE"
"Bracknell Forest Council","http://opendatacommunities.org/id/unitary-authority/bracknell-forest","","","Adults (18-64)","Long Term Support - Community:Supported Living","LD Adults 18-64 Long Term Support - Community:Supported Living","Contracted Services",31/05/2018 00:00:00,"30336492",3799.88,"CARDEA HEALTHCARE"
"Bracknell Forest Council","http://opendatacommunities.org/id/unitary-authority/bracknell-forest","","","Adults (18-64)","Long Term Support - Community:Supported Living","LD Adults 18-64 Long Term Support - Community:Supported Living","Contracted Services",31/05/2018 00:00:00,"30336492",1899.8,"CARDEA HEALTHCARE"
"Bracknell Forest Council","http://opendatacommunities.org/id/unitary-authority/bracknell-forest","","","Adults (18-64)","Long Term Support - Community:Supported Living","LD Adults 18-64 Long Term Support - Community:Supported Living","Contracted Services",31/05/2018 00:00:00,"30336492",3799.88,"CARDEA HEALTHCARE"
"Bracknell Forest Council","http://opendatacommunities.org/id/unitary-authority/bracknell-forest","","","Adults (18-64)","Long Term Support - Community:Supported Living","LD Adults 18-64 Long Term Support - Community:Supported Living","Contracted Services",31/05/2018 00:00:00,"30336492",3799.88,"CARDEA HEALTHCARE"
"Bracknell Forest Council","http://opendatacommunities.org/id/unitary-authority/bracknell-forest","","","Adults (18-64)","Long Term Support - Community:Supported Living","LD Adults 18-64 Long Term Support - Community:Supported Living","Contracted Services",31/05/2018 00:00:00,"30336492",898.2,"DIMENSIONS (NSO) LTD"
"Bracknell Forest Council","http://opendatacommunities.org/id/unitary-authority/bracknell-forest","","","Adults (18-64)","Long term Support - Community:Homecare","LD Adults 18-64 Long Term Support - Community:Homecare","Contracted Services",31/05/2018 00:00:00,"30336492",1474.52,"DIMENSIONS (NSO) LTD"
"Bracknell Forest Council","http://opendatacommunities.org/id/unitary-authority/bracknell-forest","","","Adults (18-64)","Long term Support - Community:Homecare","Autism Adults 18-64 Long Term Support - Community : Homecare","Contracted Services",31/05/2018 00:00:00,"30336492",247.04,"EXCEL SUPPORT SERVICES"
"Bracknell Forest Council","http://opendatacommunities.org/id/unitary-authority/bracknell-forest","","","Adults (18-64)","Long Term Support - Community:Supported Living","Autism Adults 18-64 Long Term Support - Community : Supported Living","Contracted Services",31/05/2018 00:00:00,"30336492",494.08,"EXCEL SUPPORT SERVICES"
"Bracknell Forest Council","http://opendatacommunities.org/id/unitary-authority/bracknell-forest","","","Adults (18-64)","Long Term Support - Community:Supported Living","Autism Adults 18-64 Long Term Support - Community : Supported Living","Contracted Services",31/05/2018 00:00:00,"30336492",432.32,"EXCEL SUPPORT SERVICES"
"Bracknell Forest Council","http://opendatacommunities.org/id/unitary-authority/bracknell-forest","","","Adults (18-64)","Long Term Support - Community:Supported Living","Autism Adults 18-64 Long Term Support - Community : Supported Living","Contracted Services",31/05/2018 00:00:00,"30336492",247.04,"EXCEL SUPPORT SERVICES"
"Bracknell Forest Council","http://opendatacommunities.org/id/unitary-authority/bracknell-forest","","","Adults (18-64)","Long Term Support - Community:Supported Living","LD Adults 18-64 Long Term Support - Community:Supported Living","Contracted Services",31/05/2018 00:00:00,"30336492",3983.8,"EXCEL SUPPORT SERVICES"
"Bracknell Forest Council","http://opendatacommunities.org/id/unitary-authority/bracknell-forest","","","Adults (18-64)","Long Term Support - Community:Supported Living","LD Adults 18-64 Long Term Support - Community:Supported Living","Contracted Services",31/05/2018 00:00:00,"30336492",207,"EXCEL SUPPORT SERVICES"
"Bracknell Forest Council","http://opendatacommunities.org/id/unitary-authority/bracknell-forest","","","Adults (18-64)","Long Term Support - Community:Supported Living","LD Adults 18-64 Long Term Support - Community:Supported Living","Contracted Services",31/05/2018 00:00:00,"30336492",931.34,"EXCEL SUPPORT SERVICES"
"Bracknell Forest Council","http://opendatacommunities.org/id/unitary-authority/bracknell-forest","","","Adults (18-64)","Long Term Support - Community:Supported Living","LD Adults 18-64 Long Term Support - Community:Supported Living","Contracted Services",31/05/2018 00:00:00,"30336492",1853.65,"EXCEL SUPPORT SERVICES"
"Bracknell Forest Council","http://opendatacommunities.org/id/unitary-authority/bracknell-forest","","","Adults (18-64)","Long Term Support - Community:Supported Living","LD Adults 18-64 Long Term Support - Community:Supported Living","Contracted Services",31/05/2018 00:00:00,"30336492",988.44,"EXCEL SUPPORT SERVICES"
"Bracknell Forest Council","http://opendatacommunities.org/id/unitary-authority/bracknell-forest","","","Adults (18-64)","Long Term Support - Community:Supported Living","LD Adults 18-64 Long Term Support - Community:Supported Living","Contracted Services",31/05/2018 00:00:00,"30336492",1049.92,"EXCEL SUPPORT SERVICES"
"Bracknell Forest Council","http://opendatacommunities.org/id/unitary-authority/bracknell-forest","","","Adults (18-64)","Long Term Support - Community:Supported Living","LD Adults 18-64 Long Term Support - Community:Supported Living","Contracted Services",31/05/2018 00:00:00,"30336492",741.12,"EXCEL SUPPORT SERVICES"
"Bracknell Forest Council","http://opendatacommunities.org/id/unitary-authority/bracknell-forest","","","Adults (18-64)","Long Term Support - Community:Supported Living","LD Adults 18-64 Long Term Support - Community:Supported Living","Contracted Services",31/05/2018 00:00:00,"30336492",844.35,"EXCEL SUPPORT SERVICES"
"Bracknell Forest Council","http://opendatacommunities.org/id/unitary-authority/bracknell-forest","","","Adults (18-64)","Long Term Support - Community:Supported Living","LD Adults 18-64 Long Term Support - Community:Supported Living","Contracted Services",31/05/2018 00:00:00,"30336492",2995.64,"EXCEL SUPPORT SERVICES"
"Bracknell Forest Council","http://opendatacommunities.org/id/unitary-authority/bracknell-forest","","","Adults (18-64)","Long Term Support - Community:Supported Living","LD Adults 18-64 Long Term Support - Community:Supported Living","Contracted Services",31/05/2018 00:00:00,"30336492",2099.84,"EXCEL SUPPORT SERVICES"
"Bracknell Forest Council","http://opendatacommunities.org/id/unitary-authority/bracknell-forest","","","Adults (18-64)","Long Term Support - Community:Supported Living","LD Adults 18-64 Long Term Support - Community:Supported Living","Contracted Services",31/05/2018 00:00:00,"30336492",370.56,"EXCEL SUPPORT SERVICES"
"Bracknell Forest Council","http://opendatacommunities.org/id/unitary-authority/bracknell-forest","","","Adults (18-64)","Long Term Support - Community:Supported Living","LD Adults 18-64 Long Term Support - Community:Supported Living","Contracted Services",31/05/2018 00:00:00,"30336492",2346.88,"EXCEL SUPPORT SERVICES"
"Bracknell Forest Council","http://opendatacommunities.org/id/unitary-authority/bracknell-forest","","","Adults (18-64)","Long Term Support - Community:Supported Living","LD Adults 18-64 Long Term Support - Community:Supported Living","Contracted Services",31/05/2018 00:00:00,"30336492",6522.58,"EXCEL SUPPORT SERVICES"
"Bracknell Forest Council","http://opendatacommunities.org/id/unitary-authority/bracknell-forest","","","Adults (18-64)","Long Term Support - Community:Supported Living","LD Adults 18-64 Long Term Support - Community:Supported Living","Contracted Services",31/05/2018 00:00:00,"30336492",679.64,"EXCEL SUPPORT SERVICES"
"Bracknell Forest Council","http://opendatacommunities.org/id/unitary-authority/bracknell-forest","","","Adults (18-64)","Long Term Support - Community:Supported Living","LD Adults 18-64 Long Term Support - Community:Supported Living","Contracted Services",31/05/2018 00:00:00,"30336492",207,"EXCEL SUPPORT SERVICES"
"Bracknell Forest Council","http://opendatacommunities.org/id/unitary-authority/bracknell-forest","","","Adults (18-64)","Long term Support - Community:Homecare","LD Adults 18-64 Long Term Support - Community:Homecare","Contracted Services",31/05/2018 00:00:00,"30336492",4359.02,"EXCEL SUPPORT SERVICES"
"Bracknell Forest Council","http://opendatacommunities.org/id/unitary-authority/bracknell-forest","","","Adults (18-64)","Long term Support - Community:Homecare","LD Adults 18-64 Long Term Support - Community:Homecare","Contracted Services",31/05/2018 00:00:00,"30336492",432.32,"EXCEL SUPPORT SERVICES"
"Bracknell Forest Council","http://opendatacommunities.org/id/unitary-authority/bracknell-forest","","","Adults (18-64)","Long term Support - Community:Homecare","LD Adults 18-64 Long Term Support - Community:Homecare","Contracted Services",31/05/2018 00:00:00,"30336492",4173.74,"EXCEL SUPPORT SERVICES"
"Bracknell Forest Council","http://opendatacommunities.org/id/unitary-authority/bracknell-forest","","","Adults (18-64)","Long term Support - Community:Homecare","LD Adults 18-64 Long Term Support - Community:Homecare","Contracted Services",31/05/2018 00:00:00,"30336492",4034.78,"EXCEL SUPPORT SERVICES"
"Bracknell Forest Council","http://opendatacommunities.org/id/unitary-authority/bracknell-forest","","","Adults (18-64)","Long term Support - Community:Homecare","LD Adults 18-64 Long Term Support - Community:Homecare","Contracted Services",31/05/2018 00:00:00,"30336492",1111.68,"EXCEL SUPPORT SERVICES"
"Bracknell Forest Council","http://opendatacommunities.org/id/unitary-authority/bracknell-forest","","","Adults (18-64)","Long term Support - Community:Homecare","LD Adults 18-64 Long Term Support - Community:Homecare","Contracted Services",31/05/2018 00:00:00,"30336492",1466.8,"EXCEL SUPPORT SERVICES"
"Bracknell Forest Council","http://opendatacommunities.org/id/unitary-authority/bracknell-forest","","","Adults (18-64)","Long term Support - Community:Homecare","LD Adults 18-64 Long Term Support - Community:Homecare","Contracted Services",31/05/2018 00:00:00,"30336492",4355.57,"EXCEL SUPPORT SERVICES"
"Bracknell Forest Council","http://opendatacommunities.org/id/unitary-authority/bracknell-forest","","","Adults (18-64)","Long term Support - Community:Homecare","LD Adults 18-64 Long Term Support - Community:Homecare","Contracted Services",31/05/2018 00:00:00,"30336492",185.28,"EXCEL SUPPORT SERVICES"
"Bracknell Forest Council","http://opendatacommunities.org/id/unitary-authority/bracknell-forest","","","Adults (18-64)","Long term Support - Community:Homecare","LD Adults 18-64 Long Term Support - Community:Homecare","Contracted Services",31/05/2018 00:00:00,"30336492",413.57,"EXCEL SUPPORT SERVICES"
"Bracknell Forest Council","http://opendatacommunities.org/id/unitary-authority/bracknell-forest","","","Adults (18-64)","Long term Support - Community:Homecare","LD Adults 18-64 Long Term Support - Community:Homecare","Contracted Services",31/05/2018 00:00:00,"30336492",1852.8,"EXCEL SUPPORT SERVICES"
"Bracknell Forest Council","http://opendatacommunities.org/id/unitary-authority/bracknell-forest","","","Adults (18-64)","Long Term Support - Community:Supported Living","Autism Adults 18-64 Long Term Support - Community : Supported Living","Contracted Services",31/05/2018 00:00:00,"30336492",617.6,"EXCEL SUPPORT SERVICES- POOLE"
"Bracknell Forest Council","http://opendatacommunities.org/id/unitary-authority/bracknell-forest","","","Adults (18-64)","Long term Support - Community:Homecare","LD Adults 18-64 Long Term Support - Community:Homecare","Contracted Services",31/05/2018 00:00:00,"30336492",51.03,"GREENSLADE SUPPORT SOLUTIONS"
"Bracknell Forest Council","http://opendatacommunities.org/id/unitary-authority/bracknell-forest","","","Adults (18-64)","Short Term Support Other","PS Adults 18-64 Other Short Term support","Contracted Services",31/05/2018 00:00:00,"30336492",5002.2,"KCARE NURSING AGENCY LTD"
"Bracknell Forest Council","http://opendatacommunities.org/id/unitary-authority/bracknell-forest","","","Adults (18-64)","Long Term Support - Community:Supported Living","PS Adults 18-64 Long Term Support - Community:Supported Living","Contracted Services",31/05/2018 00:00:00,"30336492",2669.38,"OXFORD HOUSE COMMUNITY CARE"
"Bracknell Forest Council","http://opendatacommunities.org/id/unitary-authority/bracknell-forest","","","Adults (18-64)","Long Term Support - Community:Supported Living","LD Adults 18-64 Long Term Support - Community:Supported Living","Other Support to Clients",31/05/2018 00:00:00,"30336492",255,"SUPPORT HORIZONS CIC"
"Bracknell Forest Council","http://opendatacommunities.org/id/unitary-authority/bracknell-forest","","","Adults (18-64)","Long Term Support - Community:Supported Living","LD Adults 18-64 Long Term Support - Community:Supported Living","Contracted Services",31/05/2018 00:00:00,"30336492",447.76,"SUPPORT HORIZONS CIC"
"Bracknell Forest Council","http://opendatacommunities.org/id/unitary-authority/bracknell-forest","","","Adults (18-64)","Long Term Support - Community:Supported Living","LD Adults 18-64 Long Term Support - Community:Supported Living","Contracted Services",31/05/2018 00:00:00,"30336492",1034.48,"SUPPORT HORIZONS CIC"
"Bracknell Forest Council","http://opendatacommunities.org/id/unitary-authority/bracknell-forest","","","Adults (18-64)","Long Term Support - Community:Supported Living","LD Adults 18-64 Long Term Support - Community:Supported Living","Contracted Services",31/05/2018 00:00:00,"30336492",1034.48,"SUPPORT HORIZONS CIC"
"Bracknell Forest Council","http://opendatacommunities.org/id/unitary-authority/bracknell-forest","","","Adults (18-64)","Long term Support - Community:Homecare","LD Adults 18-64 Long Term Support - Community:Homecare","Contracted Services",31/05/2018 00:00:00,"30336492",710.24,"SUPPORT HORIZONS CIC"
"Bracknell Forest Council","http://opendatacommunities.org/id/unitary-authority/bracknell-forest","","","Adults (18-64)","Long Term Support - Community:Supported Living","LD Adults 18-64 Long Term Support - Community:Supported Living","Contracted Services",31/05/2018 00:00:00,"30336492",270,"THE ARK TRUST LTD"
"Bracknell Forest Council","http://opendatacommunities.org/id/unitary-authority/bracknell-forest","","","Adults (18-64)","Long Term Support - Community:Supported Living","LD Adults 18-64 Long Term Support - Community:Supported Living","Contracted Services",31/05/2018 00:00:00,"30336492",1080,"THE ARK TRUST LTD"
"Bracknell Forest Council","http://opendatacommunities.org/id/unitary-authority/bracknell-forest","","","Adults (18-64)","Long Term Support - Community:Supported Living","LD Adults 18-64 Long Term Support - Community:Supported Living","Contracted Services",31/05/2018 00:00:00,"30336492",720,"THE ARK TRUST LTD"
"Bracknell Forest Council","http://opendatacommunities.org/id/unitary-authority/bracknell-forest","","","Adults (18-64)","Long Term Support - Community:Supported Living","LD Adults 18-64 Long Term Support - Community:Supported Living","Contracted Services",31/05/2018 00:00:00,"30336492",720,"THE ARK TRUST LTD"
"Bracknell Forest Council","http://opendatacommunities.org/id/unitary-authority/bracknell-forest","","","Adults (18-64)","Long Term Support - Community:Supported Living","LD Adults 18-64 Long Term Support - Community:Supported Living","Contracted Services",31/05/2018 00:00:00,"30336492",218,"THRIVE"
"Bracknell Forest Council","http://opendatacommunities.org/id/unitary-authority/bracknell-forest","","","Adults (18-64)","Long Term Support - Community:Supported Living","LD Adults 18-64 Long Term Support - Community:Supported Living","Contracted Services",31/05/2018 00:00:00,"30336492",224,"THRIVE"
"Bracknell Forest Council","http://opendatacommunities.org/id/unitary-authority/bracknell-forest","","","Assistive Equipment & Technology","Assistive Equipment & Technology","Assistive Equipment & Technology","Equipment - Purchase",19/01/2018 00:00:00,"6659686",640,"EQUIP4WORK LTD"
"Bracknell Forest Council","http://opendatacommunities.org/id/unitary-authority/bracknell-forest","","","Assistive Equipment & Technology","Assistive Equipment & Technology","Assistive Equipment & Technology","Contracted Services",19/04/2018 00:00:00,"6660362",129273.1,"WEST BERKSHIRE COUNCIL"
"Bracknell Forest Council","http://opendatacommunities.org/id/unitary-authority/bracknell-forest","","","Assistive Equipment & Technology","Assistive Equipment & Technology","Assistive Equipment & Technology","Contracted Services",25/04/2018 00:00:00,"6660438",74730,"WEST BERKSHIRE COUNCIL"
"Bracknell Forest Council","http://opendatacommunities.org/id/unitary-authority/bracknell-forest","","","Assistive Equipment & Technology","Assistive Equipment & Technology","Assistive Equipment & Technology","Contracted Services",25/04/2018 00:00:00,"6660439",8856.15,"WEST BERKSHIRE COUNCIL"
"Bracknell Forest Council","http://opendatacommunities.org/id/unitary-authority/bracknell-forest","","","Assistive Equipment & Technology","Assistive Equipment & Technology","Assistive Equipment & Technology","Equipment - Purchase",16/04/2018 00:00:00,"6660497",541,"R & A HAINES BUILDING CONTRACTORS LTD"
"Bracknell Forest Council","http://opendatacommunities.org/id/unitary-authority/bracknell-forest","","","Assistive Equipment & Technology","Assistive Equipment & Technology","Assistive Equipment & Technology","Contracted Services",31/03/2018 00:00:00,"6660508",5652,"AGE UK"
"Bracknell Forest Council","http://opendatacommunities.org/id/unitary-authority/bracknell-forest","","","Assistive Equipment & Technology","Assistive Equipment & Technology","Assistive Equipment & Technology","Equipment - Purchase",03/05/2018 00:00:00,"6660886",967,"R & A HAINES BUILDING CONTRACTORS LTD"
"Bracknell Forest Council","http://opendatacommunities.org/id/unitary-authority/bracknell-forest","","","Assistive Equipment & Technology","Assistive Equipment & Technology","Assistive Equipment & Technology","Equipment - Purchase",17/05/2018 00:00:00,"6661604",954,"R & A HAINES BUILDING CONTRACTORS LTD"
"Bracknell Forest Council","http://opendatacommunities.org/id/unitary-authority/bracknell-forest","","","Asylum Seekers","Asylum Seekers LAC","Asylum Seekers (UASC)","Contracted Services",31/01/2018 00:00:00,"6660131",-853.73,"IASPIRE CARE SERVICES LIMITED"
"Bracknell Forest Council","http://opendatacommunities.org/id/unitary-authority/bracknell-forest","","","Asylum Seekers","Asylum Seekers LAC","Asylum Seekers (UASC)","Contracted Services",30/04/2018 00:00:00,"6661192",3150,"SUNBEAM FOSTERING AGENCY LIMITED"
"Bracknell Forest Council","http://opendatacommunities.org/id/unitary-authority/bracknell-forest","","","Asylum Seekers","Asylum Seekers LAC","Asylum Seekers (UASC)","Contracted Services",30/04/2018 00:00:00,"6661193",3150,"SUNBEAM FOSTERING AGENCY LIMITED"
"Bracknell Forest Council","http://opendatacommunities.org/id/unitary-authority/bracknell-forest","","","Bracknell Library - Introduction Self Service","","","Construction - Contract Payments",23/03/2018 00:00:00,"6659444",920,"SCS SECURITY CONTROL SYSTEMS"
"Bracknell Forest Council","http://opendatacommunities.org/id/unitary-authority/bracknell-forest","","","Bracknell Library - Introduction Self Service","","","Construction - Contract Payments",13/03/2018 00:00:00,"6659776",1000,"SCS SECURITY CONTROL SYSTEMS"
"Bracknell Forest Council","http://opendatacommunities.org/id/unitary-authority/bracknell-forest","","","Bracknell Library - Introduction Self Service","","","Construction - Contract Payments",13/03/2018 00:00:00,"6659777",920,"SCS SECURITY CONTROL SYSTEMS"
"Bracknell Forest Council","http://opendatacommunities.org/id/unitary-authority/bracknell-forest","","","Bracknell Library - Introduction Self Service","","","IT Consultants",26/04/2018 00:00:00,"6660421",2990,"FG LIBRARY PRODUCTS"
"Bracknell Forest Council","http://opendatacommunities.org/id/unitary-authority/bracknell-forest","","","Bracknell Library - Introduction Self Service","","","IT Consultants",26/04/2018 00:00:00,"6660421",500,"FG LIBRARY PRODUCTS"
"Bracknell Forest Council","http://opendatacommunities.org/id/unitary-authority/bracknell-forest","","","Bracknell Library - Introduction Self Service","","","Construction - Contract Payments",24/04/2018 00:00:00,"6660906",11305,"SHORTS ELECTRICAL LTD"
"Bracknell Forest Council","http://opendatacommunities.org/id/unitary-authority/bracknell-forest","","","Bracknell Library - Introduction Self Service","","","IT Consultants",08/05/2018 00:00:00,"6661118",620,"GRESSWELL"
"Bracknell Forest Council","http://opendatacommunities.org/id/unitary-authority/bracknell-forest","","","Building Control","Building Regulations","Building Regulations","Professional Subscriptions & Legal Practising Cert",08/03/2018 00:00:00,"6660218",2459.44,"DISTRICT SURVEYORS LTD T/A LABC"
"Bracknell Forest Council","http://opendatacommunities.org/id/unitary-authority/bracknell-forest","","","Business Support","Premises Development","Easthampstead Park Centre - Bar","Cost of Goods Sold",20/03/2018 00:00:00,"6658532",768.67,"MATTHEW CLARK WHOLESALE"
"Bracknell Forest Council","http://opendatacommunities.org/id/unitary-authority/bracknell-forest","","","Business Support","Premises Development","Easthampstead Park Conference Centre","R&M - Reactive",07/03/2018 00:00:00,"6658537",565,"DSC SECURITY"
"Bracknell Forest Council","http://opendatacommunities.org/id/unitary-authority/bracknell-forest","","","Business Support","Premises Development","Easthampstead Park Conference Centre","R&M - Service Contracts",17/03/2018 00:00:00,"6658653",1777.04,"HONEYWELL / NOVAR SYSTEMS LTD"
"Bracknell Forest Council","http://opendatacommunities.org/id/unitary-authority/bracknell-forest","","","Business Support","Premises Development","Easthampstead Park Conference Centre","R&M - Reactive",30/03/2018 00:00:00,"6658986",1580,"S R INDUSTRIAL LTD"
"Bracknell Forest Council","http://opendatacommunities.org/id/unitary-authority/bracknell-forest","","","Business Support","Premises Development","Easthampstead Park Conference Centre","Laundry",31/03/2018 00:00:00,"6658999",1005.98,"CLEAN LINEN SERVICES LTD"
"Bracknell Forest Council","http://opendatacommunities.org/id/unitary-authority/bracknell-forest","","","Business Support","Premises Development","Easthampstead Park Conference Centre","Laundry",31/03/2018 00:00:00,"6659000",750.02,"CLEAN LINEN SERVICES LTD"
"Bracknell Forest Council","http://opendatacommunities.org/id/unitary-authority/bracknell-forest","","","Business Support","Premises Development","Easthampstead Park Conference Centre","Cleaning materials",22/02/2018 00:00:00,"6659072",1277.49,"ALLIANCE DISPOSABLES LTD"
"Bracknell Forest Council","http://opendatacommunities.org/id/unitary-authority/bracknell-forest","","","Business Support","Premises Development","Waterside Park - Building B","Electricity",06/04/2018 00:00:00,"6659096",587.76,"SOUTHERN ELECTRIC PLC"
"Bracknell Forest Council","http://opendatacommunities.org/id/unitary-authority/bracknell-forest","","","Business Support","Premises Development","Waterside Park - Building C","Electricity",06/04/2018 00:00:00,"6659098",776.86,"SOUTHERN ELECTRIC PLC"
"Bracknell Forest Council","http://opendatacommunities.org/id/unitary-authority/bracknell-forest","","","Business Support","Premises Development","Easthampstead Park Conference Centre","R&M - Service Contracts",04/04/2018 00:00:00,"6659143",4300,"REFLEX LTD"
"Bracknell Forest Council","http://opendatacommunities.org/id/unitary-authority/bracknell-forest","","","Business Support","Premises Development","The Peel Centre","Legal Fees",31/03/2018 00:00:00,"6659144",20000,"Redact Personal Info"
"Bracknell Forest Council","http://opendatacommunities.org/id/unitary-authority/bracknell-forest","","","Business Support","Premises Development","Easthampstead Park Conference Centre","Window Cleaning",04/04/2018 00:00:00,"6659160",685,"SKS WINDOW CLEANING LTD"
"Bracknell Forest Council","http://opendatacommunities.org/id/unitary-authority/bracknell-forest","","","Business Support","Premises Development","Waterside Park - Building B","Other Fees for Bought-in Services",31/03/2018 00:00:00,"6659255",4500,"AXON SERVICES"
"Bracknell Forest Council","http://opendatacommunities.org/id/unitary-authority/bracknell-forest","","","Business Support","Premises Development","Commercial Properties","Other Fees for Bought-in Services",31/03/2018 00:00:00,"6659256",1220,"CLEARWAY ENVIRONMENTAL SERVICES"
"Bracknell Forest Council","http://opendatacommunities.org/id/unitary-authority/bracknell-forest","","","Business Support","Premises Development","Waterside Park - Building B","Gas",05/04/2018 00:00:00,"6659409",779.47,"E-ON"
"Bracknell Forest Council","http://opendatacommunities.org/id/unitary-authority/bracknell-forest","","","Business Support","Premises Development","Easthampstead Park Conference Centre","Publicity & Marketing",04/04/2018 00:00:00,"6659595",3499,"IMMEDIATE MEDIA"
"Bracknell Forest Council","http://opendatacommunities.org/id/unitary-authority/bracknell-forest","","","Business Support","Premises Development","Easthampstead Park Conference Centre","Publicity & Marketing",29/03/2018 00:00:00,"6659614",650,"CHOOSEYOUREVENT.COM"
"Bracknell Forest Council","http://opendatacommunities.org/id/unitary-authority/bracknell-forest","","","Business Support","Premises Development","Easthampstead Park Conference Centre","Publicity & Marketing",10/04/2018 00:00:00,"6659615",1646.25,"GUIDES FOR BRIDES LTD"
"Bracknell Forest Council","http://opendatacommunities.org/id/unitary-authority/bracknell-forest","","","Business Support","Premises Development","Easthampstead Park Centre - Bar","Cost of Goods Sold",05/04/2018 00:00:00,"6659847",1066.08,"MATTHEW CLARK WHOLESALE"
"Bracknell Forest Council","http://opendatacommunities.org/id/unitary-authority/bracknell-forest","","","Business Support","Premises Development","Longshot Lane Industrial Estate","Other Fees for Bought-in Services",31/03/2018 00:00:00,"6659862",544,"ELITE SECURITY GROUP"
"Bracknell Forest Council","http://opendatacommunities.org/id/unitary-authority/bracknell-forest","","","Business Support","Premises Development","Easthampstead Park Conference Centre","Water & Sewerage",12/04/2018 00:00:00,"6659904",3213.54,"SOUTH EAST WATER"
"Bracknell Forest Council","http://opendatacommunities.org/id/unitary-authority/bracknell-forest","","","Business Support","Premises Development","Easthampstead Park Centre - Bar","Cost of Goods Sold",12/04/2018 00:00:00,"6659938",1451.88,"MATTHEW CLARK WHOLESALE"
"Bracknell Forest Council","http://opendatacommunities.org/id/unitary-authority/bracknell-forest","","","Business Support","Premises Development","Easthampstead Park Centre - Bar","Cost of Goods Sold",17/04/2018 00:00:00,"6659940",1585.94,"MATTHEW CLARK WHOLESALE"
"Bracknell Forest Council","http://opendatacommunities.org/id/unitary-authority/bracknell-forest","","","Business Support","Premises Development","Easthampstead Park Conference Centre","R&M - Service Contracts",01/04/2018 00:00:00,"6659942",900,"THAMES VALLEY REFRIGERATION"
"Bracknell Forest Council","http://opendatacommunities.org/id/unitary-authority/bracknell-forest","","","Business Support","Premises Development","Easthampstead Park Conference Centre","R&M - Service Contracts",13/04/2018 00:00:00,"6660330",734.6,"HSL/HERTEL SOLUTIONS LTD"
"Bracknell Forest Council","http://opendatacommunities.org/id/unitary-authority/bracknell-forest","","","Business Support","Premises Development","Longshot Lane Industrial Estate","Contracted Services",25/04/2018 00:00:00,"6660356",1076.13,"ENITIAL"
"Bracknell Forest Council","http://opendatacommunities.org/id/unitary-authority/bracknell-forest","","","Business Support","Premises Development","Leasehold Flats","Other Fees for Bought-in Services",23/04/2018 00:00:00,"6660378",1988.62,"BRACKNELL FOREST HOMES"
"Bracknell Forest Council","http://opendatacommunities.org/id/unitary-authority/bracknell-forest","","","Business Support","Premises Development","Leasehold Flats","Other Fees for Bought-in Services",23/04/2018 00:00:00,"6660379",2238.53,"BRACKNELL FOREST HOMES"
"Bracknell Forest Council","http://opendatacommunities.org/id/unitary-authority/bracknell-forest","","","Business Support","Premises Development","Easthampstead Park Centre - Catering","Cost of Goods Sold",12/04/2018 00:00:00,"6660570",3432.68,"D & S FLETCHER"
"Bracknell Forest Council","http://opendatacommunities.org/id/unitary-authority/bracknell-forest","","","Business Support","Premises Development","Easthampstead Park Centre - Bar","Cost of Goods Sold",26/04/2018 00:00:00,"6660871",1414.88,"MATTHEW CLARK WHOLESALE"
"Bracknell Forest Council","http://opendatacommunities.org/id/unitary-authority/bracknell-forest","","","Business Support","Premises Development","Easthampstead Park Conference Centre","Laundry",28/04/2018 00:00:00,"6661026",694.25,"CLEAN LINEN SERVICES LTD"
"Bracknell Forest Council","http://opendatacommunities.org/id/unitary-authority/bracknell-forest","","","Business Support","Premises Development","Easthampstead Park Conference Centre","Laundry",28/04/2018 00:00:00,"6661027",956.71,"CLEAN LINEN SERVICES LTD"
"Bracknell Forest Council","http://opendatacommunities.org/id/unitary-authority/bracknell-forest","","","Business Support","Premises Development","Waterside Park - Building C","Consultants Fees",28/02/2018 00:00:00,"6661101",2000,"RIDGE & PARTNERS LLP"
"Bracknell Forest Council","http://opendatacommunities.org/id/unitary-authority/bracknell-forest","","","Business Support","Premises Development","Easthampstead Park Conference Centre","Cleaning materials",23/04/2018 00:00:00,"6661173",1163.19,"ALLIANCE DISPOSABLES LTD"
"Bracknell Forest Council","http://opendatacommunities.org/id/unitary-authority/bracknell-forest","","","Business Support","Premises Development","Waterside Park - Building B","Electricity",04/05/2018 00:00:00,"6661314",560.05,"SOUTHERN ELECTRIC PLC"
"Bracknell Forest Council","http://opendatacommunities.org/id/unitary-authority/bracknell-forest","","","Business Support","Premises Development","Commercial Properties","Other Fees for Bought-in Services",30/04/2018 00:00:00,"6661316",1600,"CLEARWAY ENVIRONMENTAL SERVICES"
"Bracknell Forest Council","http://opendatacommunities.org/id/unitary-authority/bracknell-forest","","","Business Support","Premises Development","Easthampstead Park Centre - Catering","Cost of Goods Sold",03/05/2018 00:00:00,"6661494",4490.45,"D & S FLETCHER"
"Bracknell Forest Council","http://opendatacommunities.org/id/unitary-authority/bracknell-forest","","","Business Support","Premises Development","Easthampstead Park Conference Centre","Catering Staff - Agency",15/04/2018 00:00:00,"6661521",2149.36,"BLUE ARROW LIMITED"
"Bracknell Forest Council","http://opendatacommunities.org/id/unitary-authority/bracknell-forest","","","Business Support","Premises Development","Waterside Park","Consultants Fees",23/04/2018 00:00:00,"6661534",900,"RIDGE & PARTNERS LLP"
"Bracknell Forest Council","http://opendatacommunities.org/id/unitary-authority/bracknell-forest","","","Business Support","Premises Development","Longshot Lane Industrial Estate","R&M - Reactive",03/05/2018 00:00:00,"6661609",5945,"BENVILLE AND MARSH LTD"
"Bracknell Forest Council","http://opendatacommunities.org/id/unitary-authority/bracknell-forest","","","Business Support","Premises Development","Forest Park","R&M - Reactive",03/05/2018 00:00:00,"6661612",1370,"BENVILLE AND MARSH LTD"
"Bracknell Forest Council","http://opendatacommunities.org/id/unitary-authority/bracknell-forest","","","Business Support","Premises Development","Waterside Park - Building B","Other Fees for Bought-in Services",03/05/2018 00:00:00,"6661613",1080,"BENVILLE AND MARSH LTD"
"Bracknell Forest Council","http://opendatacommunities.org/id/unitary-authority/bracknell-forest","","","Business Support","Premises Development","Waterside Park - Building A","Electricity",04/05/2018 00:00:00,"6661736",946.34,"SOUTHERN ELECTRIC PLC"
"Bracknell Forest Council","http://opendatacommunities.org/id/unitary-authority/bracknell-forest","","","Business Support","Premises Development","Waterside Park - Building B","R&M - Reactive",22/05/2018 00:00:00,"6661760",1020,"BERKSHIRE MECHANICAL SERVICES"
"Bracknell Forest Council","http://opendatacommunities.org/id/unitary-authority/bracknell-forest","","","Business Support","Premises Development","Waterside Park - Building B","R&M - Reactive",22/05/2018 00:00:00,"6661760",2000,"BERKSHIRE MECHANICAL SERVICES"
"Bracknell Forest Council","http://opendatacommunities.org/id/unitary-authority/bracknell-forest","","","Business Support","Premises Development","Waterside Park","R&M - Planned",30/05/2018 00:00:00,"6662143",3170,"RIDGE & PARTNERS LLP"
"Bracknell Forest Council","http://opendatacommunities.org/id/unitary-authority/bracknell-forest","","","Business Support","Premises Development","Commercial Properties","Consultants Fees",31/05/2018 00:00:00,"6662256",7481.08,"ATKINS LTD"
"Bracknell Forest Council","http://opendatacommunities.org/id/unitary-authority/bracknell-forest","","","Business Support","Premises Development","Longshot Lane Industrial Estate","Contracted Services",24/05/2018 00:00:00,"6662305",1076.13,"ENITIAL"
"Bracknell Forest Council","http://opendatacommunities.org/id/unitary-authority/bracknell-forest","","","Business Support","Premises Development","Easthampstead Park Centre - Catering","Cost of Goods Sold",05/04/2018 00:00:00,"30333305",69.78,"BFS GROUP LTD T/A BIDFOOD"
"Bracknell Forest Council","http://opendatacommunities.org/id/unitary-authority/bracknell-forest","","","Business Support","Premises Development","Easthampstead Park Centre - Catering","Cost of Goods Sold",04/04/2018 00:00:00,"30333305",153.8,"BFS GROUP LTD T/A BIDFOOD"
"Bracknell Forest Council","http://opendatacommunities.org/id/unitary-authority/bracknell-forest","","","Business Support","Premises Development","Easthampstead Park Centre - Catering","Cost of Goods Sold",05/04/2018 00:00:00,"30333305",388.86,"BFS GROUP LTD T/A BIDFOOD"
"Bracknell Forest Council","http://opendatacommunities.org/id/unitary-authority/bracknell-forest","","","Business Support","Premises Development","Easthampstead Park Centre - Catering","Cost of Goods Sold",05/04/2018 00:00:00,"30333305",50.78,"BFS GROUP LTD T/A BIDFOOD"
"Bracknell Forest Council","http://opendatacommunities.org/id/unitary-authority/bracknell-forest","","","Business Support","Premises Development","Easthampstead Park Centre - Catering","Cost of Goods Sold",04/04/2018 00:00:00,"30333305",302.14,"BRAKE BROS FOODSERVICE LTD"
"Bracknell Forest Council","http://opendatacommunities.org/id/unitary-authority/bracknell-forest","","","Business Support","Premises Development","Easthampstead Park Centre - Catering","Cost of Goods Sold",06/04/2018 00:00:00,"30333305",338.71,"BRAKE BROS FOODSERVICE LTD"
"Bracknell Forest Council","http://opendatacommunities.org/id/unitary-authority/bracknell-forest","","","Business Support","Premises Development","Easthampstead Park Centre - Catering","Cost of Goods Sold",04/04/2018 00:00:00,"30333305",27.24,"BRAKE BROS FOODSERVICE LTD"
"Bracknell Forest Council","http://opendatacommunities.org/id/unitary-authority/bracknell-forest","","","Business Support","Premises Development","Easthampstead Park Centre - Catering","Cost of Goods Sold",04/04/2018 00:00:00,"30333305",10.15,"BRAKE BROS FOODSERVICE LTD"
"Bracknell Forest Council","http://opendatacommunities.org/id/unitary-authority/bracknell-forest","","","Business Support","Premises Development","Easthampstead Park Centre - Catering","Cost of Goods Sold",05/04/2018 00:00:00,"30333305",89.8,"KFF - KENT FROZEN FOODS LTD"
"Bracknell Forest Council","http://opendatacommunities.org/id/unitary-authority/bracknell-forest","","","Business Support","Premises Development","Easthampstead Park Centre - Catering","Cost of Goods Sold",05/04/2018 00:00:00,"30333305",44.69,"KFF - KENT FROZEN FOODS LTD"
"Bracknell Forest Council","http://opendatacommunities.org/id/unitary-authority/bracknell-forest","","","Business Support","Premises Development","Easthampstead Park Centre - Catering","Cost of Goods Sold",05/04/2018 00:00:00,"30333305",68.11,"M & J SEAFOOD"
"Bracknell Forest Council","http://opendatacommunities.org/id/unitary-authority/bracknell-forest","","","Business Support","Premises Development","Easthampstead Park Centre - Catering","Cost of Goods Sold",07/04/2018 00:00:00,"30333305",94.14,"M & J SEAFOOD"
"Bracknell Forest Council","http://opendatacommunities.org/id/unitary-authority/bracknell-forest","","","Business Support","Premises Development","Easthampstead Park Centre - Catering","Cost of Goods Sold",03/04/2018 00:00:00,"30333305",390.85,"MIKO COFFEE LTD"
"Bracknell Forest Council","http://opendatacommunities.org/id/unitary-authority/bracknell-forest","","","Business Support","Premises Development","Easthampstead Park Centre - Catering","Cost of Goods Sold",04/04/2018 00:00:00,"30333305",149.64,"THE QUALITY MEAT COMPANY"
"Bracknell Forest Council","http://opendatacommunities.org/id/unitary-authority/bracknell-forest","","","Business Support","Premises Development","Easthampstead Park Centre - Catering","Cost of Goods Sold",06/04/2018 00:00:00,"30333305",321.97,"THE QUALITY MEAT COMPANY"
"Bracknell Forest Council","http://opendatacommunities.org/id/unitary-authority/bracknell-forest","","","Business Support","Premises Development","Easthampstead Park Centre - Catering","Cost of Goods Sold",06/04/2018 00:00:00,"30333305",72.93,"THE QUALITY MEAT COMPANY"
"Bracknell Forest Council","http://opendatacommunities.org/id/unitary-authority/bracknell-forest","","","Business Support","Premises Development","Easthampstead Park Centre - Catering","Cost of Goods Sold",26/03/2018 00:00:00,"30333305",292.61,"VEGETARIAN EXPRESS LTD"
"Bracknell Forest Council","http://opendatacommunities.org/id/unitary-authority/bracknell-forest","","","Business Support","Premises Development","Easthampstead Park Centre - Catering","Cost of Goods Sold",05/03/2018 00:00:00,"30333305",45.62,"VEGETARIAN EXPRESS LTD"
"Bracknell Forest Council","http://opendatacommunities.org/id/unitary-authority/bracknell-forest","","","Business Support","Premises Development","Easthampstead Park Centre - Catering","Cost of Goods Sold",19/03/2018 00:00:00,"30333305",121.11,"VEGETARIAN EXPRESS LTD"
"Bracknell Forest Council","http://opendatacommunities.org/id/unitary-authority/bracknell-forest","","","Business Support","Premises Development","Easthampstead Park Centre - Catering","Cost of Goods Sold",16/04/2018 00:00:00,"30334058",439.22,"BFS GROUP LTD T/A BIDFOOD"
"Bracknell Forest Council","http://opendatacommunities.org/id/unitary-authority/bracknell-forest","","","Business Support","Premises Development","Easthampstead Park Centre - Catering","Cost of Goods Sold",11/04/2018 00:00:00,"30334058",84.4,"BFS GROUP LTD T/A BIDFOOD"
"Bracknell Forest Council","http://opendatacommunities.org/id/unitary-authority/bracknell-forest","","","Business Support","Premises Development","Easthampstead Park Centre - Catering","Cost of Goods Sold",11/04/2018 00:00:00,"30334058",491.66,"BFS GROUP LTD T/A BIDFOOD"
"Bracknell Forest Council","http://opendatacommunities.org/id/unitary-authority/bracknell-forest","","","Business Support","Premises Development","Easthampstead Park Centre - Catering","Cost of Goods Sold",11/04/2018 00:00:00,"30334058",43,"BFS GROUP LTD T/A BIDFOOD"
"Bracknell Forest Council","http://opendatacommunities.org/id/unitary-authority/bracknell-forest","","","Business Support","Premises Development","Easthampstead Park Centre - Catering","Cost of Goods Sold",12/04/2018 00:00:00,"30334058",68.84,"BFS GROUP LTD T/A BIDFOOD"
"Bracknell Forest Council","http://opendatacommunities.org/id/unitary-authority/bracknell-forest","","","Business Support","Premises Development","Easthampstead Park Centre - Catering","Cost of Goods Sold",12/04/2018 00:00:00,"30334058",72.35,"BFS GROUP LTD T/A BIDFOOD"
"Bracknell Forest Council","http://opendatacommunities.org/id/unitary-authority/bracknell-forest","","","Business Support","Premises Development","Easthampstead Park Centre - Catering","Cost of Goods Sold",09/04/2018 00:00:00,"30334058",392.43,"BRAKE BROS FOODSERVICE LTD"
"Bracknell Forest Council","http://opendatacommunities.org/id/unitary-authority/bracknell-forest","","","Business Support","Premises Development","Easthampstead Park Centre - Catering","Cost of Goods Sold",11/04/2018 00:00:00,"30334058",456.53,"BRAKE BROS FOODSERVICE LTD"
"Bracknell Forest Council","http://opendatacommunities.org/id/unitary-authority/bracknell-forest","","","Business Support","Premises Development","Easthampstead Park Centre - Catering","Cost of Goods Sold",13/04/2018 00:00:00,"30334058",337.42,"BRAKE BROS FOODSERVICE LTD"
"Bracknell Forest Council","http://opendatacommunities.org/id/unitary-authority/bracknell-forest","","","Business Support","Premises Development","Easthampstead Park Centre - Catering","Cost of Goods Sold",09/04/2018 00:00:00,"30334058",143.12,"BRAKE BROS FOODSERVICE LTD"
"Bracknell Forest Council","http://opendatacommunities.org/id/unitary-authority/bracknell-forest","","","Business Support","Premises Development","Easthampstead Park Centre - Catering","Cost of Goods Sold",11/04/2018 00:00:00,"30334058",8.26,"BRAKE BROS FOODSERVICE LTD"
"Bracknell Forest Council","http://opendatacommunities.org/id/unitary-authority/bracknell-forest","","","Business Support","Premises Development","Easthampstead Park Centre - Catering","Cost of Goods Sold",13/04/2018 00:00:00,"30334058",42.1,"BRAKE BROS FOODSERVICE LTD"
"Bracknell Forest Council","http://opendatacommunities.org/id/unitary-authority/bracknell-forest","","","Business Support","Premises Development","Easthampstead Park Centre - Catering","Cost of Goods Sold",09/04/2018 00:00:00,"30334058",126.65,"M & J SEAFOOD"
"Bracknell Forest Council","http://opendatacommunities.org/id/unitary-authority/bracknell-forest","","","Business Support","Premises Development","Easthampstead Park Centre - Catering","Cost of Goods Sold",12/04/2018 00:00:00,"30334058",240,"MIKO COFFEE LTD"
"Bracknell Forest Council","http://opendatacommunities.org/id/unitary-authority/bracknell-forest","","","Business Support","Premises Development","Easthampstead Park Centre - Catering","Cost of Goods Sold",05/04/2018 00:00:00,"30334058",241.57,"ORANKA FRUIT JUICES LTD"
"Bracknell Forest Council","http://opendatacommunities.org/id/unitary-authority/bracknell-forest","","","Business Support","Premises Development","Easthampstead Park Centre - Catering","Cost of Goods Sold",10/04/2018 00:00:00,"30334058",172.41,"THE QUALITY MEAT COMPANY"
"Bracknell Forest Council","http://opendatacommunities.org/id/unitary-authority/bracknell-forest","","","Business Support","Premises Development","Easthampstead Park Centre - Catering","Cost of Goods Sold",11/04/2018 00:00:00,"30334058",236.17,"THE QUALITY MEAT COMPANY"
"Bracknell Forest Council","http://opendatacommunities.org/id/unitary-authority/bracknell-forest","","","Business Support","Premises Development","Easthampstead Park Centre - Catering","Cost of Goods Sold",12/04/2018 00:00:00,"30334058",110.55,"THE QUALITY MEAT COMPANY"
"Bracknell Forest Council","http://opendatacommunities.org/id/unitary-authority/bracknell-forest","","","Business Support","Premises Development","Easthampstead Park Centre - Catering","Cost of Goods Sold",12/04/2018 00:00:00,"30334058",177.99,"THE QUALITY MEAT COMPANY"
"Bracknell Forest Council","http://opendatacommunities.org/id/unitary-authority/bracknell-forest","","","Business Support","Premises Development","Easthampstead Park Centre - Catering","Cost of Goods Sold",12/04/2018 00:00:00,"30334058",178.55,"THE QUALITY MEAT COMPANY"
"Bracknell Forest Council","http://opendatacommunities.org/id/unitary-authority/bracknell-forest","","","Business Support","Premises Development","Easthampstead Park Centre - Catering","Cost of Goods Sold",13/04/2018 00:00:00,"30334058",94.2,"THE QUALITY MEAT COMPANY"
"Bracknell Forest Council","http://opendatacommunities.org/id/unitary-authority/bracknell-forest","","","Business Support","Premises Development","Easthampstead Park Centre - Catering","Cost of Goods Sold",13/04/2018 00:00:00,"30334058",47.37,"THE QUALITY MEAT COMPANY"
"Bracknell Forest Council","http://opendatacommunities.org/id/unitary-authority/bracknell-forest","","","Business Support","Premises Development","Easthampstead Park Centre - Catering","Cost of Goods Sold",14/04/2018 00:00:00,"30334058",169.73,"THE QUALITY MEAT COMPANY"
"Bracknell Forest Council","http://opendatacommunities.org/id/unitary-authority/bracknell-forest","","","Business Support","Premises Development","Easthampstead Park Centre - Catering","Cost of Goods Sold",11/04/2018 00:00:00,"30334058",-7.56,"TOWN & COUNTRY FINE FOODS"
"Bracknell Forest Council","http://opendatacommunities.org/id/unitary-authority/bracknell-forest","","","Business Support","Premises Development","Easthampstead Park Centre - Catering","Cost of Goods Sold",11/04/2018 00:00:00,"30334058",-3.3,"TOWN & COUNTRY FINE FOODS"
"Bracknell Forest Council","http://opendatacommunities.org/id/unitary-authority/bracknell-forest","","","Business Support","Premises Development","Easthampstead Park Centre - Catering","Cost of Goods Sold",28/11/2017 00:00:00,"30334058",145.14,"TOWN & COUNTRY FINE FOODS"
"Bracknell Forest Council","http://opendatacommunities.org/id/unitary-authority/bracknell-forest","","","Business Support","Premises Development","Easthampstead Park Centre - Catering","Cost of Goods Sold",28/11/2017 00:00:00,"30334058",62.88,"TOWN & COUNTRY FINE FOODS"
"Bracknell Forest Council","http://opendatacommunities.org/id/unitary-authority/bracknell-forest","","","Business Support","Premises Development","Easthampstead Park Centre - Catering","Cost of Goods Sold",16/04/2018 00:00:00,"30334058",101.07,"TOWN & COUNTRY FINE FOODS"
"Bracknell Forest Council","http://opendatacommunities.org/id/unitary-authority/bracknell-forest","","","Business Support","Premises Development","Easthampstead Park Centre - Catering","Cost of Goods Sold",16/04/2018 00:00:00,"30334058",29.79,"TOWN & COUNTRY FINE FOODS"
"Bracknell Forest Council","http://opendatacommunities.org/id/unitary-authority/bracknell-forest","","","Business Support","Premises Development","Easthampstead Park Centre - Catering","Cost of Goods Sold",17/04/2018 00:00:00,"30334693",192.84,"BFS GROUP LTD T/A BIDFOOD"
"Bracknell Forest Council","http://opendatacommunities.org/id/unitary-authority/bracknell-forest","","","Business Support","Premises Development","Easthampstead Park Centre - Catering","Cost of Goods Sold",18/04/2018 00:00:00,"30334693",430.88,"BFS GROUP LTD T/A BIDFOOD"
"Bracknell Forest Council","http://opendatacommunities.org/id/unitary-authority/bracknell-forest","","","Business Support","Premises Development","Easthampstead Park Centre - Catering","Cost of Goods Sold",18/04/2018 00:00:00,"30334693",135.72,"BFS GROUP LTD T/A BIDFOOD"
"Bracknell Forest Council","http://opendatacommunities.org/id/unitary-authority/bracknell-forest","","","Business Support","Premises Development","Easthampstead Park Centre - Catering","Cost of Goods Sold",20/04/2018 00:00:00,"30334693",335.73,"BFS GROUP LTD T/A BIDFOOD"
"Bracknell Forest Council","http://opendatacommunities.org/id/unitary-authority/bracknell-forest","","","Business Support","Premises Development","Easthampstead Park Centre - Catering","Cost of Goods Sold",20/04/2018 00:00:00,"30334693",155.92,"BFS GROUP LTD T/A BIDFOOD"
"Bracknell Forest Council","http://opendatacommunities.org/id/unitary-authority/bracknell-forest","","","Business Support","Premises Development","Easthampstead Park Centre - Catering","Cost of Goods Sold",20/04/2018 00:00:00,"30334693",588.18,"BFS GROUP LTD T/A BIDFOOD"
"Bracknell Forest Council","http://opendatacommunities.org/id/unitary-authority/bracknell-forest","","","Business Support","Premises Development","Easthampstead Park Centre - Catering","Cost of Goods Sold",16/04/2018 00:00:00,"30334693",293.96,"BRAKE BROS FOODSERVICE LTD"
"Bracknell Forest Council","http://opendatacommunities.org/id/unitary-authority/bracknell-forest","","","Business Support","Premises Development","Easthampstead Park Centre - Catering","Cost of Goods Sold",18/04/2018 00:00:00,"30334693",502.8,"BRAKE BROS FOODSERVICE LTD"
"Bracknell Forest Council","http://opendatacommunities.org/id/unitary-authority/bracknell-forest","","","Business Support","Premises Development","Easthampstead Park Centre - Catering","Cost of Goods Sold",18/04/2018 00:00:00,"30334693",2.65,"BRAKE BROS FOODSERVICE LTD"
"Bracknell Forest Council","http://opendatacommunities.org/id/unitary-authority/bracknell-forest","","","Business Support","Premises Development","Easthampstead Park Centre - Catering","Cost of Goods Sold",16/04/2018 00:00:00,"30334693",84.39,"BRAKE BROS FOODSERVICE LTD"
"Bracknell Forest Council","http://opendatacommunities.org/id/unitary-authority/bracknell-forest","","","Business Support","Premises Development","Easthampstead Park Centre - Catering","Cost of Goods Sold",20/04/2018 00:00:00,"30334693",88.72,"BRAKE BROS FOODSERVICE LTD"
"Bracknell Forest Council","http://opendatacommunities.org/id/unitary-authority/bracknell-forest","","","Business Support","Premises Development","Easthampstead Park Centre - Catering","Cost of Goods Sold",16/04/2018 00:00:00,"30334693",95.75,"MIKO COFFEE LTD"
"Bracknell Forest Council","http://opendatacommunities.org/id/unitary-authority/bracknell-forest","","","Business Support","Premises Development","Easthampstead Park Centre - Catering","Cost of Goods Sold",16/04/2018 00:00:00,"30334693",123,"MIKO COFFEE LTD"
"Bracknell Forest Council","http://opendatacommunities.org/id/unitary-authority/bracknell-forest","","","Business Support","Premises Development","Easthampstead Park Centre - Catering","Cost of Goods Sold",07/04/2018 00:00:00,"30334693",118.7,"THE QUALITY MEAT COMPANY"
"Bracknell Forest Council","http://opendatacommunities.org/id/unitary-authority/bracknell-forest","","","Business Support","Premises Development","Easthampstead Park Centre - Catering","Cost of Goods Sold",17/04/2018 00:00:00,"30334693",172.7,"THE QUALITY MEAT COMPANY"
"Bracknell Forest Council","http://opendatacommunities.org/id/unitary-authority/bracknell-forest","","","Business Support","Premises Development","Easthampstead Park Centre - Catering","Cost of Goods Sold",19/04/2018 00:00:00,"30334693",94.33,"THE QUALITY MEAT COMPANY"
"Bracknell Forest Council","http://opendatacommunities.org/id/unitary-authority/bracknell-forest","","","Business Support","Premises Development","Easthampstead Park Centre - Catering","Cost of Goods Sold",19/04/2018 00:00:00,"30334693",372.32,"THE QUALITY MEAT COMPANY"
"Bracknell Forest Council","http://opendatacommunities.org/id/unitary-authority/bracknell-forest","","","Business Support","Premises Development","Easthampstead Park Centre - Catering","Cost of Goods Sold",20/04/2018 00:00:00,"30334693",104.38,"THE QUALITY MEAT COMPANY"
"Bracknell Forest Council","http://opendatacommunities.org/id/unitary-authority/bracknell-forest","","","Business Support","Premises Development","Easthampstead Park Centre - Catering","Cost of Goods Sold",21/04/2018 00:00:00,"30334693",158.57,"THE QUALITY MEAT COMPANY"
"Bracknell Forest Council","http://opendatacommunities.org/id/unitary-authority/bracknell-forest","","","Business Support","Premises Development","Easthampstead Park Centre - Catering","Cost of Goods Sold",23/04/2018 00:00:00,"30334693",252,"THE QUALITY MEAT COMPANY"
"Bracknell Forest Council","http://opendatacommunities.org/id/unitary-authority/bracknell-forest","","","Business Support","Premises Development","Easthampstead Park Centre - Catering","Cost of Goods Sold",25/04/2018 00:00:00,"30335090",142.74,"BFS GROUP LTD T/A BIDFOOD"
"Bracknell Forest Council","http://opendatacommunities.org/id/unitary-authority/bracknell-forest","","","Business Support","Premises Development","Easthampstead Park Centre - Catering","Cost of Goods Sold",25/04/2018 00:00:00,"30335090",1164.53,"BFS GROUP LTD T/A BIDFOOD"
"Bracknell Forest Council","http://opendatacommunities.org/id/unitary-authority/bracknell-forest","","","Business Support","Premises Development","Easthampstead Park Centre - Catering","Cost of Goods Sold",25/04/2018 00:00:00,"30335090",482.56,"BFS GROUP LTD T/A BIDFOOD"
"Bracknell Forest Council","http://opendatacommunities.org/id/unitary-authority/bracknell-forest","","","Business Support","Premises Development","Easthampstead Park Centre - Catering","Cost of Goods Sold",25/04/2018 00:00:00,"30335090",44.69,"BFS GROUP LTD T/A BIDFOOD"
"Bracknell Forest Council","http://opendatacommunities.org/id/unitary-authority/bracknell-forest","","","Business Support","Premises Development","Easthampstead Park Centre - Catering","Cost of Goods Sold",01/05/2018 00:00:00,"30335090",609.72,"BFS GROUP LTD T/A BIDFOOD"
"Bracknell Forest Council","http://opendatacommunities.org/id/unitary-authority/bracknell-forest","","","Business Support","Premises Development","Easthampstead Park Centre - Catering","Cost of Goods Sold",01/05/2018 00:00:00,"30335090",147.88,"BFS GROUP LTD T/A BIDFOOD"
"Bracknell Forest Council","http://opendatacommunities.org/id/unitary-authority/bracknell-forest","","","Business Support","Premises Development","Easthampstead Park Centre - Catering","Cost of Goods Sold",01/05/2018 00:00:00,"30335090",293.92,"BFS GROUP LTD T/A BIDFOOD"
"Bracknell Forest Council","http://opendatacommunities.org/id/unitary-authority/bracknell-forest","","","Business Support","Premises Development","Easthampstead Park Centre - Catering","Cost of Goods Sold",01/05/2018 00:00:00,"30335090",34.87,"BFS GROUP LTD T/A BIDFOOD"
"Bracknell Forest Council","http://opendatacommunities.org/id/unitary-authority/bracknell-forest","","","Business Support","Premises Development","Easthampstead Park Centre - Catering","Cost of Goods Sold",27/04/2018 00:00:00,"30335090",761.67,"BRAKE BROS FOODSERVICE LTD"
"Bracknell Forest Council","http://opendatacommunities.org/id/unitary-authority/bracknell-forest","","","Business Support","Premises Development","Easthampstead Park Centre - Catering","Cost of Goods Sold",27/04/2018 00:00:00,"30335090",18.17,"BRAKE BROS FOODSERVICE LTD"
"Bracknell Forest Council","http://opendatacommunities.org/id/unitary-authority/bracknell-forest","","","Business Support","Premises Development","Easthampstead Park Centre - Catering","Cost of Goods Sold",27/04/2018 00:00:00,"30335090",12.18,"BRAKE BROS FOODSERVICE LTD"
"Bracknell Forest Council","http://opendatacommunities.org/id/unitary-authority/bracknell-forest","","","Business Support","Premises Development","Easthampstead Park Centre - Catering","Cost of Goods Sold",20/04/2018 00:00:00,"30335090",-10.29,"BRAKE BROS FOODSERVICE LTD"
"Bracknell Forest Council","http://opendatacommunities.org/id/unitary-authority/bracknell-forest","","","Business Support","Premises Development","Easthampstead Park Centre - Catering","Cost of Goods Sold",20/04/2018 00:00:00,"30335090",219.55,"BRAKE BROS FOODSERVICE LTD"
"Bracknell Forest Council","http://opendatacommunities.org/id/unitary-authority/bracknell-forest","","","Business Support","Premises Development","Easthampstead Park Centre - Catering","Cost of Goods Sold",23/04/2018 00:00:00,"30335090",110.93,"BRAKE BROS FOODSERVICE LTD"
"Bracknell Forest Council","http://opendatacommunities.org/id/unitary-authority/bracknell-forest","","","Business Support","Premises Development","Easthampstead Park Centre - Catering","Cost of Goods Sold",25/04/2018 00:00:00,"30335090",326.03,"BRAKE BROS FOODSERVICE LTD"
"Bracknell Forest Council","http://opendatacommunities.org/id/unitary-authority/bracknell-forest","","","Business Support","Premises Development","Easthampstead Park Centre - Catering","Cost of Goods Sold",27/04/2018 00:00:00,"30335090",329.04,"BRAKE BROS FOODSERVICE LTD"
"Bracknell Forest Council","http://opendatacommunities.org/id/unitary-authority/bracknell-forest","","","Business Support","Premises Development","Easthampstead Park Centre - Catering","Cost of Goods Sold",25/04/2018 00:00:00,"30335090",85.48,"DDC FOODS LTD"
"Bracknell Forest Council","http://opendatacommunities.org/id/unitary-authority/bracknell-forest","","","Business Support","Premises Development","Easthampstead Park Centre - Catering","Cost of Goods Sold",01/05/2018 00:00:00,"30335090",41.09,"KFF - KENT FROZEN FOODS LTD"
"Bracknell Forest Council","http://opendatacommunities.org/id/unitary-authority/bracknell-forest","","","Business Support","Premises Development","Easthampstead Park Centre - Catering","Cost of Goods Sold",24/04/2018 00:00:00,"30335090",219.57,"KFF - KENT FROZEN FOODS LTD"
"Bracknell Forest Council","http://opendatacommunities.org/id/unitary-authority/bracknell-forest","","","Business Support","Premises Development","Easthampstead Park Centre - Catering","Cost of Goods Sold",24/04/2018 00:00:00,"30335090",-15.35,"KFF - KENT FROZEN FOODS LTD"
"Bracknell Forest Council","http://opendatacommunities.org/id/unitary-authority/bracknell-forest","","","Business Support","Premises Development","Easthampstead Park Centre - Catering","Cost of Goods Sold",26/04/2018 00:00:00,"30335090",68.09,"KFF - KENT FROZEN FOODS LTD"
"Bracknell Forest Council","http://opendatacommunities.org/id/unitary-authority/bracknell-forest","","","Business Support","Premises Development","Easthampstead Park Centre - Catering","Cost of Goods Sold",24/04/2018 00:00:00,"30335090",152.71,"M & J SEAFOOD"
"Bracknell Forest Council","http://opendatacommunities.org/id/unitary-authority/bracknell-forest","","","Business Support","Premises Development","Easthampstead Park Centre - Catering","Cost of Goods Sold",23/04/2018 00:00:00,"30335090",121.4,"MIKO COFFEE LTD"
"Bracknell Forest Council","http://opendatacommunities.org/id/unitary-authority/bracknell-forest","","","Business Support","Premises Development","Easthampstead Park Centre - Catering","Cost of Goods Sold",23/04/2018 00:00:00,"30335090",63,"MIKO COFFEE LTD"
"Bracknell Forest Council","http://opendatacommunities.org/id/unitary-authority/bracknell-forest","","","Business Support","Premises Development","Easthampstead Park Centre - Catering","Cost of Goods Sold",09/04/2018 00:00:00,"30335090",143.36,"THE QUALITY MEAT COMPANY"
"Bracknell Forest Council","http://opendatacommunities.org/id/unitary-authority/bracknell-forest","","","Business Support","Premises Development","Easthampstead Park Centre - Catering","Cost of Goods Sold",16/04/2018 00:00:00,"30335090",175.76,"THE QUALITY MEAT COMPANY"
"Bracknell Forest Council","http://opendatacommunities.org/id/unitary-authority/bracknell-forest","","","Business Support","Premises Development","Easthampstead Park Centre - Catering","Cost of Goods Sold",24/04/2018 00:00:00,"30335090",49.77,"THE QUALITY MEAT COMPANY"
"Bracknell Forest Council","http://opendatacommunities.org/id/unitary-authority/bracknell-forest","","","Business Support","Premises Development","Easthampstead Park Centre - Catering","Cost of Goods Sold",25/04/2018 00:00:00,"30335090",25.77,"THE QUALITY MEAT COMPANY"
"Bracknell Forest Council","http://opendatacommunities.org/id/unitary-authority/bracknell-forest","","","Business Support","Premises Development","Easthampstead Park Centre - Catering","Cost of Goods Sold",26/04/2018 00:00:00,"30335090",121.47,"THE QUALITY MEAT COMPANY"
"Bracknell Forest Council","http://opendatacommunities.org/id/unitary-authority/bracknell-forest","","","Business Support","Premises Development","Easthampstead Park Centre - Catering","Cost of Goods Sold",26/04/2018 00:00:00,"30335090",60.55,"THE QUALITY MEAT COMPANY"
"Bracknell Forest Council","http://opendatacommunities.org/id/unitary-authority/bracknell-forest","","","Business Support","Premises Development","Easthampstead Park Centre - Catering","Cost of Goods Sold",26/04/2018 00:00:00,"30335090",203.31,"THE QUALITY MEAT COMPANY"
"Bracknell Forest Council","http://opendatacommunities.org/id/unitary-authority/bracknell-forest","","","Business Support","Premises Development","Easthampstead Park Centre - Catering","Cost of Goods Sold",27/04/2018 00:00:00,"30335090",118.38,"THE QUALITY MEAT COMPANY"
"Bracknell Forest Council","http://opendatacommunities.org/id/unitary-authority/bracknell-forest","","","Business Support","Premises Development","Easthampstead Park Centre - Catering","Cost of Goods Sold",28/04/2018 00:00:00,"30335090",205.74,"THE QUALITY MEAT COMPANY"
"Bracknell Forest Council","http://opendatacommunities.org/id/unitary-authority/bracknell-forest","","","Business Support","Premises Development","Easthampstead Park Centre - Catering","Cost of Goods Sold",30/04/2018 00:00:00,"30335090",15.15,"THE QUALITY MEAT COMPANY"
"Bracknell Forest Council","http://opendatacommunities.org/id/unitary-authority/bracknell-forest","","","Business Support","Premises Development","Easthampstead Park Centre - Catering","Cost of Goods Sold",30/04/2018 00:00:00,"30335090",212.48,"THE QUALITY MEAT COMPANY"
"Bracknell Forest Council","http://opendatacommunities.org/id/unitary-authority/bracknell-forest","","","Business Support","Premises Development","Easthampstead Park Centre - Catering","Cost of Goods Sold",04/05/2018 00:00:00,"30335497",744.86,"BFS GROUP LTD T/A BIDFOOD"
"Bracknell Forest Council","http://opendatacommunities.org/id/unitary-authority/bracknell-forest","","","Business Support","Premises Development","Easthampstead Park Centre - Catering","Cost of Goods Sold",04/05/2018 00:00:00,"30335497",45.29,"BFS GROUP LTD T/A BIDFOOD"
"Bracknell Forest Council","http://opendatacommunities.org/id/unitary-authority/bracknell-forest","","","Business Support","Premises Development","Easthampstead Park Centre - Catering","Cost of Goods Sold",30/04/2018 00:00:00,"30335497",6.02,"BRAKE BROS FOODSERVICE LTD"
"Bracknell Forest Council","http://opendatacommunities.org/id/unitary-authority/bracknell-forest","","","Business Support","Premises Development","Easthampstead Park Centre - Catering","Cost of Goods Sold",30/04/2018 00:00:00,"30335497",705.25,"BRAKE BROS FOODSERVICE LTD"
"Bracknell Forest Council","http://opendatacommunities.org/id/unitary-authority/bracknell-forest","","","Business Support","Premises Development","Easthampstead Park Centre - Catering","Cost of Goods Sold",30/04/2018 00:00:00,"30335497",198.01,"BRAKE BROS FOODSERVICE LTD"
"Bracknell Forest Council","http://opendatacommunities.org/id/unitary-authority/bracknell-forest","","","Business Support","Premises Development","Easthampstead Park Centre - Catering","Cost of Goods Sold",02/05/2018 00:00:00,"30335497",55.22,"BRAKE BROS FOODSERVICE LTD"
"Bracknell Forest Council","http://opendatacommunities.org/id/unitary-authority/bracknell-forest","","","Business Support","Premises Development","Easthampstead Park Centre - Catering","Cost of Goods Sold",02/05/2018 00:00:00,"30335497",141.68,"BRAKE BROS FOODSERVICE LTD"
"Bracknell Forest Council","http://opendatacommunities.org/id/unitary-authority/bracknell-forest","","","Business Support","Premises Development","Easthampstead Park Centre - Catering","Cost of Goods Sold",02/05/2018 00:00:00,"30335497",18.68,"BRAKE BROS FOODSERVICE LTD"
"Bracknell Forest Council","http://opendatacommunities.org/id/unitary-authority/bracknell-forest","","","Business Support","Premises Development","Easthampstead Park Centre - Catering","Cost of Goods Sold",04/05/2018 00:00:00,"30335497",29.77,"BRAKE BROS FOODSERVICE LTD"
"Bracknell Forest Council","http://opendatacommunities.org/id/unitary-authority/bracknell-forest","","","Business Support","Premises Development","Easthampstead Park Centre - Catering","Cost of Goods Sold",04/05/2018 00:00:00,"30335497",55.68,"BRAKE BROS FOODSERVICE LTD"
"Bracknell Forest Council","http://opendatacommunities.org/id/unitary-authority/bracknell-forest","","","Business Support","Premises Development","Easthampstead Park Centre - Catering","Cost of Goods Sold",18/04/2018 00:00:00,"30335497",60.09,"DDC FOODS LTD"
"Bracknell Forest Council","http://opendatacommunities.org/id/unitary-authority/bracknell-forest","","","Business Support","Premises Development","Easthampstead Park Centre - Catering","Cost of Goods Sold",01/05/2018 00:00:00,"30335497",96.17,"M & J SEAFOOD"
"Bracknell Forest Council","http://opendatacommunities.org/id/unitary-authority/bracknell-forest","","","Business Support","Premises Development","Easthampstead Park Centre - Catering","Cost of Goods Sold",03/05/2018 00:00:00,"30335497",235.04,"M & J SEAFOOD"
"Bracknell Forest Council","http://opendatacommunities.org/id/unitary-authority/bracknell-forest","","","Business Support","Premises Development","Easthampstead Park Centre - Catering","Cost of Goods Sold",30/04/2018 00:00:00,"30335497",379.65,"MIKO COFFEE LTD"
"Bracknell Forest Council","http://opendatacommunities.org/id/unitary-authority/bracknell-forest","","","Business Support","Premises Development","Easthampstead Park Centre - Catering","Cost of Goods Sold",30/04/2018 00:00:00,"30335497",259,"MIKO COFFEE LTD"
"Bracknell Forest Council","http://opendatacommunities.org/id/unitary-authority/bracknell-forest","","","Business Support","Premises Development","Easthampstead Park Centre - Catering","Cost of Goods Sold",18/04/2018 00:00:00,"30335497",126.72,"THE QUALITY MEAT COMPANY"
"Bracknell Forest Council","http://opendatacommunities.org/id/unitary-authority/bracknell-forest","","","Business Support","Premises Development","Easthampstead Park Centre - Catering","Cost of Goods Sold",09/04/2018 00:00:00,"30335497",177.67,"VEGETARIAN EXPRESS LTD"
"Bracknell Forest Council","http://opendatacommunities.org/id/unitary-authority/bracknell-forest","","","Business Support","Premises Development","Easthampstead Park Centre - Catering","Cost of Goods Sold",16/04/2018 00:00:00,"30335497",241.02,"VEGETARIAN EXPRESS LTD"
"Bracknell Forest Council","http://opendatacommunities.org/id/unitary-authority/bracknell-forest","","","Business Support","Premises Development","Easthampstead Park Centre - Catering","Cost of Goods Sold",23/04/2018 00:00:00,"30335497",55.88,"VEGETARIAN EXPRESS LTD"
"Bracknell Forest Council","http://opendatacommunities.org/id/unitary-authority/bracknell-forest","","","Business Support","Premises Development","Easthampstead Park Centre - Catering","Cost of Goods Sold",30/04/2018 00:00:00,"30335497",62.39,"VEGETARIAN EXPRESS LTD"
"Bracknell Forest Council","http://opendatacommunities.org/id/unitary-authority/bracknell-forest","","","Business Support","Premises Development","Easthampstead Park Centre - Catering","Cost of Goods Sold",09/05/2018 00:00:00,"30335804",331.67,"BFS GROUP LTD T/A BIDFOOD"
"Bracknell Forest Council","http://opendatacommunities.org/id/unitary-authority/bracknell-forest","","","Business Support","Premises Development","Easthampstead Park Centre - Catering","Cost of Goods Sold",09/05/2018 00:00:00,"30335804",268.69,"BFS GROUP LTD T/A BIDFOOD"
"Bracknell Forest Council","http://opendatacommunities.org/id/unitary-authority/bracknell-forest","","","Business Support","Premises Development","Easthampstead Park Centre - Catering","Cost of Goods Sold",09/05/2018 00:00:00,"30335804",149.26,"BFS GROUP LTD T/A BIDFOOD"
"Bracknell Forest Council","http://opendatacommunities.org/id/unitary-authority/bracknell-forest","","","Business Support","Premises Development","Easthampstead Park Centre - Catering","Cost of Goods Sold",11/05/2018 00:00:00,"30335804",126.4,"BFS GROUP LTD T/A BIDFOOD"
"Bracknell Forest Council","http://opendatacommunities.org/id/unitary-authority/bracknell-forest","","","Business Support","Premises Development","Easthampstead Park Centre - Catering","Cost of Goods Sold",11/05/2018 00:00:00,"30335804",406.88,"BFS GROUP LTD T/A BIDFOOD"
"Bracknell Forest Council","http://opendatacommunities.org/id/unitary-authority/bracknell-forest","","","Business Support","Premises Development","Easthampstead Park Centre - Catering","Cost of Goods Sold",11/05/2018 00:00:00,"30335804",58.17,"BFS GROUP LTD T/A BIDFOOD"
"Bracknell Forest Council","http://opendatacommunities.org/id/unitary-authority/bracknell-forest","","","Business Support","Premises Development","Easthampstead Park Centre - Catering","Cost of Goods Sold",15/05/2018 00:00:00,"30335804",425.62,"BFS GROUP LTD T/A BIDFOOD"
"Bracknell Forest Council","http://opendatacommunities.org/id/unitary-authority/bracknell-forest","","","Business Support","Premises Development","Easthampstead Park Centre - Catering","Cost of Goods Sold",15/05/2018 00:00:00,"30335804",58.14,"BFS GROUP LTD T/A BIDFOOD"
"Bracknell Forest Council","http://opendatacommunities.org/id/unitary-authority/bracknell-forest","","","Business Support","Premises Development","Easthampstead Park Centre - Catering","Cost of Goods Sold",09/05/2018 00:00:00,"30335804",192.42,"BRAKE BROS FOODSERVICE LTD"
"Bracknell Forest Council","http://opendatacommunities.org/id/unitary-authority/bracknell-forest","","","Business Support","Premises Development","Easthampstead Park Centre - Catering","Cost of Goods Sold",11/05/2018 00:00:00,"30335804",74.1,"BRAKE BROS FOODSERVICE LTD"
"Bracknell Forest Council","http://opendatacommunities.org/id/unitary-authority/bracknell-forest","","","Business Support","Premises Development","Easthampstead Park Centre - Catering","Cost of Goods Sold",11/05/2018 00:00:00,"30335804",84.42,"BRAKE BROS FOODSERVICE LTD"
"Bracknell Forest Council","http://opendatacommunities.org/id/unitary-authority/bracknell-forest","","","Business Support","Premises Development","Easthampstead Park Centre - Catering","Cost of Goods Sold",11/05/2018 00:00:00,"30335804",370.5,"BRAKE BROS FOODSERVICE LTD"
"Bracknell Forest Council","http://opendatacommunities.org/id/unitary-authority/bracknell-forest","","","Business Support","Premises Development","Easthampstead Park Centre - Catering","Cost of Goods Sold",11/05/2018 00:00:00,"30335804",419.17,"BRAKE BROS FOODSERVICE LTD"
"Bracknell Forest Council","http://opendatacommunities.org/id/unitary-authority/bracknell-forest","","","Business Support","Premises Development","Easthampstead Park Centre - Catering","Cost of Goods Sold",04/05/2018 00:00:00,"30335804",-28.21,"BRAKE BROS FOODSERVICE LTD"
"Bracknell Forest Council","http://opendatacommunities.org/id/unitary-authority/bracknell-forest","","","Business Support","Premises Development","Easthampstead Park Centre - Catering","Cost of Goods Sold",04/05/2018 00:00:00,"30335804",1176.93,"BRAKE BROS FOODSERVICE LTD"
"Bracknell Forest Council","http://opendatacommunities.org/id/unitary-authority/bracknell-forest","","","Business Support","Premises Development","Easthampstead Park Centre - Catering","Cost of Goods Sold",10/05/2018 00:00:00,"30335804",139,"KFF - KENT FROZEN FOODS LTD"
"Bracknell Forest Council","http://opendatacommunities.org/id/unitary-authority/bracknell-forest","","","Business Support","Premises Development","Easthampstead Park Centre - Catering","Cost of Goods Sold",08/05/2018 00:00:00,"30335804",50.1,"M & J SEAFOOD"
"Bracknell Forest Council","http://opendatacommunities.org/id/unitary-authority/bracknell-forest","","","Business Support","Premises Development","Easthampstead Park Centre - Catering","Cost of Goods Sold",08/05/2018 00:00:00,"30335804",50.29,"THE QUALITY MEAT COMPANY"
"Bracknell Forest Council","http://opendatacommunities.org/id/unitary-authority/bracknell-forest","","","Business Support","Premises Development","Easthampstead Park Centre - Catering","Cost of Goods Sold",05/05/2018 00:00:00,"30335804",198.21,"THE QUALITY MEAT COMPANY"
"Bracknell Forest Council","http://opendatacommunities.org/id/unitary-authority/bracknell-forest","","","Business Support","Premises Development","Easthampstead Park Centre - Catering","Cost of Goods Sold",05/05/2018 00:00:00,"30335804",10.2,"THE QUALITY MEAT COMPANY"
"Bracknell Forest Council","http://opendatacommunities.org/id/unitary-authority/bracknell-forest","","","Business Support","Premises Development","Easthampstead Park Centre - Catering","Cost of Goods Sold",05/05/2018 00:00:00,"30335804",136.06,"THE QUALITY MEAT COMPANY"
"Bracknell Forest Council","http://opendatacommunities.org/id/unitary-authority/bracknell-forest","","","Business Support","Premises Development","Easthampstead Park Centre - Catering","Cost of Goods Sold",08/05/2018 00:00:00,"30335804",64.84,"THE QUALITY MEAT COMPANY"
"Bracknell Forest Council","http://opendatacommunities.org/id/unitary-authority/bracknell-forest","","","Business Support","Premises Development","Easthampstead Park Centre - Catering","Cost of Goods Sold",09/05/2018 00:00:00,"30335804",76.5,"THE QUALITY MEAT COMPANY"
"Bracknell Forest Council","http://opendatacommunities.org/id/unitary-authority/bracknell-forest","","","Business Support","Premises Development","Easthampstead Park Centre - Catering","Cost of Goods Sold",10/05/2018 00:00:00,"30335804",55.38,"THE QUALITY MEAT COMPANY"
"Bracknell Forest Council","http://opendatacommunities.org/id/unitary-authority/bracknell-forest","","","Business Support","Premises Development","Easthampstead Park Centre - Catering","Cost of Goods Sold",11/05/2018 00:00:00,"30335804",1257.45,"THE QUALITY MEAT COMPANY"
"Bracknell Forest Council","http://opendatacommunities.org/id/unitary-authority/bracknell-forest","","","Business Support","Premises Development","Easthampstead Park Centre - Catering","Cost of Goods Sold",12/05/2018 00:00:00,"30335804",154.79,"THE QUALITY MEAT COMPANY"
"Bracknell Forest Council","http://opendatacommunities.org/id/unitary-authority/bracknell-forest","","","Business Support","Premises Development","Easthampstead Park Centre - Catering","Cost of Goods Sold",02/05/2018 00:00:00,"30335804",126.13,"THE QUALITY MEAT COMPANY"
"Bracknell Forest Council","http://opendatacommunities.org/id/unitary-authority/bracknell-forest","","","Business Support","Premises Development","Easthampstead Park Centre - Catering","Cost of Goods Sold",04/05/2018 00:00:00,"30335804",321.4,"THE QUALITY MEAT COMPANY"
"Bracknell Forest Council","http://opendatacommunities.org/id/unitary-authority/bracknell-forest","","","Business Support","Premises Development","Easthampstead Park Centre - Catering","Cost of Goods Sold",04/05/2018 00:00:00,"30335804",19.32,"THE QUALITY MEAT COMPANY"
"Bracknell Forest Council","http://opendatacommunities.org/id/unitary-authority/bracknell-forest","","","Business Support","Premises Development","Easthampstead Park Centre - Catering","Cost of Goods Sold",14/05/2018 00:00:00,"30335804",67.38,"TOWN & COUNTRY FINE FOODS"
"Bracknell Forest Council","http://opendatacommunities.org/id/unitary-authority/bracknell-forest","","","Business Support","Premises Development","Easthampstead Park Centre - Catering","Cost of Goods Sold",14/05/2018 00:00:00,"30335804",59.58,"TOWN & COUNTRY FINE FOODS"
"Bracknell Forest Council","http://opendatacommunities.org/id/unitary-authority/bracknell-forest","","","Business Support","Premises Development","Longshot Lane  - Service Charges","Electricity",10/05/2018 00:00:00,"30336132",23.85,"EDF Energy"
"Bracknell Forest Council","http://opendatacommunities.org/id/unitary-authority/bracknell-forest","","","Business Support","Premises Development","Liscombe - Service Charges","Electricity",10/05/2018 00:00:00,"30336132",518.25,"EDF Energy"
"Bracknell Forest Council","http://opendatacommunities.org/id/unitary-authority/bracknell-forest","","","Business Support","Premises Development","Forest Park - Service Charges","Electricity",10/05/2018 00:00:00,"30336132",31.79,"EDF Energy"
"Bracknell Forest Council","http://opendatacommunities.org/id/unitary-authority/bracknell-forest","","","Business Support","Premises Development","Bus/Rail Interchange","Electricity",10/05/2018 00:00:00,"30336132",1099.14,"EDF Energy"
"Bracknell Forest Council","http://opendatacommunities.org/id/unitary-authority/bracknell-forest","","","Business Support","Premises Development","Easthampstead Park Centre - Catering","Cost of Goods Sold",16/05/2018 00:00:00,"30336133",172,"BFS GROUP LTD T/A BIDFOOD"
"Bracknell Forest Council","http://opendatacommunities.org/id/unitary-authority/bracknell-forest","","","Business Support","Premises Development","Easthampstead Park Centre - Catering","Cost of Goods Sold",16/05/2018 00:00:00,"30336133",69.52,"BFS GROUP LTD T/A BIDFOOD"
"Bracknell Forest Council","http://opendatacommunities.org/id/unitary-authority/bracknell-forest","","","Business Support","Premises Development","Easthampstead Park Centre - Catering","Cost of Goods Sold",17/05/2018 00:00:00,"30336133",291.42,"BFS GROUP LTD T/A BIDFOOD"
"Bracknell Forest Council","http://opendatacommunities.org/id/unitary-authority/bracknell-forest","","","Business Support","Premises Development","Easthampstead Park Centre - Catering","Cost of Goods Sold",18/05/2018 00:00:00,"30336133",202.17,"BFS GROUP LTD T/A BIDFOOD"
"Bracknell Forest Council","http://opendatacommunities.org/id/unitary-authority/bracknell-forest","","","Business Support","Premises Development","Easthampstead Park Centre - Catering","Cost of Goods Sold",18/05/2018 00:00:00,"30336133",20.58,"BFS GROUP LTD T/A BIDFOOD"
"Bracknell Forest Council","http://opendatacommunities.org/id/unitary-authority/bracknell-forest","","","Business Support","Premises Development","Easthampstead Park Centre - Catering","Cost of Goods Sold",22/05/2018 00:00:00,"30336133",607.83,"BFS GROUP LTD T/A BIDFOOD"
"Bracknell Forest Council","http://opendatacommunities.org/id/unitary-authority/bracknell-forest","","","Business Support","Premises Development","Easthampstead Park Centre - Catering","Cost of Goods Sold",22/05/2018 00:00:00,"30336133",127.26,"BFS GROUP LTD T/A BIDFOOD"
"Bracknell Forest Council","http://opendatacommunities.org/id/unitary-authority/bracknell-forest","","","Business Support","Premises Development","Easthampstead Park Centre - Catering","Cost of Goods Sold",18/05/2018 00:00:00,"30336133",455.8,"BRAKE BROS FOODSERVICE LTD"
"Bracknell Forest Council","http://opendatacommunities.org/id/unitary-authority/bracknell-forest","","","Business Support","Premises Development","Easthampstead Park Centre - Catering","Cost of Goods Sold",14/05/2018 00:00:00,"30336133",35.68,"BRAKE BROS FOODSERVICE LTD"
"Bracknell Forest Council","http://opendatacommunities.org/id/unitary-authority/bracknell-forest","","","Business Support","Premises Development","Easthampstead Park Centre - Catering","Cost of Goods Sold",14/05/2018 00:00:00,"30336133",37.12,"BRAKE BROS FOODSERVICE LTD"
"Bracknell Forest Council","http://opendatacommunities.org/id/unitary-authority/bracknell-forest","","","Business Support","Premises Development","Easthampstead Park Centre - Catering","Cost of Goods Sold",16/05/2018 00:00:00,"30336133",102.88,"BRAKE BROS FOODSERVICE LTD"
"Bracknell Forest Council","http://opendatacommunities.org/id/unitary-authority/bracknell-forest","","","Business Support","Premises Development","Easthampstead Park Centre - Catering","Cost of Goods Sold",16/05/2018 00:00:00,"30336133",-16.63,"BRAKE BROS FOODSERVICE LTD"
"Bracknell Forest Council","http://opendatacommunities.org/id/unitary-authority/bracknell-forest","","","Business Support","Premises Development","Easthampstead Park Centre - Catering","Cost of Goods Sold",14/05/2018 00:00:00,"30336133",209.33,"BRAKE BROS FOODSERVICE LTD"
"Bracknell Forest Council","http://opendatacommunities.org/id/unitary-authority/bracknell-forest","","","Business Support","Premises Development","Easthampstead Park Centre - Catering","Cost of Goods Sold",16/05/2018 00:00:00,"30336133",382.69,"BRAKE BROS FOODSERVICE LTD"
"Bracknell Forest Council","http://opendatacommunities.org/id/unitary-authority/bracknell-forest","","","Business Support","Premises Development","Easthampstead Park Centre - Catering","Cost of Goods Sold",22/05/2018 00:00:00,"30336133",67.87,"KFF - KENT FROZEN FOODS LTD"
"Bracknell Forest Council","http://opendatacommunities.org/id/unitary-authority/bracknell-forest","","","Business Support","Premises Development","Easthampstead Park Centre - Catering","Cost of Goods Sold",22/05/2018 00:00:00,"30336133",109.18,"KFF - KENT FROZEN FOODS LTD"
"Bracknell Forest Council","http://opendatacommunities.org/id/unitary-authority/bracknell-forest","","","Business Support","Premises Development","Easthampstead Park Centre - Catering","Cost of Goods Sold",15/05/2018 00:00:00,"30336133",85.89,"M & J SEAFOOD"
"Bracknell Forest Council","http://opendatacommunities.org/id/unitary-authority/bracknell-forest","","","Business Support","Premises Development","Easthampstead Park Centre - Catering","Cost of Goods Sold",16/05/2018 00:00:00,"30336133",48.56,"M & J SEAFOOD"
"Bracknell Forest Council","http://opendatacommunities.org/id/unitary-authority/bracknell-forest","","","Business Support","Premises Development","Easthampstead Park Centre - Catering","Cost of Goods Sold",21/05/2018 00:00:00,"30336133",50.1,"M & J SEAFOOD"
"Bracknell Forest Council","http://opendatacommunities.org/id/unitary-authority/bracknell-forest","","","Business Support","Premises Development","Easthampstead Park Centre - Catering","Cost of Goods Sold",14/05/2018 00:00:00,"30336133",465.6,"MIKO COFFEE LTD"
"Bracknell Forest Council","http://opendatacommunities.org/id/unitary-authority/bracknell-forest","","","Business Support","Premises Development","Easthampstead Park Centre - Catering","Cost of Goods Sold",01/05/2018 00:00:00,"30336133",187.81,"THE QUALITY MEAT COMPANY"
"Bracknell Forest Council","http://opendatacommunities.org/id/unitary-authority/bracknell-forest","","","Business Support","Premises Development","Easthampstead Park Centre - Catering","Cost of Goods Sold",03/05/2018 00:00:00,"30336133",123.54,"THE QUALITY MEAT COMPANY"
"Bracknell Forest Council","http://opendatacommunities.org/id/unitary-authority/bracknell-forest","","","Business Support","Premises Development","Easthampstead Park Centre - Catering","Cost of Goods Sold",14/05/2018 00:00:00,"30336133",430.42,"THE QUALITY MEAT COMPANY"
"Bracknell Forest Council","http://opendatacommunities.org/id/unitary-authority/bracknell-forest","","","Business Support","Premises Development","Easthampstead Park Centre - Catering","Cost of Goods Sold",15/05/2018 00:00:00,"30336133",181.87,"THE QUALITY MEAT COMPANY"
"Bracknell Forest Council","http://opendatacommunities.org/id/unitary-authority/bracknell-forest","","","Business Support","Premises Development","Easthampstead Park Centre - Catering","Cost of Goods Sold",16/05/2018 00:00:00,"30336133",323.57,"THE QUALITY MEAT COMPANY"
"Bracknell Forest Council","http://opendatacommunities.org/id/unitary-authority/bracknell-forest","","","Business Support","Premises Development","Easthampstead Park Centre - Catering","Cost of Goods Sold",17/05/2018 00:00:00,"30336133",104.68,"THE QUALITY MEAT COMPANY"
"Bracknell Forest Council","http://opendatacommunities.org/id/unitary-authority/bracknell-forest","","","Business Support","Premises Development","Easthampstead Park Centre - Catering","Cost of Goods Sold",18/05/2018 00:00:00,"30336133",201.78,"THE QUALITY MEAT COMPANY"
"Bracknell Forest Council","http://opendatacommunities.org/id/unitary-authority/bracknell-forest","","","Business Support","Premises Development","Easthampstead Park Centre - Catering","Cost of Goods Sold",18/05/2018 00:00:00,"30336133",489.04,"THE QUALITY MEAT COMPANY"
"Bracknell Forest Council","http://opendatacommunities.org/id/unitary-authority/bracknell-forest","","","Business Support","Premises Development","Easthampstead Park Centre - Catering","Cost of Goods Sold",19/05/2018 00:00:00,"30336133",143.53,"THE QUALITY MEAT COMPANY"
"Bracknell Forest Council","http://opendatacommunities.org/id/unitary-authority/bracknell-forest","","","Business Support","Premises Development","Easthampstead Park Centre - Catering","Cost of Goods Sold",19/05/2018 00:00:00,"30336133",45.24,"THE QUALITY MEAT COMPANY"
"Bracknell Forest Council","http://opendatacommunities.org/id/unitary-authority/bracknell-forest","","","Business Support","Premises Development","Easthampstead Park Conference Centre","Office Stationery",23/04/2018 00:00:00,"30336136",0.21,"COMMERCIAL LTD"
"Bracknell Forest Council","http://opendatacommunities.org/id/unitary-authority/bracknell-forest","","","Business Support","Premises Development","Easthampstead Park Conference Centre","Office Stationery",23/04/2018 00:00:00,"30336136",0.21,"COMMERCIAL LTD"
"Bracknell Forest Council","http://opendatacommunities.org/id/unitary-authority/bracknell-forest","","","Business Support","Premises Development","Easthampstead Park Conference Centre","Office Stationery",23/04/2018 00:00:00,"30336136",0.42,"COMMERCIAL LTD"
"Bracknell Forest Council","http://opendatacommunities.org/id/unitary-authority/bracknell-forest","","","Business Support","Premises Development","Easthampstead Park Conference Centre","Office Stationery",23/04/2018 00:00:00,"30336136",0.46,"COMMERCIAL LTD"
"Bracknell Forest Council","http://opendatacommunities.org/id/unitary-authority/bracknell-forest","","","Business Support","Premises Development","Easthampstead Park Conference Centre","Office Stationery",23/04/2018 00:00:00,"30336136",0.9,"COMMERCIAL LTD"
"Bracknell Forest Council","http://opendatacommunities.org/id/unitary-authority/bracknell-forest","","","Business Support","Premises Development","Easthampstead Park Conference Centre","Office Stationery",23/04/2018 00:00:00,"30336136",8.7,"COMMERCIAL LTD"
"Bracknell Forest Council","http://opendatacommunities.org/id/unitary-authority/bracknell-forest","","","Business Support","Premises Development","Easthampstead Park Conference Centre","Office Stationery",23/04/2018 00:00:00,"30336136",15.4,"COMMERCIAL LTD"
"Bracknell Forest Council","http://opendatacommunities.org/id/unitary-authority/bracknell-forest","","","Business Support","Premises Development","Forest Park - Service Charges","Electricity",10/04/2018 00:00:00,"30336147",36.01,"EDF Energy"
"Bracknell Forest Council","http://opendatacommunities.org/id/unitary-authority/bracknell-forest","","","Business Support","Premises Development","Liscombe - Service Charges","Electricity",10/04/2018 00:00:00,"30336147",682.8,"EDF Energy"
"Bracknell Forest Council","http://opendatacommunities.org/id/unitary-authority/bracknell-forest","","","Business Support","Premises Development","Bus/Rail Interchange","Electricity",10/04/2018 00:00:00,"30336147",562.11,"EDF Energy"
"Bracknell Forest Council","http://opendatacommunities.org/id/unitary-authority/bracknell-forest","","","Business Support","Premises Development","Longshot Lane  - Service Charges","Electricity",10/04/2018 00:00:00,"30336147",28.17,"EDF Energy"
"Bracknell Forest Council","http://opendatacommunities.org/id/unitary-authority/bracknell-forest","","","Business Support","Premises Development","Easthampstead Park Centre - Catering","Cost of Goods Sold",25/05/2018 00:00:00,"30336406",6.18,"BFS GROUP LTD T/A BIDFOOD"
"Bracknell Forest Council","http://opendatacommunities.org/id/unitary-authority/bracknell-forest","","","Business Support","Premises Development","Easthampstead Park Centre - Catering","Cost of Goods Sold",22/05/2018 00:00:00,"30336406",239.02,"BFS GROUP LTD T/A BIDFOOD"
"Bracknell Forest Council","http://opendatacommunities.org/id/unitary-authority/bracknell-forest","","","Business Support","Premises Development","Easthampstead Park Centre - Catering","Cost of Goods Sold",24/05/2018 00:00:00,"30336406",537.73,"BFS GROUP LTD T/A BIDFOOD"
"Bracknell Forest Council","http://opendatacommunities.org/id/unitary-authority/bracknell-forest","","","Business Support","Premises Development","Easthampstead Park Centre - Catering","Cost of Goods Sold",24/05/2018 00:00:00,"30336406",29.65,"BFS GROUP LTD T/A BIDFOOD"
"Bracknell Forest Council","http://opendatacommunities.org/id/unitary-authority/bracknell-forest","","","Business Support","Premises Development","Easthampstead Park Centre - Catering","Cost of Goods Sold",25/05/2018 00:00:00,"30336406",294.18,"BFS GROUP LTD T/A BIDFOOD"
"Bracknell Forest Council","http://opendatacommunities.org/id/unitary-authority/bracknell-forest","","","Business Support","Premises Development","Easthampstead Park Centre - Catering","Cost of Goods Sold",21/05/2018 00:00:00,"30336406",-2.72,"BRAKE BROS FOODSERVICE LTD"
"Bracknell Forest Council","http://opendatacommunities.org/id/unitary-authority/bracknell-forest","","","Business Support","Premises Development","Easthampstead Park Centre - Catering","Cost of Goods Sold",21/05/2018 00:00:00,"30336406",210.57,"BRAKE BROS FOODSERVICE LTD"
"Bracknell Forest Council","http://opendatacommunities.org/id/unitary-authority/bracknell-forest","","","Business Support","Premises Development","Easthampstead Park Centre - Catering","Cost of Goods Sold",23/05/2018 00:00:00,"30336406",370.92,"BRAKE BROS FOODSERVICE LTD"
"Bracknell Forest Council","http://opendatacommunities.org/id/unitary-authority/bracknell-forest","","","Business Support","Premises Development","Easthampstead Park Centre - Catering","Cost of Goods Sold",25/05/2018 00:00:00,"30336406",402.85,"BRAKE BROS FOODSERVICE LTD"
"Bracknell Forest Council","http://opendatacommunities.org/id/unitary-authority/bracknell-forest","","","Business Support","Premises Development","Easthampstead Park Centre - Catering","Cost of Goods Sold",25/05/2018 00:00:00,"30336406",2.65,"BRAKE BROS FOODSERVICE LTD"
"Bracknell Forest Council","http://opendatacommunities.org/id/unitary-authority/bracknell-forest","","","Business Support","Premises Development","Easthampstead Park Centre - Catering","Cost of Goods Sold",21/05/2018 00:00:00,"30336406",6.81,"BRAKE BROS FOODSERVICE LTD"
"Bracknell Forest Council","http://opendatacommunities.org/id/unitary-authority/bracknell-forest","","","Business Support","Premises Development","Easthampstead Park Centre - Catering","Cost of Goods Sold",21/05/2018 00:00:00,"30336406",55.68,"BRAKE BROS FOODSERVICE LTD"
"Bracknell Forest Council","http://opendatacommunities.org/id/unitary-authority/bracknell-forest","","","Business Support","Premises Development","Easthampstead Park Centre - Catering","Cost of Goods Sold",23/05/2018 00:00:00,"30336406",35.68,"BRAKE BROS FOODSERVICE LTD"
"Bracknell Forest Council","http://opendatacommunities.org/id/unitary-authority/bracknell-forest","","","Business Support","Premises Development","Easthampstead Park Centre - Catering","Cost of Goods Sold",25/05/2018 00:00:00,"30336406",37.12,"BRAKE BROS FOODSERVICE LTD"
"Bracknell Forest Council","http://opendatacommunities.org/id/unitary-authority/bracknell-forest","","","Business Support","Premises Development","Easthampstead Park Centre - Catering","Cost of Goods Sold",22/05/2018 00:00:00,"30336406",29.22,"M & J SEAFOOD"
"Bracknell Forest Council","http://opendatacommunities.org/id/unitary-authority/bracknell-forest","","","Business Support","Premises Development","Easthampstead Park Centre - Catering","Cost of Goods Sold",24/05/2018 00:00:00,"30336406",133.37,"M & J SEAFOOD"
"Bracknell Forest Council","http://opendatacommunities.org/id/unitary-authority/bracknell-forest","","","Business Support","Premises Development","Easthampstead Park Centre - Catering","Cost of Goods Sold",25/05/2018 00:00:00,"30336406",70.2,"TOWN & COUNTRY FINE FOODS"
"Bracknell Forest Council","http://opendatacommunities.org/id/unitary-authority/bracknell-forest","","","Business Support","Premises Development","Easthampstead Park Conference Centre","Electricity",08/05/2018 00:00:00,"30336538",4194.57,"EDF Energy"
"Bracknell Forest Council","http://opendatacommunities.org/id/unitary-authority/bracknell-forest","","","Business Support","Premises Development","Easthampstead Park Conference Centre","Office Stationery",22/05/2018 00:00:00,"30336609",10.9,"COMMERCIAL LTD"
"Bracknell Forest Council","http://opendatacommunities.org/id/unitary-authority/bracknell-forest","","","Business Support","Premises Development","Easthampstead Park Conference Centre","Office Stationery",22/05/2018 00:00:00,"30336609",2.9,"COMMERCIAL LTD"
"Bracknell Forest Council","http://opendatacommunities.org/id/unitary-authority/bracknell-forest","","","Business Support","Premises Development","Easthampstead Park Conference Centre","Office Stationery",22/05/2018 00:00:00,"30336609",6.3,"COMMERCIAL LTD"
"Bracknell Forest Council","http://opendatacommunities.org/id/unitary-authority/bracknell-forest","","","Business Support","Premises Development","Easthampstead Park Conference Centre","Office Stationery",22/05/2018 00:00:00,"30336609",6.52,"COMMERCIAL LTD"
"Bracknell Forest Council","http://opendatacommunities.org/id/unitary-authority/bracknell-forest","","","Business Support","Premises Development","Easthampstead Park Conference Centre","Office Stationery",22/05/2018 00:00:00,"30336609",4.4,"COMMERCIAL LTD"
"Bracknell Forest Council","http://opendatacommunities.org/id/unitary-authority/bracknell-forest","","","Business Support","Premises Development","Easthampstead Park Conference Centre","Office Stationery",22/05/2018 00:00:00,"30336609",9.6,"COMMERCIAL LTD"
"Bracknell Forest Council","http://opendatacommunities.org/id/unitary-authority/bracknell-forest","","","Business Support","Premises Development","Easthampstead Park Conference Centre","Office Stationery",22/05/2018 00:00:00,"30336609",30.64,"COMMERCIAL LTD"
"Bracknell Forest Council","http://opendatacommunities.org/id/unitary-authority/bracknell-forest","","","Business Support","Premises Development","Easthampstead Park Conference Centre","Office Stationery",22/05/2018 00:00:00,"30336609",50,"COMMERCIAL LTD"
"Bracknell Forest Council","http://opendatacommunities.org/id/unitary-authority/bracknell-forest","","","Business Support","Premises Development","Easthampstead Park Conference Centre","Office Stationery",22/05/2018 00:00:00,"30336609",0.4,"COMMERCIAL LTD"
"Bracknell Forest Council","http://opendatacommunities.org/id/unitary-authority/bracknell-forest","","","Business Support","Premises Development","Easthampstead Park Conference Centre","Office Stationery",22/05/2018 00:00:00,"30336609",0.25,"COMMERCIAL LTD"
"Bracknell Forest Council","http://opendatacommunities.org/id/unitary-authority/bracknell-forest","","","Cemeteries, Crematoria & Mortuary Services","Cemeteries & Crematorium","Easthampstead Park Cemetery & Crematorium","Cost of Goods Sold",04/04/2018 00:00:00,"6659617",657.09,"F G MARSHALL LTD"
"Bracknell Forest Council","http://opendatacommunities.org/id/unitary-authority/bracknell-forest","","","Cemeteries, Crematoria & Mortuary Services","Cemeteries & Crematorium","Easthampstead Park Cemetery & Crematorium","Contract Cleaning",26/04/2018 00:00:00,"6660481",1325,"CLEAN UPS"
"Bracknell Forest Council","http://opendatacommunities.org/id/unitary-authority/bracknell-forest","","","Cemeteries, Crematoria & Mortuary Services","Cemeteries & Crematorium","Cemetery & Crematorium Landscaping","Equipment - Purchase",08/03/2018 00:00:00,"6660642",2787.51,"FAROL LIMITED"
"Bracknell Forest Council","http://opendatacommunities.org/id/unitary-authority/bracknell-forest","","","Cemeteries, Crematoria & Mortuary Services","Cemeteries & Crematorium","Cemetery & Crematorium Landscaping","Contracted Services",30/04/2018 00:00:00,"6661247",2103.29,"FAROL LIMITED"
"Bracknell Forest Council","http://opendatacommunities.org/id/unitary-authority/bracknell-forest","","","Cemeteries, Crematoria & Mortuary Services","Cemeteries & Crematorium","Easthampstead Park Cemetery & Crematorium","Cost of Goods Sold",30/04/2018 00:00:00,"6661248",1490,"VIVEDIA LTD / OBITUS"
"Bracknell Forest Council","http://opendatacommunities.org/id/unitary-authority/bracknell-forest","","","Cemeteries, Crematoria & Mortuary Services","Cemeteries & Crematorium","Easthampstead Park Cemetery & Crematorium","Contracted Services",30/04/2018 00:00:00,"6661562",2100,"NEIL CURTIS  & SONS FUNERAL CONTRACTORS LIMITED"
"Bracknell Forest Council","http://opendatacommunities.org/id/unitary-authority/bracknell-forest","","","Cemeteries, Crematoria & Mortuary Services","Cemeteries & Crematorium","Easthampstead Park Cemetery & Crematorium","Cost of Goods Sold",23/05/2018 00:00:00,"6661670",1130.4,"MARMAX PRODUCTS LTD"
"Bracknell Forest Council","http://opendatacommunities.org/id/unitary-authority/bracknell-forest","","","Cemeteries, Crematoria & Mortuary Services","Cemeteries & Crematorium","Easthampstead Park Cemetery & Crematorium","R&M - Service Contracts",27/04/2018 00:00:00,"6661676",5725,"FACULTATIEVE TECHNOLOGIES LTD"
"Bracknell Forest Council","http://opendatacommunities.org/id/unitary-authority/bracknell-forest","","","Cemeteries, Crematoria & Mortuary Services","Cemeteries & Crematorium","Easthampstead Park Cemetery & Crematorium","R&M - Reactive",21/05/2018 00:00:00,"6661897",3020,"RINGWAY INFRASTRUCTURE SERVICES LTD"
"Bracknell Forest Council","http://opendatacommunities.org/id/unitary-authority/bracknell-forest","","","Cemeteries, Crematoria & Mortuary Services","Cemeteries & Crematorium","Easthampstead Park Cemetery & Crematorium","Contracted Services",15/05/2018 00:00:00,"6661927",880,"COMFORT BUILDING SERVICES"
"Bracknell Forest Council","http://opendatacommunities.org/id/unitary-authority/bracknell-forest","","","Cemeteries, Crematoria & Mortuary Services","Cemeteries & Crematorium","Easthampstead Park Cemetery & Crematorium","R&M - Reactive",15/05/2018 00:00:00,"6661962",3885,"AURA SECURITY GROUP LTD"
"Bracknell Forest Council","http://opendatacommunities.org/id/unitary-authority/bracknell-forest","","","Cemeteries, Crematoria & Mortuary Services","Cemeteries & Crematorium","Easthampstead Park Cemetery & Crematorium","R&M - Reactive",15/05/2018 00:00:00,"6662105",3000,"AMI (HERTS) LTD"
"Bracknell Forest Council","http://opendatacommunities.org/id/unitary-authority/bracknell-forest","","","Cemeteries, Crematoria & Mortuary Services","Cemeteries & Crematorium","Easthampstead Park Cemetery & Crematorium","Cost of Goods Sold",25/05/2018 00:00:00,"6662197",540,"ATTGROW HORTICULTURAL SUPPLIE"
"Bracknell Forest Council","http://opendatacommunities.org/id/unitary-authority/bracknell-forest","","","Cemeteries, Crematoria & Mortuary Services","Cemeteries & Crematorium","Easthampstead Park Cemetery & Crematorium","Electricity",10/05/2018 00:00:00,"30336132",18.49,"EDF Energy"
"Bracknell Forest Council","http://opendatacommunities.org/id/unitary-authority/bracknell-forest","","","Cemeteries, Crematoria & Mortuary Services","Cemeteries & Crematorium","Easthampstead Park Cemetery & Crematorium","Electricity",10/04/2018 00:00:00,"30336147",20.25,"EDF Energy"
"Bracknell Forest Council","http://opendatacommunities.org/id/unitary-authority/bracknell-forest","","","Cemeteries, Crematoria & Mortuary Services","Cemeteries & Crematorium","Easthampstead Park Cemetery & Crematorium","Electricity",08/05/2018 00:00:00,"30336538",1849.59,"EDF Energy"
"Bracknell Forest Council","http://opendatacommunities.org/id/unitary-authority/bracknell-forest","","","Central Support Services - COF","Valuers","Property Services","Professional Subscriptions & Legal Practising Cert",01/03/2018 00:00:00,"6656603",519,"RICS BOOKS"
"Bracknell Forest Council","http://opendatacommunities.org/id/unitary-authority/bracknell-forest","","","Central Support Services - COF","Personnel","Training Services","Consultants Fees",23/03/2018 00:00:00,"6658380",5211.35,"SOLACE GROUP LTD"
"Bracknell Forest Council","http://opendatacommunities.org/id/unitary-authority/bracknell-forest","","","Central Support Services - COF","Information Technology","Technical  Services","Equipment - R&M",23/03/2018 00:00:00,"6658753",25410,"FRESHWORKS INC"
"Bracknell Forest Council","http://opendatacommunities.org/id/unitary-authority/bracknell-forest","","","Central Support Services - COF","Construction and Property","Construction & Maintenance","Agency",04/04/2018 00:00:00,"6658895",860,"THE OYSTER PARTNERSHIP"
"Bracknell Forest Council","http://opendatacommunities.org/id/unitary-authority/bracknell-forest","","","Central Support Services - COF","Personnel","Training Services","Training Costs",29/03/2018 00:00:00,"6658928",710,"CLIKAPAD LIMITED"
"Bracknell Forest Council","http://opendatacommunities.org/id/unitary-authority/bracknell-forest","","","Central Support Services - COF","Construction and Property","Time Square Office","Security Systems",23/03/2018 00:00:00,"6658935",2299,"IQ SECURITY LTD"
"Bracknell Forest Council","http://opendatacommunities.org/id/unitary-authority/bracknell-forest","","","Central Support Services - COF","Construction and Property","Time Square Office","Water & Sewerage",01/02/2018 00:00:00,"6658949",1459.79,"CASTLE WATER LIMITED"
"Bracknell Forest Council","http://opendatacommunities.org/id/unitary-authority/bracknell-forest","","","Central Support Services - COF","Information Technology","ICT Telephony","Telephones - Rental & Call Charges",31/03/2018 00:00:00,"6658970",603.68,"BT CONFERENCING"
"Bracknell Forest Council","http://opendatacommunities.org/id/unitary-authority/bracknell-forest","","","Central Support Services - COF","Personnel","LSCB - n=money","Training Costs",31/03/2018 00:00:00,"6658985",600,"PUBLIC SERVICES TRAINING PROFESSIONAL / RICHARD WOODLEY"
"Bracknell Forest Council","http://opendatacommunities.org/id/unitary-authority/bracknell-forest","","","Central Support Services - COF","Finance","Insurance Premiums Holding Account","Insurance Premiums",01/03/2018 00:00:00,"6659020",896,"PIB INSURANCE BROKERS"
"Bracknell Forest Council","http://opendatacommunities.org/id/unitary-authority/bracknell-forest","","","Central Support Services - COF","Finance","Insurance Premiums Holding Account","Insurance Premiums",01/03/2018 00:00:00,"6659021",1216.95,"PIB INSURANCE BROKERS"
"Bracknell Forest Council","http://opendatacommunities.org/id/unitary-authority/bracknell-forest","","","Central Support Services - COF","Finance","Insurance Premiums Holding Account","Insurance Premiums",01/03/2018 00:00:00,"6659022",2688,"PIB INSURANCE BROKERS"
"Bracknell Forest Council","http://opendatacommunities.org/id/unitary-authority/bracknell-forest","","","Central Support Services - COF","Information Technology","ICT Telephony","Mobile Telephones",24/03/2018 00:00:00,"6659039",963.11,"VODAFONE CORPORATE"
"Bracknell Forest Council","http://opendatacommunities.org/id/unitary-authority/bracknell-forest","","","Central Support Services - COF","Policy Unit","Transformation Board","Consultants Fees",06/04/2018 00:00:00,"6659101",22898.4,"Redact Personal Info"
"Bracknell Forest Council","http://opendatacommunities.org/id/unitary-authority/bracknell-forest","","","Central Support Services - COF","Construction and Property","Depot Facilities","Security Systems",28/03/2018 00:00:00,"6659147",3340.86,"IQ SECURITY LTD"
"Bracknell Forest Council","http://opendatacommunities.org/id/unitary-authority/bracknell-forest","","","Central Support Services - COF","Construction and Property","Depot Facilities","Security Systems",28/03/2018 00:00:00,"6659149",3494.64,"IQ SECURITY LTD"
"Bracknell Forest Council","http://opendatacommunities.org/id/unitary-authority/bracknell-forest","","","Central Support Services - COF","Finance","Finance - Schools SLA","Computer Software",08/03/2018 00:00:00,"6659274",9200,"access / HCSS EDUCATION LIMITED"
"Bracknell Forest Council","http://opendatacommunities.org/id/unitary-authority/bracknell-forest","","","Central Support Services - COF","Personnel","Training Services","Training Costs",11/04/2018 00:00:00,"6659341",2200,"SHOOSMITHS"
"Bracknell Forest Council","http://opendatacommunities.org/id/unitary-authority/bracknell-forest","","","Central Support Services - COF","Valuers","Property Services","Professional Subscriptions & Legal Practising Cert",01/01/2018 00:00:00,"6659386",519,"RICS"
"Bracknell Forest Council","http://opendatacommunities.org/id/unitary-authority/bracknell-forest","","","Central Support Services - COF","Fleet","Transport Services","Vehicle Repairs",05/04/2018 00:00:00,"6659435",836.99,"FOREST ACCIDENT REPAIR CENTRE LIMITED"
"Bracknell Forest Council","http://opendatacommunities.org/id/unitary-authority/bracknell-forest","","","Central Support Services - COF","Policy Unit","Transformation Board","Consultants Fees",10/04/2018 00:00:00,"6659445",840,"ALPINE RESOURCING LTD"
"Bracknell Forest Council","http://opendatacommunities.org/id/unitary-authority/bracknell-forest","","","Central Support Services - COF","Information Technology","Departmental ICT","Computer Software",01/02/2018 00:00:00,"6659449",2700,"TRICS CONSORTIUM LIMITED"
"Bracknell Forest Council","http://opendatacommunities.org/id/unitary-authority/bracknell-forest","","","Central Support Services - COF","Construction and Property","Time Square Office","Security Systems",10/04/2018 00:00:00,"6659453",1053,"IQ SECURITY LTD"
"Bracknell Forest Council","http://opendatacommunities.org/id/unitary-authority/bracknell-forest","","","Central Support Services - COF","Fleet","Transport Services","Vehicle Repairs",09/04/2018 00:00:00,"6659482",528.69,"FOREST MOT & SERVICE CENTRE"
"Bracknell Forest Council","http://opendatacommunities.org/id/unitary-authority/bracknell-forest","","","Central Support Services - COF","Information Technology","Technical  Services","Equipment - R&M",07/04/2018 00:00:00,"6659520",2010,"DOCUMENT OUTPUT SOLUTIONS (UK) LTD -(XLPRINT SOFTW"
"Bracknell Forest Council","http://opendatacommunities.org/id/unitary-authority/bracknell-forest","","","Central Support Services - COF","Construction and Property","Construction & Maintenance","Agency",11/04/2018 00:00:00,"6659527",860,"THE OYSTER PARTNERSHIP"
"Bracknell Forest Council","http://opendatacommunities.org/id/unitary-authority/bracknell-forest","","","Central Support Services - COF","Customer Service Centre","Cashiers Services","Banking Charges",12/04/2018 00:00:00,"6659535",4901.84,"CAPITA BUSINESS SERVICES LTD"
"Bracknell Forest Council","http://opendatacommunities.org/id/unitary-authority/bracknell-forest","","","Central Support Services - COF","Construction and Property","Energy Section","Consultants Fees",13/04/2018 00:00:00,"6659581",15700,"CONTROL MATTERS LTD"
"Bracknell Forest Council","http://opendatacommunities.org/id/unitary-authority/bracknell-forest","","","Central Support Services - COF","Legal","Legal Services","Other Income",19/04/2018 00:00:00,"6659588",15515.5,"PERSIMMON HOMES LTD"
"Bracknell Forest Council","http://opendatacommunities.org/id/unitary-authority/bracknell-forest","","","Central Support Services - COF","Fleet","Transport Services","Taxi Fares - Home/School Transport",31/03/2018 00:00:00,"6659605",1780.6,"JJM TAXIS & ZULU CARS LTD"
"Bracknell Forest Council","http://opendatacommunities.org/id/unitary-authority/bracknell-forest","","","Central Support Services - COF","Construction and Property","Construction & Maintenance","Agency",18/04/2018 00:00:00,"6659647",1290,"THE OYSTER PARTNERSHIP"
"Bracknell Forest Council","http://opendatacommunities.org/id/unitary-authority/bracknell-forest","","","Central Support Services - COF","Information Technology","Departmental ICT","Computer Software Maintenance",19/03/2018 00:00:00,"6659651",31420,"CAPITA BUSINESS SERVICES LTD"
"Bracknell Forest Council","http://opendatacommunities.org/id/unitary-authority/bracknell-forest","","","Central Support Services - COF","Fleet","Integrated Transport Unit","Other Income",20/02/2018 00:00:00,"6659661",-5850.59,"AUTOMOTIVE LEASING"
"Bracknell Forest Council","http://opendatacommunities.org/id/unitary-authority/bracknell-forest","","","Central Support Services - COF","Policy Unit","External Communications","Photography",29/03/2018 00:00:00,"6659711",2000,"Redact Personal Info"
"Bracknell Forest Council","http://opendatacommunities.org/id/unitary-authority/bracknell-forest","","","Central Support Services - COF","Construction and Property","Time Square Office","R&M - Reactive",19/04/2018 00:00:00,"6659781",900,"BERKSHIRE MECHANICAL SERVICES"
"Bracknell Forest Council","http://opendatacommunities.org/id/unitary-authority/bracknell-forest","","","Central Support Services - COF","Construction and Property","Time Square Office","R&M - Reactive",19/04/2018 00:00:00,"6659781",600,"BERKSHIRE MECHANICAL SERVICES"
"Bracknell Forest Council","http://opendatacommunities.org/id/unitary-authority/bracknell-forest","","","Central Support Services - COF","Construction and Property","Time Square Office","R&M - Reactive",19/04/2018 00:00:00,"6659782",782.8,"BERKSHIRE MECHANICAL SERVICES"
"Bracknell Forest Council","http://opendatacommunities.org/id/unitary-authority/bracknell-forest","","","Central Support Services - COF","Finance","Technical Accountancy","Reference Books & Publications",14/03/2018 00:00:00,"6659829",1625,"RICS BOOKS"
"Bracknell Forest Council","http://opendatacommunities.org/id/unitary-authority/bracknell-forest","","","Central Support Services - COF","Fleet","Green Travel Issues","Equipment - Rental",22/03/2018 00:00:00,"6659851",600,"MOVOLYTICS LIMITED"
"Bracknell Forest Council","http://opendatacommunities.org/id/unitary-authority/bracknell-forest","","","Central Support Services - COF","Policy Unit","Transformation Board","Consultants Fees",13/04/2018 00:00:00,"6659883",2000,"IGNITE CONSULTING LTD"
"Bracknell Forest Council","http://opendatacommunities.org/id/unitary-authority/bracknell-forest","","","Central Support Services - COF","Information Technology","Departmental ICT","Computer Software Maintenance",18/04/2018 00:00:00,"6659887",72474.78,"LIQUIDLOGIC"
"Bracknell Forest Council","http://opendatacommunities.org/id/unitary-authority/bracknell-forest","","","Central Support Services - COF","Customer Service Centre","Customer Services","Computer -Purchase",16/03/2018 00:00:00,"6659918",974.7,"DELL COMPUTER CORPORATION"
"Bracknell Forest Council","http://opendatacommunities.org/id/unitary-authority/bracknell-forest","","","Central Support Services - COF","Customer Service Centre","Customer Services","Computer -Purchase",16/03/2018 00:00:00,"6659918",2311.55,"DELL COMPUTER CORPORATION"
"Bracknell Forest Council","http://opendatacommunities.org/id/unitary-authority/bracknell-forest","","","Central Support Services - COF","Construction and Property","Easthampstead House","Agency",18/04/2018 00:00:00,"6660065",531.5,"OFFICE ANGELS LTD"
"Bracknell Forest Council","http://opendatacommunities.org/id/unitary-authority/bracknell-forest","","","Central Support Services - COF","Finance","Internal Audit","Contracted Services",20/04/2018 00:00:00,"6660195",5535,"CROYDON COUNCIL"
"Bracknell Forest Council","http://opendatacommunities.org/id/unitary-authority/bracknell-forest","","","Central Support Services - COF","Information Technology","Communications","Equipment - Rental",17/04/2018 00:00:00,"6660221",2708.98,"VODAFONE LIMITED"
"Bracknell Forest Council","http://opendatacommunities.org/id/unitary-authority/bracknell-forest","","","Central Support Services - COF","Fleet","Pool Cars","Operating Lease Charge",16/04/2018 00:00:00,"6660224",2695.08,"LEX AUTOLEASE LTD"
"Bracknell Forest Council","http://opendatacommunities.org/id/unitary-authority/bracknell-forest","","","Central Support Services - COF","Information Technology","Communications","Equipment - Rental",01/04/2018 00:00:00,"6660227",2642.61,"VODAFONE LIMITED"
"Bracknell Forest Council","http://opendatacommunities.org/id/unitary-authority/bracknell-forest","","","Central Support Services - COF","Information Technology","Communications","Equipment - Rental",15/01/2018 00:00:00,"6660228",2708.98,"VODAFONE LIMITED"
"Bracknell Forest Council","http://opendatacommunities.org/id/unitary-authority/bracknell-forest","","","Central Support Services - COF","Information Technology","Communications","Equipment - Rental",26/03/2018 00:00:00,"6660229",2708.98,"VODAFONE LIMITED"
"Bracknell Forest Council","http://opendatacommunities.org/id/unitary-authority/bracknell-forest","","","Central Support Services - COF","Information Technology","Departmental ICT","Computer Software Maintenance",21/02/2018 00:00:00,"6660230",3567,"SOFTBOX LTD"
"Bracknell Forest Council","http://opendatacommunities.org/id/unitary-authority/bracknell-forest","","","Central Support Services - COF","Fleet","Transport Services","Vehicle Repairs",01/12/2017 00:00:00,"6660242",500,"FOREST ACCIDENT REPAIR CENTRE LIMITED"
"Bracknell Forest Council","http://opendatacommunities.org/id/unitary-authority/bracknell-forest","","","Central Support Services - COF","Fleet","Transport Services","Vehicle Repairs",01/12/2017 00:00:00,"6660242",2188.3,"FOREST ACCIDENT REPAIR CENTRE LIMITED"
"Bracknell Forest Council","http://opendatacommunities.org/id/unitary-authority/bracknell-forest","","","Central Support Services - COF","Fleet","Transport Services","Vehicle Repairs",01/12/2017 00:00:00,"6660242",-2188.3,"FOREST ACCIDENT REPAIR CENTRE LIMITED"
"Bracknell Forest Council","http://opendatacommunities.org/id/unitary-authority/bracknell-forest","","","Central Support Services - COF","Construction and Property","Easthampstead House","Agency",25/04/2018 00:00:00,"6660259",502.2,"OFFICE ANGELS LTD"
"Bracknell Forest Council","http://opendatacommunities.org/id/unitary-authority/bracknell-forest","","","Central Support Services - COF","Policy Unit","Transformation Board","Consultants Fees",18/04/2018 00:00:00,"6660274",6346.43,"ALPINE RESOURCING LTD"
"Bracknell Forest Council","http://opendatacommunities.org/id/unitary-authority/bracknell-forest","","","Central Support Services - COF","Legal","Legal Services","Approved Conference Fees & Expenses",23/04/2018 00:00:00,"6660285",600,"MBL SEMINARS LIMITED"
"Bracknell Forest Council","http://opendatacommunities.org/id/unitary-authority/bracknell-forest","","","Central Support Services - COF","Fleet","Transport Services","Vehicle Repairs",25/04/2018 00:00:00,"6660370",1039.6,"FOREST ACCIDENT REPAIR CENTRE LIMITED"
"Bracknell Forest Council","http://opendatacommunities.org/id/unitary-authority/bracknell-forest","","","Central Support Services - COF","Fleet","Transport Services","Vehicle Repairs",25/04/2018 00:00:00,"6660370",500,"FOREST ACCIDENT REPAIR CENTRE LIMITED"
"Bracknell Forest Council","http://opendatacommunities.org/id/unitary-authority/bracknell-forest","","","Central Support Services - COF","Fleet","Transport Services","Vehicle Repairs",25/04/2018 00:00:00,"6660370",-1039.6,"FOREST ACCIDENT REPAIR CENTRE LIMITED"
"Bracknell Forest Council","http://opendatacommunities.org/id/unitary-authority/bracknell-forest","","","Central Support Services - COF","Fleet","Transport Services","Vehicle Repairs",25/04/2018 00:00:00,"6660371",1684.95,"FOREST ACCIDENT REPAIR CENTRE LIMITED"
"Bracknell Forest Council","http://opendatacommunities.org/id/unitary-authority/bracknell-forest","","","Central Support Services - COF","Fleet","Transport Services","Vehicle Repairs",25/04/2018 00:00:00,"6660371",500,"FOREST ACCIDENT REPAIR CENTRE LIMITED"
"Bracknell Forest Council","http://opendatacommunities.org/id/unitary-authority/bracknell-forest","","","Central Support Services - COF","Fleet","Transport Services","Vehicle Repairs",25/04/2018 00:00:00,"6660371",-1684.95,"FOREST ACCIDENT REPAIR CENTRE LIMITED"
"Bracknell Forest Council","http://opendatacommunities.org/id/unitary-authority/bracknell-forest","","","Central Support Services - COF","Construction and Property","Construction & Maintenance","Agency",25/04/2018 00:00:00,"6660380",1290,"THE OYSTER PARTNERSHIP"
"Bracknell Forest Council","http://opendatacommunities.org/id/unitary-authority/bracknell-forest","","","Central Support Services - COF","Construction and Property","Time Square Office","Equipment - Purchase",09/04/2018 00:00:00,"6660414",1125,"CURRYS PC WORLD BUSINESS"
"Bracknell Forest Council","http://opendatacommunities.org/id/unitary-authority/bracknell-forest","","","Central Support Services - COF","Personnel","Personnel Services - Occupational Health","Other Fees for Bought-in Services",25/04/2018 00:00:00,"6660432",5283.94,"HEALES MEDICAL LTD"
"Bracknell Forest Council","http://opendatacommunities.org/id/unitary-authority/bracknell-forest","","","Central Support Services - COF","Policy Unit","Transformation Board","Other Fees for Bought-in Services",01/05/2018 00:00:00,"6660515",8331.4,"Redact Personal Info"
"Bracknell Forest Council","http://opendatacommunities.org/id/unitary-authority/bracknell-forest","","","Central Support Services - COF","Policy Unit","Transformation Board","Other Fees for Bought-in Services",01/05/2018 00:00:00,"6660516",6841.8,"Redact Personal Info"
"Bracknell Forest Council","http://opendatacommunities.org/id/unitary-authority/bracknell-forest","","","Central Support Services - COF","Personnel","Personnel Services - Occupational Health","Other Fees for Bought-in Services",30/04/2018 00:00:00,"6660607",599.21,"HEALES MEDICAL LTD"
"Bracknell Forest Council","http://opendatacommunities.org/id/unitary-authority/bracknell-forest","","","Central Support Services - COF","Information Technology","Communications","Equipment - Rental",24/04/2018 00:00:00,"6660768",1167.47,"BT GLOBAL SERVICES"
"Bracknell Forest Council","http://opendatacommunities.org/id/unitary-authority/bracknell-forest","","","Central Support Services - COF","Finance","Technical Accountancy","Staff Public Transport Fares",27/04/2018 00:00:00,"6660786",3215.55,"RSP LTD"
"Bracknell Forest Council","http://opendatacommunities.org/id/unitary-authority/bracknell-forest","","","Central Support Services - COF","Information Technology","ICT Telephony","Mobile Telephones",24/04/2018 00:00:00,"6660787",968.9,"VODAFONE CORPORATE"
"Bracknell Forest Council","http://opendatacommunities.org/id/unitary-authority/bracknell-forest","","","Central Support Services - COF","Information Technology","ICT Telephony","Mobile Telephones",24/04/2018 00:00:00,"6660788",3526.99,"VODAFONE CORPORATE"
"Bracknell Forest Council","http://opendatacommunities.org/id/unitary-authority/bracknell-forest","","","Central Support Services - COF","Construction and Property","Construction & Maintenance","Consultants Fees",27/03/2018 00:00:00,"6660796",16995,"FRONTLINE DATA LTD"
"Bracknell Forest Council","http://opendatacommunities.org/id/unitary-authority/bracknell-forest","","","Central Support Services - COF","Policy Unit","Transformation Board","Other Fees for Bought-in Services",30/04/2018 00:00:00,"6660797",1875,"INVOLVE"
"Bracknell Forest Council","http://opendatacommunities.org/id/unitary-authority/bracknell-forest","","","Central Support Services - COF","Personnel","Corporate Health & Safety","Computer Software",01/05/2018 00:00:00,"6660839",3995,"FRONTLINE DATA LTD"
"Bracknell Forest Council","http://opendatacommunities.org/id/unitary-authority/bracknell-forest","","","Central Support Services - COF","Information Technology","Communications","Equipment - R&M",04/04/2018 00:00:00,"6660858",930,"SOLARWINDS SOFTWARE EUROPE LTD"
"Bracknell Forest Council","http://opendatacommunities.org/id/unitary-authority/bracknell-forest","","","Central Support Services - COF","Finance","Insurance Premiums Holding Account","Insurance Premiums",20/04/2018 00:00:00,"6660977",9011,"Redact Personal Info"
"Bracknell Forest Council","http://opendatacommunities.org/id/unitary-authority/bracknell-forest","","","Central Support Services - COF","Construction and Property","Construction & Maintenance","Agency",02/05/2018 00:00:00,"6661044",1720,"THE OYSTER PARTNERSHIP"
"Bracknell Forest Council","http://opendatacommunities.org/id/unitary-authority/bracknell-forest","","","Central Support Services - COF","Information Technology","ICT Telephony","Telephones - Rental & Call Charges",26/04/2018 00:00:00,"6661047",9956.59,"BT GLOBAL SERVICES"
"Bracknell Forest Council","http://opendatacommunities.org/id/unitary-authority/bracknell-forest","","","Central Support Services - COF","Personnel","Training Services","Training Costs",28/03/2018 00:00:00,"6661103",3900,"CIPD / CHARTERED INSTITUTE OF PERSONNEL AND DEVELOPMENT"
"Bracknell Forest Council","http://opendatacommunities.org/id/unitary-authority/bracknell-forest","","","Central Support Services - COF","Information Technology","Web Team","Licences",30/04/2018 00:00:00,"6661115",2300,"FIRMSTEP"
"Bracknell Forest Council","http://opendatacommunities.org/id/unitary-authority/bracknell-forest","","","Central Support Services - COF","Information Technology","ICT Telephony","Mobile Telephones",24/04/2018 00:00:00,"6661126",541.76,"VODAFONE CORPORATE"
"Bracknell Forest Council","http://opendatacommunities.org/id/unitary-authority/bracknell-forest","","","Central Support Services - COF","Information Technology","ICT Telephony","Mobile Telephones",24/04/2018 00:00:00,"6661129",2560.95,"VODAFONE CORPORATE"
"Bracknell Forest Council","http://opendatacommunities.org/id/unitary-authority/bracknell-forest","","","Central Support Services - COF","Construction and Property","Depot Facilities","Water & Sewerage",23/10/2017 00:00:00,"6661131",2198.28,"CASTLE WATER LIMITED"
"Bracknell Forest Council","http://opendatacommunities.org/id/unitary-authority/bracknell-forest","","","Central Support Services - COF","Personnel","Step Up Cohort 5","Training Costs",04/05/2018 00:00:00,"6661148",8464,"BUCKS/BUCKINGHAMSHIRE NEW UNIVERSITY"
"Bracknell Forest Council","http://opendatacommunities.org/id/unitary-authority/bracknell-forest","","","Central Support Services - COF","Policy Unit","Transformation Board","Consultants Fees",09/05/2018 00:00:00,"6661189",2250,"LOGJEC RECRUITMENT"
"Bracknell Forest Council","http://opendatacommunities.org/id/unitary-authority/bracknell-forest","","","Central Support Services - COF","Policy Unit","Transformation Board","Consultants Fees",30/04/2018 00:00:00,"6661190",2250,"LOGJEC RECRUITMENT"
"Bracknell Forest Council","http://opendatacommunities.org/id/unitary-authority/bracknell-forest","","","Central Support Services - COF","Policy Unit","Transformation Board","Consultants Fees",26/04/2018 00:00:00,"6661191",2250,"LOGJEC RECRUITMENT"
"Bracknell Forest Council","http://opendatacommunities.org/id/unitary-authority/bracknell-forest","","","Central Support Services - COF","Policy Unit","Transformation Board","Consultants Fees",30/04/2018 00:00:00,"6661198",2250,"LOGJEC RECRUITMENT"
"Bracknell Forest Council","http://opendatacommunities.org/id/unitary-authority/bracknell-forest","","","Central Support Services - COF","Policy Unit","Transformation Board","Consultants Fees",10/04/2018 00:00:00,"6661201",1800,"LOGJEC RECRUITMENT"
"Bracknell Forest Council","http://opendatacommunities.org/id/unitary-authority/bracknell-forest","","","Central Support Services - COF","Policy Unit","Transformation Board","Consultants Fees",10/04/2018 00:00:00,"6661203",1350,"LOGJEC RECRUITMENT"
"Bracknell Forest Council","http://opendatacommunities.org/id/unitary-authority/bracknell-forest","","","Central Support Services - COF","Finance","Insurance Premiums Holding Account","Insurance Premiums",04/05/2018 00:00:00,"6661333",11429.48,"ALLIANZ INSURANCE PLC"
"Bracknell Forest Council","http://opendatacommunities.org/id/unitary-authority/bracknell-forest","","","Central Support Services - COF","Finance","Insurance Premiums Holding Account","Insurance Premiums",04/05/2018 00:00:00,"6661333",2335.87,"ALLIANZ INSURANCE PLC"
"Bracknell Forest Council","http://opendatacommunities.org/id/unitary-authority/bracknell-forest","","","Central Support Services - COF","Personnel","Personnel Services","Licences",01/04/2018 00:00:00,"6661363",1573.21,"GEMINI CONSULTANTS LTD"
"Bracknell Forest Council","http://opendatacommunities.org/id/unitary-authority/bracknell-forest","","","Central Support Services - COF","Information Technology","ICT Telephony","Mobile Telephones",30/04/2018 00:00:00,"6661368",1135,"VODAFONE CORPORATE"
"Bracknell Forest Council","http://opendatacommunities.org/id/unitary-authority/bracknell-forest","","","Central Support Services - COF","Finance","Procurement","Agency",18/05/2018 00:00:00,"6661373",1910.4,"HAYS SPECIALIST RECRUITMENT"
"Bracknell Forest Council","http://opendatacommunities.org/id/unitary-authority/bracknell-forest","","","Central Support Services - COF","Construction and Property","Time Square Office","Refuse Collection",09/04/2018 00:00:00,"6661398",600,"PB GARDEN SERVICES - PETER BARRATT"
"Bracknell Forest Council","http://opendatacommunities.org/id/unitary-authority/bracknell-forest","","","Central Support Services - COF","Finance","Technical Accountancy","Reference Books & Publications",10/05/2018 00:00:00,"6661411",690,"CIPFA BUSINESS LTD"
"Bracknell Forest Council","http://opendatacommunities.org/id/unitary-authority/bracknell-forest","","","Central Support Services - COF","Fleet","Transport Services","Taxi Fares - Home/School Transport",30/04/2018 00:00:00,"6661416",746,"JJM TAXIS & ZULU CARS LTD"
"Bracknell Forest Council","http://opendatacommunities.org/id/unitary-authority/bracknell-forest","","","Central Support Services - COF","Fleet","Transport Services","Taxi Charges",01/05/2018 00:00:00,"6661478",2099.4,"BERKSHIRE EDUCATION TRAVEL"
"Bracknell Forest Council","http://opendatacommunities.org/id/unitary-authority/bracknell-forest","","","Central Support Services - COF","Fleet","R-Bus","Taxi Charges",01/05/2018 00:00:00,"6661478",701.2,"BERKSHIRE EDUCATION TRAVEL"
"Bracknell Forest Council","http://opendatacommunities.org/id/unitary-authority/bracknell-forest","","","Central Support Services - COF","Customer Service Centre","Cashiers Services","Banking Charges",08/05/2018 00:00:00,"6661479",5783.7,"CAPITA BUSINESS SERVICES LTD"
"Bracknell Forest Council","http://opendatacommunities.org/id/unitary-authority/bracknell-forest","","","Central Support Services - COF","Policy Unit","Transformation Board","Consultants Fees",30/04/2018 00:00:00,"6661487",2475,"ALPINE RESOURCING LTD"
"Bracknell Forest Council","http://opendatacommunities.org/id/unitary-authority/bracknell-forest","","","Central Support Services - COF","Policy Unit","Transformation Board","Consultants Fees",08/05/2018 00:00:00,"6661489",4193.77,"ALPINE RESOURCING LTD"
"Bracknell Forest Council","http://opendatacommunities.org/id/unitary-authority/bracknell-forest","","","Central Support Services - COF","Policy Unit","Transformation Board","Consultants Fees",06/03/2018 00:00:00,"6661532",2625,"IGNITE CONSULTING LTD"
"Bracknell Forest Council","http://opendatacommunities.org/id/unitary-authority/bracknell-forest","","","Central Support Services - COF","Information Technology","Technical  Services","Training Costs",14/05/2018 00:00:00,"6661536",12973.5,"INSIGHT DIRECT (UK) LIMITED"
"Bracknell Forest Council","http://opendatacommunities.org/id/unitary-authority/bracknell-forest","","","Central Support Services - COF","Personnel","Step Up Cohort 5","Training Costs",14/03/2018 00:00:00,"6661550",8464,"BUCKS/BUCKINGHAMSHIRE NEW UNIVERSITY"
"Bracknell Forest Council","http://opendatacommunities.org/id/unitary-authority/bracknell-forest","","","Central Support Services - COF","Information Technology","Departmental ICT","Other Fees for Bought-in Services",02/05/2018 00:00:00,"6661623",595,"SERVICE DESK INSTITUTE"
"Bracknell Forest Council","http://opendatacommunities.org/id/unitary-authority/bracknell-forest","","","Central Support Services - COF","Information Technology","Web Team","Licences",06/04/2018 00:00:00,"6661631",5312.5,"MICROSERVE IT SERVICES LTD"
"Bracknell Forest Council","http://opendatacommunities.org/id/unitary-authority/bracknell-forest","","","Central Support Services - COF","Legal","Legal Services","Training Costs",08/05/2018 00:00:00,"6661643",1860.1,"THE INFORMATION LAW PRACTICE LIMITED"
"Bracknell Forest Council","http://opendatacommunities.org/id/unitary-authority/bracknell-forest","","","Central Support Services - COF","Legal","Legal Services","Subscriptions",05/02/2018 00:00:00,"6661735",11660.01,"LEXISNEXIS BUTTERWORTHS"
"Bracknell Forest Council","http://opendatacommunities.org/id/unitary-authority/bracknell-forest","","","Central Support Services - COF","Policy Unit","Transformation Board","Consultants Fees",14/05/2018 00:00:00,"6661754",1800,"LOGJEC RECRUITMENT"
"Bracknell Forest Council","http://opendatacommunities.org/id/unitary-authority/bracknell-forest","","","Central Support Services - COF","Construction and Property","Construction & Maintenance","Agency",23/05/2018 00:00:00,"6661765",860,"THE OYSTER PARTNERSHIP"
"Bracknell Forest Council","http://opendatacommunities.org/id/unitary-authority/bracknell-forest","","","Central Support Services - COF","Construction and Property","Construction & Maintenance","Agency",16/05/2018 00:00:00,"6661766",860,"THE OYSTER PARTNERSHIP"
"Bracknell Forest Council","http://opendatacommunities.org/id/unitary-authority/bracknell-forest","","","Central Support Services - COF","Legal","Legal Services","Subscriptions",01/01/2018 00:00:00,"6661846",17000.2,"SWEET & MAXWELL LTD / THOMSON REUTERS"
"Bracknell Forest Council","http://opendatacommunities.org/id/unitary-authority/bracknell-forest","","","Central Support Services - COF","Construction and Property","Depot Facilities","Water & Sewerage",01/02/2018 00:00:00,"6661853",2734.88,"CASTLE WATER LIMITED"
"Bracknell Forest Council","http://opendatacommunities.org/id/unitary-authority/bracknell-forest","","","Central Support Services - COF","Construction and Property","Depot Facilities","Water & Sewerage",01/02/2018 00:00:00,"6661853",-2545.39,"CASTLE WATER LIMITED"
"Bracknell Forest Council","http://opendatacommunities.org/id/unitary-authority/bracknell-forest","","","Central Support Services - COF","Construction and Property","Time Square Office","R&M - Service Contracts",14/05/2018 00:00:00,"6661906",700,"MARS DRINKS UK LTD"
"Bracknell Forest Council","http://opendatacommunities.org/id/unitary-authority/bracknell-forest","","","Central Support Services - COF","Personnel","Personnel Services - Occupational Health","Other Fees for Bought-in Services",25/05/2018 00:00:00,"6661920",5283.94,"HEALES MEDICAL LTD"
"Bracknell Forest Council","http://opendatacommunities.org/id/unitary-authority/bracknell-forest","","","Central Support Services - COF","Personnel","Training Services","Consultants Fees",22/05/2018 00:00:00,"6661929",7280,"KORN FERRY HAY GROUP"
"Bracknell Forest Council","http://opendatacommunities.org/id/unitary-authority/bracknell-forest","","","Central Support Services - COF","Information Technology","ICT Telephony","Telephones - Rental & Call Charges",23/05/2018 00:00:00,"6661973",10823.47,"BT GLOBAL SERVICES"
"Bracknell Forest Council","http://opendatacommunities.org/id/unitary-authority/bracknell-forest","","","Central Support Services - COF","Information Technology","Communications","Equipment - Rental",23/05/2018 00:00:00,"6661974",1129.81,"BT GLOBAL SERVICES"
"Bracknell Forest Council","http://opendatacommunities.org/id/unitary-authority/bracknell-forest","","","Central Support Services - COF","Information Technology","Departmental ICT","Computer Software Maintenance",23/05/2018 00:00:00,"6661985",1377.75,"LIQUIDLOGIC"
"Bracknell Forest Council","http://opendatacommunities.org/id/unitary-authority/bracknell-forest","","","Central Support Services - COF","Information Technology","Departmental ICT","Computer Software Maintenance",01/05/2018 00:00:00,"6662014",2136,"INSIGHT MEDIA INTERNET LTD"
"Bracknell Forest Council","http://opendatacommunities.org/id/unitary-authority/bracknell-forest","","","Central Support Services - COF","Information Technology","Departmental ICT","Computer Software Maintenance",03/05/2018 00:00:00,"6662015",28991,"SERVELEC SOCIAL CARE LIMITED"
"Bracknell Forest Council","http://opendatacommunities.org/id/unitary-authority/bracknell-forest","","","Central Support Services - COF","Information Technology","Departmental ICT","Computer Software",21/05/2018 00:00:00,"6662038",2269.81,"CIVICA UK LIMITED"
"Bracknell Forest Council","http://opendatacommunities.org/id/unitary-authority/bracknell-forest","","","Central Support Services - COF","Construction and Property","Construction & Maintenance","Agency",30/05/2018 00:00:00,"6662055",1075,"THE OYSTER PARTNERSHIP"
"Bracknell Forest Council","http://opendatacommunities.org/id/unitary-authority/bracknell-forest","","","Central Support Services - COF","Information Technology","ICT Telephony","Mobile Telephones",25/05/2018 00:00:00,"6662071",5600,"VODAFONE CORPORATE"
"Bracknell Forest Council","http://opendatacommunities.org/id/unitary-authority/bracknell-forest","","","Central Support Services - COF","Information Technology","Web Team","Licences",01/05/2018 00:00:00,"6662096",2055.13,"INVOTRA LIMITED"
"Bracknell Forest Council","http://opendatacommunities.org/id/unitary-authority/bracknell-forest","","","Central Support Services - COF","Personnel","Personnel Services - Occupational Health","Other Fees for Bought-in Services",28/02/2018 00:00:00,"6662130",1566,"HARMONY COUNSELLING SERVICE"
"Bracknell Forest Council","http://opendatacommunities.org/id/unitary-authority/bracknell-forest","","","Central Support Services - COF","Information Technology","ICT Telephony","Telephones - Rental & Call Charges",09/05/2018 00:00:00,"6662133",7582.58,"BRITISH TELECOM"
"Bracknell Forest Council","http://opendatacommunities.org/id/unitary-authority/bracknell-forest","","","Central Support Services - COF","Policy Unit","Transformation Board","Consultants Fees",31/05/2018 00:00:00,"6662326",2250,"LOGJEC RECRUITMENT"
"Bracknell Forest Council","http://opendatacommunities.org/id/unitary-authority/bracknell-forest","","","Central Support Services - COF","Valuers","London Road","Legal Fees",24/05/2018 00:00:00,"6662349",1286,"TROWERS & HAMLINS"
"Bracknell Forest Council","http://opendatacommunities.org/id/unitary-authority/bracknell-forest","","","Central Support Services - COF","Legal","Legal Services","Agency",12/04/2018 00:00:00,"30333457",838.11,"MATRIX SCM LTD"
"Bracknell Forest Council","http://opendatacommunities.org/id/unitary-authority/bracknell-forest","","","Central Support Services - COF","Legal","Legal Services","Agency",12/04/2018 00:00:00,"30333457",1107.92,"MATRIX SCM LTD"
"Bracknell Forest Council","http://opendatacommunities.org/id/unitary-authority/bracknell-forest","","","Central Support Services - COF","Policy Unit","Transformation Board","Agency",12/04/2018 00:00:00,"30333457",827.08,"MATRIX SCM LTD"
"Bracknell Forest Council","http://opendatacommunities.org/id/unitary-authority/bracknell-forest","","","Central Support Services - COF","Policy Unit","Transformation Board","Agency",12/04/2018 00:00:00,"30333457",841.88,"MATRIX SCM LTD"
"Bracknell Forest Council","http://opendatacommunities.org/id/unitary-authority/bracknell-forest","","","Central Support Services - COF","Policy Unit","Transformation Board","Agency",12/04/2018 00:00:00,"30333457",3098.6,"MATRIX SCM LTD"
"Bracknell Forest Council","http://opendatacommunities.org/id/unitary-authority/bracknell-forest","","","Central Support Services - COF","Policy Unit","Transformation Board","Agency",12/04/2018 00:00:00,"30333457",500.4,"MATRIX SCM LTD"
"Bracknell Forest Council","http://opendatacommunities.org/id/unitary-authority/bracknell-forest","","","Central Support Services - COF","Policy Unit","Transformation Board","Agency",12/04/2018 00:00:00,"30333457",1683.76,"MATRIX SCM LTD"
"Bracknell Forest Council","http://opendatacommunities.org/id/unitary-authority/bracknell-forest","","","Central Support Services - COF","Construction and Property","Construction & Maintenance","Agency",12/04/2018 00:00:00,"30333457",1086.49,"MATRIX SCM LTD"
"Bracknell Forest Council","http://opendatacommunities.org/id/unitary-authority/bracknell-forest","","","Central Support Services - COF","Legal","Legal Services","Agency",18/04/2018 00:00:00,"30334120",826.36,"MATRIX SCM LTD"
"Bracknell Forest Council","http://opendatacommunities.org/id/unitary-authority/bracknell-forest","","","Central Support Services - COF","Legal","Legal Services","Agency",18/04/2018 00:00:00,"30334120",975.45,"MATRIX SCM LTD"
"Bracknell Forest Council","http://opendatacommunities.org/id/unitary-authority/bracknell-forest","","","Central Support Services - COF","Policy Unit","Transformation Board","Agency",18/04/2018 00:00:00,"30334120",2104.7,"MATRIX SCM LTD"
"Bracknell Forest Council","http://opendatacommunities.org/id/unitary-authority/bracknell-forest","","","Central Support Services - COF","Policy Unit","Transformation Board","Agency",18/04/2018 00:00:00,"30334120",2087.61,"MATRIX SCM LTD"
"Bracknell Forest Council","http://opendatacommunities.org/id/unitary-authority/bracknell-forest","","","Central Support Services - COF","Policy Unit","Transformation Board","Agency",18/04/2018 00:00:00,"30334120",336.96,"MATRIX SCM LTD"
"Bracknell Forest Council","http://opendatacommunities.org/id/unitary-authority/bracknell-forest","","","Central Support Services - COF","Construction and Property","Construction & Maintenance","Agency",18/04/2018 00:00:00,"30334120",1245.27,"MATRIX SCM LTD"
"Bracknell Forest Council","http://opendatacommunities.org/id/unitary-authority/bracknell-forest","","","Central Support Services - COF","Legal","Legal Services","Agency",25/04/2018 00:00:00,"30334754",806.21,"MATRIX SCM LTD"
"Bracknell Forest Council","http://opendatacommunities.org/id/unitary-authority/bracknell-forest","","","Central Support Services - COF","Legal","Legal Services","Agency",25/04/2018 00:00:00,"30334754",1252.42,"MATRIX SCM LTD"
"Bracknell Forest Council","http://opendatacommunities.org/id/unitary-authority/bracknell-forest","","","Central Support Services - COF","Policy Unit","Transformation Board","Agency",25/04/2018 00:00:00,"30334754",2087.6,"MATRIX SCM LTD"
"Bracknell Forest Council","http://opendatacommunities.org/id/unitary-authority/bracknell-forest","","","Central Support Services - COF","Policy Unit","Transformation Board","Agency",25/04/2018 00:00:00,"30334754",3873.25,"MATRIX SCM LTD"
"Bracknell Forest Council","http://opendatacommunities.org/id/unitary-authority/bracknell-forest","","","Central Support Services - COF","Policy Unit","Transformation Board","Agency",25/04/2018 00:00:00,"30334754",505.44,"MATRIX SCM LTD"
"Bracknell Forest Council","http://opendatacommunities.org/id/unitary-authority/bracknell-forest","","","Central Support Services - COF","Policy Unit","Transformation Board","Agency",25/04/2018 00:00:00,"30334754",3873.25,"MATRIX SCM LTD"
